Workbook

Sheet 점검계획
A1: 2020년 멀티미디어미디어 강의실 점검(6월) 및 계획(7월)
A2: 건물 | B2: 강의실 정보 | J2: 램프사용시간 | M2: 점검예정일 | O2: 방문수리
B3: 건물 | C3: 번호 | D3: 강의실 | E3: 구분 | F3: 프로젝터 | G3: 교탁 | H3: 램프교체 | I3: 정밀클리닝 | J3: 최종확인일 | L3: 사용시간
A4: 다산관 | B4: 다산관 | C4: 1 | D4: B105 | E4: =VLOOKUP(B44&D44,'[1]점검현황(금월)'!$D$7:$AG$263,2,0) -> 멀티미디어 (자동녹화) | F4: =VLOOKUP(B4&D4,'[1]점검현황(금월)'!$D$7:$AG$263,3,0) -> EX600 | G4: =VLOOKUP(B4&D4,'[1]점검현황(금월)'!$D$2:$AG$263,19,0) -> 구 | H4: =VLOOKUP(B4&D4,'[1]점검현황(금월)'!$D$2:$AG$263,25,0) -> 2019-05-03 | I4: =VLOOKUP(B4&D4,'[1]점검현황(금월)'!$D$7:$AG$263,27,0) -> 2020-04-11 | J4: =VLOOKUP(B4&D4,'[1]점검현황(금월)'!$D$7:$AG$263,23,0) -> 601 | K4: =VLOOKUP(B4&D4,'[1]점검현황(금월)'!$D$7:$AK$263,24,0) -> 12:05:00 | L4: =VLOOKUP(B4&D4,'[1]점검현황(금월)'!$D$7:$AK$263,34,0) -> 593 | M4: 701 | N4: 08:30:00
B5: =B4 -> 다산관 | C5: 2 | D5: B106 | E5: =VLOOKUP(B5&D5,'[1]점검현황(금월)'!$D$7:$AG$261,2,0) -> 경영대 (자동녹화) | F5: =VLOOKUP(B5&D5,'[1]점검현황(금월)'!$D$7:$AG$263,3,0) -> EX600 | G5: =VLOOKUP(B5&D5,'[1]점검현황(금월)'!$D$2:$AG$263,19,0) -> e-ST | H5: =VLOOKUP(B5&D5,'[1]점검현황(금월)'!$D$2:$AG$263,25,0) -> 2019-09-18 | I5: =VLOOKUP(B5&D5,'[1]점검현황(금월)'!$D$7:$AG$263,27,0) -> 날짜 확인 불가(클리닝 권고) | J5: =VLOOKUP(B5&D5,'[1]점검현황(금월)'!$D$7:$AG$263,23,0) -> 601 | K5: =VLOOKUP(B5&D5,'[1]점검현황(금월)'!$D$7:$AK$263,24,0) -> 11:53:00 | L5: =VLOOKUP(B5&D5,'[1]점검현황(금월)'!$D$7:$AK$263,34,0) -> 984 | M5: 701 | N5: 08:40:00
B6: =B5 -> 다산관 | C6: 3 | D6: B107 | E6: =VLOOKUP(B6&D6,'[1]점검현황(금월)'!$D$7:$AG$261,2,0) -> 경영대대학원 | F6: =VLOOKUP(B6&D6,'[1]점검현황(금월)'!$D$7:$AG$263,3,0) -> VX421 / VX421 | G6: =VLOOKUP(B6&D6,'[1]점검현황(금월)'!$D$2:$AG$263,19,0) -> e-ST | H6: =VLOOKUP(B6&D6,'[1]점검현황(금월)'!$D$2:$AG$263,25,0) -> 17-02-16 /17-02-16 | I6: =VLOOKUP(B6&D6,'[1]점검현황(금월)'!$D$7:$AG$263,27,0) -> 17-02-16 /17-02-16 | J6: =VLOOKUP(B6&D6,'[1]점검현황(금월)'!$D$7:$AG$263,23,0) -> 601 | K6: =VLOOKUP(B6&D6,'[1]점검현황(금월)'!$D$7:$AK$263,24,0) -> 17:00:00 | L6: =VLOOKUP(B6&D6,'[1]점검현황(금월)'!$D$7:$AK$263,34,0) -> 685/676 | M6: 701 | N6: 08:50:00
B7: 다산관 | C7: 4 | D7: B108 | E7: =VLOOKUP(B7&D7,'[1]점검현황(금월)'!$D$7:$AG$261,2,0) -> E-biz(자동녹화) | F7: =VLOOKUP(B7&D7,'[1]점검현황(금월)'!$D$7:$AG$263,3,0) -> VMZ60 | G7: =VLOOKUP(B7&D7,'[1]점검현황(금월)'!$D$2:$AG$263,19,0) -> e-ST | H7: =VLOOKUP(B7&D7,'[1]점검현황(금월)'!$D$2:$AG$263,25,0) -> 2019-11-22 | I7: =VLOOKUP(B7&D7,'[1]점검현황(금월)'!$D$7:$AG$263,27,0) -> 2019-11-22 | J7: =VLOOKUP(B7&D7,'[1]점검현황(금월)'!$D$7:$AG$263,23,0) -> 601 | K7: =VLOOKUP(B7&D7,'[1]점검현황(금월)'!$D$7:$AK$263,24,0) -> 13:20:00 | L7: =VLOOKUP(B7&D7,'[1]점검현황(금월)'!$D$7:$AK$263,34,0) -> 548 | M7: 701 | N7: 19:00:00
B8: 다산관 | C8: 5 | D8: B109 | E8: =VLOOKUP(B8&D8,'[1]점검현황(금월)'!$D$7:$AG$261,2,0) -> 멀티미디어 | F8: =VLOOKUP(B8&D8,'[1]점검현황(금월)'!$D$7:$AG$263,3,0) -> XU106K | G8: =VLOOKUP(B8&D8,'[1]점검현황(금월)'!$D$2:$AG$263,19,0) -> 구 | H8: =VLOOKUP(B8&D8,'[1]점검현황(금월)'!$D$2:$AG$263,25,0) -> 2019-08-07 | I8: =VLOOKUP(B8&D8,'[1]점검현황(금월)'!$D$7:$AG$263,27,0) -> 2020-02-12 | J8: =VLOOKUP(B8&D8,'[1]점검현황(금월)'!$D$7:$AG$263,23,0) -> 601 | K8: =VLOOKUP(B8&D8,'[1]점검현황(금월)'!$D$7:$AK$263,24,0) -> 19:10:00 | L8: =VLOOKUP(B8&D8,'[1]점검현황(금월)'!$D$7:$AK$263,34,0) -> 532 | M8: 701 | N8: 19:10:00
B9: 다산관 | C9: 6 | D9: B112 | E9: =VLOOKUP(B9&D9,'[1]점검현황(금월)'!$D$7:$AG$261,2,0) -> 대학원 | F9: =VLOOKUP(B9&D9,'[1]점검현황(금월)'!$D$7:$AG$263,3,0) -> VX421 | G9: =VLOOKUP(B9&D9,'[1]점검현황(금월)'!$D$2:$AG$263,19,0) -> e-ST | H9: =VLOOKUP(B9&D9,'[1]점검현황(금월)'!$D$2:$AG$263,25,0) -> 2018-10-04 | I9: =VLOOKUP(B9&D9,'[1]점검현황(금월)'!$D$7:$AG$263,27,0) -> 2018-10-04 | J9: =VLOOKUP(B9&D9,'[1]점검현황(금월)'!$D$7:$AG$263,23,0) -> 601 | K9: =VLOOKUP(B9&D9,'[1]점검현황(금월)'!$D$7:$AK$263,24,0) -> 19:30:00 | L9: =VLOOKUP(B9&D9,'[1]점검현황(금월)'!$D$7:$AK$263,34,0) -> 193 | M9: 701 | N9: 19:20:00
B10: =B8 -> 다산관 | C10: 7 | D10: B115 | E10: =VLOOKUP(B10&D10,'[1]점검현황(금월)'!$D$7:$AG$261,2,0) -> 대학원 | F10: =VLOOKUP(B10&D10,'[1]점검현황(금월)'!$D$7:$AG$263,3,0) -> LB280 | G10: =VLOOKUP(B10&D10,'[1]점검현황(금월)'!$D$2:$AG$263,19,0) -> e-ST | H10: =VLOOKUP(B10&D10,'[1]점검현황(금월)'!$D$2:$AG$263,25,0) -> 2014-03-07 | I10: =VLOOKUP(B10&D10,'[1]점검현황(금월)'!$D$7:$AG$263,27,0) -> 2014-03-07(클리닝 권고) | J10: =VLOOKUP(B10&D10,'[1]점검현황(금월)'!$D$7:$AG$263,23,0) -> 601 | K10: =VLOOKUP(B10&D10,'[1]점검현황(금월)'!$D$7:$AK$263,24,0) -> 08:30:00 | L10: =VLOOKUP(B10&D10,'[1]점검현황(금월)'!$D$7:$AK$263,34,0) -> 1310 | M10: 701 | N10: 08:30:00
B11: 다산관 | C11: 8 | D11: B121 | E11: =VLOOKUP(B11&D11,'[1]점검현황(금월)'!$D$7:$AG$261,2,0) -> 대강당 | F11: =VLOOKUP(B11&D11,'[1]점검현황(금월)'!$D$7:$AG$263,3,0) -> EX620 | G11: =VLOOKUP(B11&D11,'[1]점검현황(금월)'!$D$2:$AG$263,19,0) -> e-ST | H11: =VLOOKUP(B11&D11,'[1]점검현황(금월)'!$D$2:$AG$263,25,0) -> 2017-03-07 | I11: =VLOOKUP(B11&D11,'[1]점검현황(금월)'!$D$7:$AG$263,27,0) -> 2017-03-07 | J11: =VLOOKUP(B11&D11,'[1]점검현황(금월)'!$D$7:$AG$263,23,0) -> 601 | K11: =VLOOKUP(B11&D11,'[1]점검현황(금월)'!$D$7:$AK$263,24,0) -> 17:10:00 | L11: =VLOOKUP(B11&D11,'[1]점검현황(금월)'!$D$7:$AK$263,34,0) -> 1415 | M11: 701 | N11: 08:40:00
B12: 다산관 | C12: 9 | D12: 105 | E12: =VLOOKUP(B12&D12,'[1]점검현황(금월)'!$D$7:$AG$261,2,0) -> 멀티미디어 | F12: =VLOOKUP(B12&D12,'[1]점검현황(금월)'!$D$7:$AG$263,3,0) -> VX421 | G12: =VLOOKUP(B12&D12,'[1]점검현황(금월)'!$D$2:$AG$263,19,0) -> e-ST | H12: =VLOOKUP(B12&D12,'[1]점검현황(금월)'!$D$2:$AG$263,25,0) -> 2019-07-03 | I12: =VLOOKUP(B12&D12,'[1]점검현황(금월)'!$D$7:$AG$263,27,0) -> 2020-06-08 | J12: =VLOOKUP(B12&D12,'[1]점검현황(금월)'!$D$7:$AG$263,23,0) -> 608 | K12: =VLOOKUP(B12&D12,'[1]점검현황(금월)'!$D$7:$AK$263,24,0) -> 08:50:00 | L12: =VLOOKUP(B12&D12,'[1]점검현황(금월)'!$D$7:$AK$263,34,0) -> 687 | M12: 701 | N12: 08:50:00 | O12: 8,
B13: 다산관 | C13: 10 | D13: 106 | E13: =VLOOKUP(B13&D13,'[1]점검현황(금월)'!$D$7:$AG$261,2,0) -> 불어불문(자동녹화) | F13: =VLOOKUP(B13&D13,'[1]점검현황(금월)'!$D$7:$AG$263,3,0) -> VX421 | G13: =VLOOKUP(B13&D13,'[1]점검현황(금월)'!$D$2:$AG$263,19,0) -> e-ST | H13: =VLOOKUP(B13&D13,'[1]점검현황(금월)'!$D$2:$AG$263,25,0) -> 2019-08-23 | I13: =VLOOKUP(B13&D13,'[1]점검현황(금월)'!$D$7:$AG$263,27,0) -> 2016-08-26(클리닝 권고) | J13: =VLOOKUP(B13&D13,'[1]점검현황(금월)'!$D$7:$AG$263,23,0) -> 601 | K13: =VLOOKUP(B13&D13,'[1]점검현황(금월)'!$D$7:$AK$263,24,0) -> 19:00:00 | L13: =VLOOKUP(B13&D13,'[1]점검현황(금월)'!$D$7:$AK$263,34,0) -> 522 | M13: 701 | N13: 19:00:00
B14: 다산관 | C14: 11 | D14: 107 | E14: =VLOOKUP(B14&D14,'[1]점검현황(금월)'!$D$7:$AG$261,2,0) -> 국어국문(자동녹화) | F14: =VLOOKUP(B14&D14,'[1]점검현황(금월)'!$D$7:$AG$263,3,0) -> VX421 | G14: =VLOOKUP(B14&D14,'[1]점검현황(금월)'!$D$2:$AG$263,19,0) -> e-ST | H14: =VLOOKUP(B14&D14,'[1]점검현황(금월)'!$D$2:$AG$263,25,0) -> 2018-08-31 | I14: =VLOOKUP(B14&D14,'[1]점검현황(금월)'!$D$7:$AG$263,27,0) -> 2016-08-26(클리닝 권고) | J14: =VLOOKUP(B14&D14,'[1]점검현황(금월)'!$D$7:$AG$263,23,0) -> 602 | K14: =VLOOKUP(B14&D14,'[1]점검현황(금월)'!$D$7:$AK$263,24,0) -> 19:10:00 | L14: =VLOOKUP(B14&D14,'[1]점검현황(금월)'!$D$7:$AK$263,34,0) -> 2783 | M14: 702 | N14: 19:10:00
B15: 다산관 | C15: 12 | D15: 108 | E15: =VLOOKUP(B15&D15,'[1]점검현황(금월)'!$D$7:$AG$261,2,0) -> 사학과(자동녹화) | F15: =VLOOKUP(B15&D15,'[1]점검현황(금월)'!$D$7:$AG$263,3,0) -> VX421 | G15: =VLOOKUP(B15&D15,'[1]점검현황(금월)'!$D$2:$AG$263,19,0) -> e-ST | H15: =VLOOKUP(B15&D15,'[1]점검현황(금월)'!$D$2:$AG$263,25,0) -> 2018-08-31 | I15: =VLOOKUP(B15&D15,'[1]점검현황(금월)'!$D$7:$AG$263,27,0) -> 2016-08-26(클리닝 권고) | J15: =VLOOKUP(B15&D15,'[1]점검현황(금월)'!$D$7:$AG$263,23,0) -> 622 | K15: =VLOOKUP(B15&D15,'[1]점검현황(금월)'!$D$7:$AK$263,24,0) -> 19:20:00 | L15: =VLOOKUP(B15&D15,'[1]점검현황(금월)'!$D$7:$AK$263,34,0) -> 2169 | M15: 702 | N15: 19:20:00 | O15: 4,11,22
B16: 다산관 | C16: 13 | D16: 109 | E16: =VLOOKUP(B16&D16,'[1]점검현황(금월)'!$D$7:$AG$261,2,0) -> 멀티미디어 (자동녹화) | F16: =VLOOKUP(B16&D16,'[1]점검현황(금월)'!$D$7:$AG$263,3,0) -> VX600 | G16: =VLOOKUP(B16&D16,'[1]점검현황(금월)'!$D$2:$AG$263,19,0) -> e-ST | H16: =VLOOKUP(B16&D16,'[1]점검현황(금월)'!$D$2:$AG$263,25,0) -> 2018-10-29 | I16: =VLOOKUP(B16&D16,'[1]점검현황(금월)'!$D$7:$AG$263,27,0) -> 2020-05-09 | J16: =VLOOKUP(B16&D16,'[1]점검현황(금월)'!$D$7:$AG$263,23,0) -> 602 | K16: =VLOOKUP(B16&D16,'[1]점검현황(금월)'!$D$7:$AK$263,24,0) -> 19:30:00 | L16: =VLOOKUP(B16&D16,'[1]점검현황(금월)'!$D$7:$AK$263,34,0) -> 293 | M16: 702 | N16: 08:30:00
B17: 다산관 | C17: 14 | D17: 110 | E17: =VLOOKUP(B17&D17,'[1]점검현황(금월)'!$D$7:$AG$261,2,0) -> 대학원 | F17: =VLOOKUP(B17&D17,'[1]점검현황(금월)'!$D$7:$AG$263,3,0) -> XU106K | G17: =VLOOKUP(B17&D17,'[1]점검현황(금월)'!$D$2:$AG$263,19,0) -> e-ST | H17: =VLOOKUP(B17&D17,'[1]점검현황(금월)'!$D$2:$AG$263,25,0) -> 2017-06-27 | I17: =VLOOKUP(B17&D17,'[1]점검현황(금월)'!$D$7:$AG$263,27,0) -> 2017-04-20 | J17: =VLOOKUP(B17&D17,'[1]점검현황(금월)'!$D$7:$AG$263,23,0) -> 602 | K17: =VLOOKUP(B17&D17,'[1]점검현황(금월)'!$D$7:$AK$263,24,0) -> 08:40:00 | L17: =VLOOKUP(B17&D17,'[1]점검현황(금월)'!$D$7:$AK$263,34,0) -> 1433 | M17: 702 | N17: 08:40:00
B18: 다산관 | C18: 15 | D18: 111 | E18: =VLOOKUP(B18&D18,'[1]점검현황(금월)'!$D$7:$AG$261,2,0) -> 경영대 (자동녹화) | F18: =VLOOKUP(B18&D18,'[1]점검현황(금월)'!$D$7:$AG$263,3,0) -> VMZ60 | G18: =VLOOKUP(B18&D18,'[1]점검현황(금월)'!$D$2:$AG$263,19,0) -> e-ST | H18: =VLOOKUP(B18&D18,'[1]점검현황(금월)'!$D$2:$AG$263,25,0) -> 2019-11-22 | I18: =VLOOKUP(B18&D18,'[1]점검현황(금월)'!$D$7:$AG$263,27,0) -> 2019-11-22 | J18: =VLOOKUP(B18&D18,'[1]점검현황(금월)'!$D$7:$AG$263,23,0) -> 602 | K18: =VLOOKUP(B18&D18,'[1]점검현황(금월)'!$D$7:$AK$263,24,0) -> 19:02:00 | L18: =VLOOKUP(B18&D18,'[1]점검현황(금월)'!$D$7:$AK$263,34,0) -> 372 | M18: 702 | N18: 08:50:00
B19: 다산관 | C19: 16 | D19: 115 | E19: =VLOOKUP(B19&D19,'[1]점검현황(금월)'!$D$7:$AG$261,2,0) -> 멀티미디어 | F19: =VLOOKUP(B19&D19,'[1]점검현황(금월)'!$D$7:$AG$263,3,0) -> XU106K | G19: =VLOOKUP(B19&D19,'[1]점검현황(금월)'!$D$2:$AG$263,19,0) -> 구 | H19: =VLOOKUP(B19&D19,'[1]점검현황(금월)'!$D$2:$AG$263,25,0) -> 2020-03-14 | I19: =VLOOKUP(B19&D19,'[1]점검현황(금월)'!$D$7:$AG$263,27,0) -> 2020-04-11 | J19: =VLOOKUP(B19&D19,'[1]점검현황(금월)'!$D$7:$AG$263,23,0) -> 603 | K19: =VLOOKUP(B19&D19,'[1]점검현황(금월)'!$D$7:$AK$263,24,0) -> 17:42:00 | L19: =VLOOKUP(B19&D19,'[1]점검현황(금월)'!$D$7:$AK$263,34,0) -> 3 | M19: 702 | N19: 19:00:00 | O19: 3,
B20: 다산관 | C20: 17 | D20: 205A | E20: =VLOOKUP(B20&D20,'[1]점검현황(금월)'!$D$7:$AG$261,2,0) -> 인문대 (PC실)(자동녹화) | F20: =VLOOKUP(B20&D20,'[1]점검현황(금월)'!$D$7:$AG$263,3,0) -> VW450 / VW450 | G20: =VLOOKUP(B20&D20,'[1]점검현황(금월)'!$D$2:$AG$263,19,0) -> e-ST | H20: =VLOOKUP(B20&D20,'[1]점검현황(금월)'!$D$2:$AG$263,25,0) -> 20-02-00 / 20-02-00 | I20: =VLOOKUP(B20&D20,'[1]점검현황(금월)'!$D$7:$AG$263,27,0) -> 20-02-00 / 02-02-00 | J20: =VLOOKUP(B20&D20,'[1]점검현황(금월)'!$D$7:$AG$263,23,0) -> 618 | K20: =VLOOKUP(B20&D20,'[1]점검현황(금월)'!$D$7:$AK$263,24,0) -> 19:10:00 | L20: =VLOOKUP(B20&D20,'[1]점검현황(금월)'!$D$7:$AK$263,34,0) -> 33/33 | M20: 702 | N20: 19:10:00 | O20: 18,
B21: 다산관 | C21: 18 | D21: 205B | E21: =VLOOKUP(B21&D21,'[1]점검현황(금월)'!$D$7:$AG$261,2,0) -> 멀티미디어 (자동녹화) | F21: =VLOOKUP(B21&D21,'[1]점검현황(금월)'!$D$7:$AG$263,3,0) -> VX600 | G21: =VLOOKUP(B21&D21,'[1]점검현황(금월)'!$D$2:$AG$263,19,0) -> 구e-ST | H21: =VLOOKUP(B21&D21,'[1]점검현황(금월)'!$D$2:$AG$263,25,0) -> 2019-06-07 | I21: =VLOOKUP(B21&D21,'[1]점검현황(금월)'!$D$7:$AG$263,27,0) -> 2020-02-12 | J21: =VLOOKUP(B21&D21,'[1]점검현황(금월)'!$D$7:$AG$263,23,0) -> 617 | K21: =VLOOKUP(B21&D21,'[1]점검현황(금월)'!$D$7:$AK$263,24,0) -> 19:02:00 | L21: =VLOOKUP(B21&D21,'[1]점검현황(금월)'!$D$7:$AK$263,34,0) -> 546 | M21: 702 | N21: 19:20:00 | O21: 11,17
B22: 다산관 | C22: 19 | D22: 307 | E22: =VLOOKUP(B22&D22,'[1]점검현황(금월)'!$D$7:$AG$261,2,0) -> 경영대(PC실) | F22: =VLOOKUP(B22&D22,'[1]점검현황(금월)'!$D$7:$AG$263,3,0) -> VX510 | G22: =VLOOKUP(B22&D22,'[1]점검현황(금월)'!$D$2:$AG$263,19,0) -> e-ST | H22: =VLOOKUP(B22&D22,'[1]점검현황(금월)'!$D$2:$AG$263,25,0) -> 2019-11-16 | I22: =VLOOKUP(B22&D22,'[1]점검현황(금월)'!$D$7:$AG$263,27,0) -> 2019-00-00 | J22: =VLOOKUP(B22&D22,'[1]점검현황(금월)'!$D$7:$AG$263,23,0) -> 602 | K22: =VLOOKUP(B22&D22,'[1]점검현황(금월)'!$D$7:$AK$263,24,0) -> 19:30:00 | L22: =VLOOKUP(B22&D22,'[1]점검현황(금월)'!$D$7:$AK$263,34,0) -> 143 | M22: 702 | N22: 19:30:00
B23: =B21 -> 다산관 | C23: 20 | D23: 308 | E23: =VLOOKUP(B23&D23,'[1]점검현황(금월)'!$D$7:$AG$261,2,0) -> 경영대(PC실) (자동녹화) | F23: =VLOOKUP(B23&D23,'[1]점검현황(금월)'!$D$7:$AG$263,3,0) -> VMZ60 | G23: =VLOOKUP(B23&D23,'[1]점검현황(금월)'!$D$2:$AG$263,19,0) -> e-ST | H23: =VLOOKUP(B23&D23,'[1]점검현황(금월)'!$D$2:$AG$263,25,0) -> 2019-08-00 | I23: =VLOOKUP(B23&D23,'[1]점검현황(금월)'!$D$7:$AG$263,27,0) -> 2019-08-00 | J23: =VLOOKUP(B23&D23,'[1]점검현황(금월)'!$D$7:$AG$263,23,0) -> 602 | K23: =VLOOKUP(B23&D23,'[1]점검현황(금월)'!$D$7:$AK$263,24,0) -> 08:30:00 | L23: =VLOOKUP(B23&D23,'[1]점검현황(금월)'!$D$7:$AK$263,34,0) -> 701 | M23: 702 | N23: 08:30:00
B24: 다산관 | C24: 21 | D24: 309 | E24: =VLOOKUP(B24&D24,'[1]점검현황(금월)'!$D$7:$AG$261,2,0) -> 경영대학원(자동녹화) | F24: =VLOOKUP(B24&D24,'[1]점검현황(금월)'!$D$7:$AG$263,3,0) -> EX500E | G24: =VLOOKUP(B24&D24,'[1]점검현황(금월)'!$D$2:$AG$263,19,0) -> e-ST | H24: =VLOOKUP(B24&D24,'[1]점검현황(금월)'!$D$2:$AG$263,25,0) -> 2018-12-11 | I24: =VLOOKUP(B24&D24,'[1]점검현황(금월)'!$D$7:$AG$263,27,0) -> 날짜 확인 불가(클리닝 권고) | J24: =VLOOKUP(B24&D24,'[1]점검현황(금월)'!$D$7:$AG$263,23,0) -> 603 | K24: =VLOOKUP(B24&D24,'[1]점검현황(금월)'!$D$7:$AK$263,24,0) -> 08:40:00 | L24: =VLOOKUP(B24&D24,'[1]점검현황(금월)'!$D$7:$AK$263,34,0) -> 1259 | M24: 703 | N24: 08:40:00
B25: 다산관 | C25: 22 | D25: 310 | E25: =VLOOKUP(B25&D25,'[1]점검현황(금월)'!$D$7:$AG$261,2,0) -> 멀티미디어 | F25: =VLOOKUP(B25&D25,'[1]점검현황(금월)'!$D$7:$AG$263,3,0) -> VX410 / VX410 | G25: =VLOOKUP(B25&D25,'[1]점검현황(금월)'!$D$2:$AG$263,19,0) -> e-ST | H25: =VLOOKUP(B25&D25,'[1]점검현황(금월)'!$D$2:$AG$263,25,0) -> 20-02-13 / 19-10-01 | I25: =VLOOKUP(B25&D25,'[1]점검현황(금월)'!$D$7:$AG$263,27,0) -> 2019-10-26 | J25: =VLOOKUP(B25&D25,'[1]점검현황(금월)'!$D$7:$AG$263,23,0) -> 603 | K25: =VLOOKUP(B25&D25,'[1]점검현황(금월)'!$D$7:$AK$263,24,0) -> 08:50:00 | L25: =VLOOKUP(B25&D25,'[1]점검현황(금월)'!$D$7:$AK$263,34,0) -> 26/23 | M25: 703 | N25: 08:50:00
B26: 다산관 | C26: 23 | D26: 311 | E26: =VLOOKUP(B26&D26,'[1]점검현황(금월)'!$D$7:$AG$261,2,0) -> 경영대대학원 | F26: =VLOOKUP(B26&D26,'[1]점검현황(금월)'!$D$7:$AG$263,3,0) -> VX410 / VX400 | G26: =VLOOKUP(B26&D26,'[1]점검현황(금월)'!$D$2:$AG$263,19,0) -> e-ST | H26: =VLOOKUP(B26&D26,'[1]점검현황(금월)'!$D$2:$AG$263,25,0) -> 19-03-20 / 17-06-26 | I26: =VLOOKUP(B26&D26,'[1]점검현황(금월)'!$D$7:$AG$263,27,0) -> 2019-04-29 | J26: =VLOOKUP(B26&D26,'[1]점검현황(금월)'!$D$7:$AG$263,23,0) -> 603 | K26: =VLOOKUP(B26&D26,'[1]점검현황(금월)'!$D$7:$AK$263,24,0) -> 19:00:00 | L26: =VLOOKUP(B26&D26,'[1]점검현황(금월)'!$D$7:$AK$263,34,0) -> 355/817 | M26: 703 | N26: 19:00:00
B27: 다산관 | C27: 24 | D27: 406 | E27: =VLOOKUP(B27&D27,'[1]점검현황(금월)'!$D$7:$AG$261,2,0) -> 경영대 (PC실) | F27: =VLOOKUP(B27&D27,'[1]점검현황(금월)'!$D$7:$AG$263,3,0) -> XU106K | G27: =VLOOKUP(B27&D27,'[1]점검현황(금월)'!$D$2:$AG$263,19,0) -> e-ST | H27: =VLOOKUP(B27&D27,'[1]점검현황(금월)'!$D$2:$AG$263,25,0) -> 2018-09-12 | I27: =VLOOKUP(B27&D27,'[1]점검현황(금월)'!$D$7:$AG$263,27,0) -> 날짜 확인 불가(클리닝 권고) | J27: =VLOOKUP(B27&D27,'[1]점검현황(금월)'!$D$7:$AG$263,23,0) -> 603 | K27: =VLOOKUP(B27&D27,'[1]점검현황(금월)'!$D$7:$AK$263,24,0) -> 19:10:00 | L27: =VLOOKUP(B27&D27,'[1]점검현황(금월)'!$D$7:$AK$263,34,0) -> 738 | M27: 703 | N27: 19:10:00
B28: 다산관 | C28: 25 | D28: 433 | E28: =VLOOKUP(B28&D28,'[1]점검현황(금월)'!$D$7:$AG$261,2,0) -> 경영대대학원 | F28: =VLOOKUP(B28&D28,'[1]점검현황(금월)'!$D$7:$AG$263,3,0) -> LB280 | G28: =VLOOKUP(B28&D28,'[1]점검현황(금월)'!$D$2:$AG$263,19,0) -> e-ST | H28: =VLOOKUP(B28&D28,'[1]점검현황(금월)'!$D$2:$AG$263,25,0) -> 2015-09-01 | I28: =VLOOKUP(B28&D28,'[1]점검현황(금월)'!$D$7:$AG$263,27,0) -> 2015-09-01(클리닝 권고) | J28: =VLOOKUP(B28&D28,'[1]점검현황(금월)'!$D$7:$AG$263,23,0) -> 603 | K28: =VLOOKUP(B28&D28,'[1]점검현황(금월)'!$D$7:$AK$263,24,0) -> 19:15:00 | L28: =VLOOKUP(B28&D28,'[1]점검현황(금월)'!$D$7:$AK$263,34,0) -> 2325 | M28: 703 | N28: 19:15:00
B29: =B28 -> 다산관 | C29: 26 | D29: 505 | E29: =VLOOKUP(B29&D29,'[1]점검현황(금월)'!$D$7:$AG$261,2,0) -> 대학원 | F29: =VLOOKUP(B29&D29,'[1]점검현황(금월)'!$D$7:$AG$263,3,0) -> XU301K | G29: =VLOOKUP(B29&D29,'[1]점검현황(금월)'!$D$2:$AG$263,19,0) -> e-ST | H29: =VLOOKUP(B29&D29,'[1]점검현황(금월)'!$D$2:$AG$263,25,0) -> 2017-06-27 | I29: =VLOOKUP(B29&D29,'[1]점검현황(금월)'!$D$7:$AG$263,27,0) -> 2017-08-30 | J29: =VLOOKUP(B29&D29,'[1]점검현황(금월)'!$D$7:$AG$263,23,0) -> 603 | K29: =VLOOKUP(B29&D29,'[1]점검현황(금월)'!$D$7:$AK$263,24,0) -> 19:20:00 | L29: =VLOOKUP(B29&D29,'[1]점검현황(금월)'!$D$7:$AK$263,34,0) -> 1719 | M29: 703 | N29: 19:20:00
B30: 다산관 | C30: 27 | D30: 506 | E30: =VLOOKUP(B30&D30,'[1]점검현황(금월)'!$D$7:$AG$261,2,0) -> 멀티미디어 | F30: =VLOOKUP(B30&D30,'[1]점검현황(금월)'!$D$7:$AG$263,3,0) -> XU106K | G30: =VLOOKUP(B30&D30,'[1]점검현황(금월)'!$D$2:$AG$263,19,0) -> 구 | H30: =VLOOKUP(B30&D30,'[1]점검현황(금월)'!$D$2:$AG$263,25,0) -> 2020-03-20 | I30: =VLOOKUP(B30&D30,'[1]점검현황(금월)'!$D$7:$AG$263,27,0) -> 2020-06-09 | J30: =VLOOKUP(B30&D30,'[1]점검현황(금월)'!$D$7:$AG$263,23,0) -> 611 | K30: =VLOOKUP(B30&D30,'[1]점검현황(금월)'!$D$7:$AK$263,24,0) -> 08:30:00 | L30: =VLOOKUP(B30&D30,'[1]점검현황(금월)'!$D$7:$AK$263,34,0) -> 0 | M30: 703 | N30: 09:00:00 | O30: 9,11
B31: 다산관 | C31: 28 | D31: 507 | E31: =VLOOKUP(B31&D31,'[1]점검현황(금월)'!$D$7:$AG$261,2,0) -> 멀티미디어 (자동녹화) | F31: =VLOOKUP(B31&D31,'[1]점검현황(금월)'!$D$7:$AG$263,3,0) -> VX600 | G31: =VLOOKUP(B31&D31,'[1]점검현황(금월)'!$D$2:$AG$263,19,0) -> e-ST | H31: =VLOOKUP(B31&D31,'[1]점검현황(금월)'!$D$2:$AG$263,25,0) -> 2019-07-03 | I31: =VLOOKUP(B31&D31,'[1]점검현황(금월)'!$D$7:$AG$263,27,0) -> 2020-02-12 | J31: =VLOOKUP(B31&D31,'[1]점검현황(금월)'!$D$7:$AG$263,23,0) -> 603 | K31: =VLOOKUP(B31&D31,'[1]점검현황(금월)'!$D$7:$AK$263,24,0) -> 08:40:00 | L31: =VLOOKUP(B31&D31,'[1]점검현황(금월)'!$D$7:$AK$263,34,0) -> 757 | M31: 703 | N31: 09:10:00
A32: 율곡관 | B32: 율곡관 | C32: 1 | D32: 150 | E32: =VLOOKUP(B32&D32,'[1]점검현황(금월)'!$D$7:$AG$261,2,0) -> 대강당 | F32: =VLOOKUP(B32&D32,'[1]점검현황(금월)'!$D$7:$AG$263,3,0) -> XF47 | G32: =VLOOKUP(B32&D32,'[1]점검현황(금월)'!$D$2:$AG$263,19,0) -> e-ST | H32: =VLOOKUP(B32&D32,'[1]점검현황(금월)'!$D$2:$AG$263,25,0) -> 2020-03-19 | I32: =VLOOKUP(B32&D32,'[1]점검현황(금월)'!$D$7:$AG$263,27,0) -> 2017-05-26 | J32: =VLOOKUP(B32&D32,'[1]점검현황(금월)'!$D$7:$AG$263,23,0) -> 623 | K32: =VLOOKUP(B32&D32,'[1]점검현황(금월)'!$D$7:$AK$263,24,0) -> 13:30:00 | L32: =VLOOKUP(B32&D32,'[1]점검현황(금월)'!$D$7:$AK$263,34,0) -> 0/0/0/0 | M32: 703 | N32: 09:20:00 | O32: 23,
B33: 율곡관 | C33: 2 | D33: 151 | E33: =VLOOKUP(B33&D33,'[1]점검현황(금월)'!$D$7:$AG$261,2,0) -> 영상회의실 | F33: =VLOOKUP(B33&D33,'[1]점검현황(금월)'!$D$7:$AG$263,3,0) -> VMZ60 | G33: =VLOOKUP(B33&D33,'[1]점검현황(금월)'!$D$2:$AG$263,19,0) -> e-ST | H33: =VLOOKUP(B33&D33,'[1]점검현황(금월)'!$D$2:$AG$263,25,0) -> 2020-02-04 | I33: =VLOOKUP(B33&D33,'[1]점검현황(금월)'!$D$7:$AG$263,27,0) -> 2020-02-04 | J33: =VLOOKUP(B33&D33,'[1]점검현황(금월)'!$D$7:$AG$263,23,0) -> 603 | K33: =VLOOKUP(B33&D33,'[1]점검현황(금월)'!$D$7:$AK$263,24,0) -> 18:20:00 | L33: =VLOOKUP(B33&D33,'[1]점검현황(금월)'!$D$7:$AK$263,34,0) -> 32 | M33: 703 | N33: 09:30:00
B34: 율곡관 | C34: 3 | D34: 153 | E34: =VLOOKUP(B34&D34,'[1]점검현황(금월)'!$D$7:$AG$261,2,0) -> 멀티미디어 글로벌라운지 | F34: =VLOOKUP(B34&D34,'[1]점검현황(금월)'!$D$7:$AG$263,3,0) -> XU105K | G34: =VLOOKUP(B34&D34,'[1]점검현황(금월)'!$D$2:$AG$263,19,0) -> e-ST | H34: =VLOOKUP(B34&D34,'[1]점검현황(금월)'!$D$2:$AG$263,25,0) -> 2017-11-02 | I34: =VLOOKUP(B34&D34,'[1]점검현황(금월)'!$D$7:$AG$263,27,0) -> 2020-05-09 | J34: =VLOOKUP(B34&D34,'[1]점검현황(금월)'!$D$7:$AG$263,23,0) -> 604 | K34: =VLOOKUP(B34&D34,'[1]점검현황(금월)'!$D$7:$AK$263,24,0) -> 14:10:00 | L34: =VLOOKUP(B34&D34,'[1]점검현황(금월)'!$D$7:$AK$263,34,0) -> 567 | M34: 704 | N34: 09:40:00
B35: 율곡관 | C35: 4 | D35: 154 | E35: =VLOOKUP(B35&D35,'[1]점검현황(금월)'!$D$7:$AG$261,2,0) -> 국제대학원 | F35: =VLOOKUP(B35&D35,'[1]점검현황(금월)'!$D$7:$AG$263,3,0) -> VX421 | G35: =VLOOKUP(B35&D35,'[1]점검현황(금월)'!$D$2:$AG$263,19,0) -> e-ST | H35: =VLOOKUP(B35&D35,'[1]점검현황(금월)'!$D$2:$AG$263,25,0) -> 2017-09-05 | I35: =VLOOKUP(B35&D35,'[1]점검현황(금월)'!$D$7:$AG$263,27,0) -> 2017-09-05 | J35: =VLOOKUP(B35&D35,'[1]점검현황(금월)'!$D$7:$AG$263,23,0) -> 604 | K35: =VLOOKUP(B35&D35,'[1]점검현황(금월)'!$D$7:$AK$263,24,0) -> 14:30:00 | L35: =VLOOKUP(B35&D35,'[1]점검현황(금월)'!$D$7:$AK$263,34,0) -> 2738 | M35: 704 | N35: 09:50:00
B36: 율곡관 | C36: 5 | D36: 157 | E36: =VLOOKUP(B36&D36,'[1]점검현황(금월)'!$D$7:$AG$261,2,0) -> 사회대 (PC실) | F36: =VLOOKUP(B36&D36,'[1]점검현황(금월)'!$D$7:$AG$263,3,0) -> XU106K | G36: =VLOOKUP(B36&D36,'[1]점검현황(금월)'!$D$2:$AG$263,19,0) -> e-ST | H36: =VLOOKUP(B36&D36,'[1]점검현황(금월)'!$D$2:$AG$263,25,0) -> 2018-07-24 | I36: =VLOOKUP(B36&D36,'[1]점검현황(금월)'!$D$7:$AG$263,27,0) -> 2019-01-18 | J36: =VLOOKUP(B36&D36,'[1]점검현황(금월)'!$D$7:$AG$263,23,0) -> 604 | K36: =VLOOKUP(B36&D36,'[1]점검현황(금월)'!$D$7:$AK$263,24,0) -> 09:00:00 | L36: =VLOOKUP(B36&D36,'[1]점검현황(금월)'!$D$7:$AK$263,34,0) -> 1598 | M36: 704 | N36: 10:00:00
B37: 율곡관 | C37: 6 | D37: 204 | E37: =VLOOKUP(B37&D37,'[1]점검현황(금월)'!$D$7:$AG$261,2,0) -> 제1회의실 | F37: =VLOOKUP(B37&D37,'[1]점검현황(금월)'!$D$7:$AG$263,3,0) -> VMZ60 | G37: =VLOOKUP(B37&D37,'[1]점검현황(금월)'!$D$2:$AG$263,19,0) -> e-ST | H37: =VLOOKUP(B37&D37,'[1]점검현황(금월)'!$D$2:$AG$263,25,0) -> 2020-02-13 | I37: =VLOOKUP(B37&D37,'[1]점검현황(금월)'!$D$7:$AG$263,27,0) -> 2020-02-13 | J37: =VLOOKUP(B37&D37,'[1]점검현황(금월)'!$D$7:$AG$263,23,0) -> 604 | K37: =VLOOKUP(B37&D37,'[1]점검현황(금월)'!$D$7:$AK$263,24,0) -> 11:50:00 | L37: =VLOOKUP(B37&D37,'[1]점검현황(금월)'!$D$7:$AK$263,34,0) -> 35 | M37: 704 | N37: 10:10:00
B38: 율곡관 | C38: 7 | D38: 252 | E38: =VLOOKUP(B38&D38,'[1]점검현황(금월)'!$D$7:$AG$261,2,0) -> 정치외교(자동녹화) | F38: =VLOOKUP(B38&D38,'[1]점검현황(금월)'!$D$7:$AG$263,3,0) -> VW540 | G38: =VLOOKUP(B38&D38,'[1]점검현황(금월)'!$D$2:$AG$263,19,0) -> e-ST | H38: =VLOOKUP(B38&D38,'[1]점검현황(금월)'!$D$2:$AG$263,25,0) -> 2019-08-00 | I38: =VLOOKUP(B38&D38,'[1]점검현황(금월)'!$D$7:$AG$263,27,0) -> 날짜 확인 불가(클리닝 권고) | J38: =VLOOKUP(B38&D38,'[1]점검현황(금월)'!$D$7:$AG$263,23,0) -> 604 | K38: =VLOOKUP(B38&D38,'[1]점검현황(금월)'!$D$7:$AK$263,24,0) -> 09:20:00 | L38: =VLOOKUP(B38&D38,'[1]점검현황(금월)'!$D$7:$AK$263,34,0) -> 490 | M38: 704 | N38: 10:20:00
B39: 율곡관 | C39: 8 | D39: 253 | E39: =VLOOKUP(B39&D39,'[1]점검현황(금월)'!$D$7:$AG$261,2,0) -> 멀티미디어 | F39: =VLOOKUP(B39&D39,'[1]점검현황(금월)'!$D$7:$AG$263,3,0) -> XU106K | G39: =VLOOKUP(B39&D39,'[1]점검현황(금월)'!$D$2:$AG$263,19,0) -> 구 | H39: =VLOOKUP(B39&D39,'[1]점검현황(금월)'!$D$2:$AG$263,25,0) -> 2018-08-20 | I39: =VLOOKUP(B39&D39,'[1]점검현황(금월)'!$D$7:$AG$263,27,0) -> 2020-03-20 | J39: =VLOOKUP(B39&D39,'[1]점검현황(금월)'!$D$7:$AG$263,23,0) -> 604 | K39: =VLOOKUP(B39&D39,'[1]점검현황(금월)'!$D$7:$AK$263,24,0) -> 09:30:00 | L39: =VLOOKUP(B39&D39,'[1]점검현황(금월)'!$D$7:$AK$263,34,0) -> 1167 | M39: 704 | N39: 10:30:00
B40: 율곡관 | C40: 9 | D40: 254 | E40: =VLOOKUP(B40&D40,'[1]점검현황(금월)'!$D$7:$AG$261,2,0) -> 멀티미디어 (자동녹화) | F40: =VLOOKUP(B40&D40,'[1]점검현황(금월)'!$D$7:$AG$263,3,0) -> XU106K | G40: =VLOOKUP(B40&D40,'[1]점검현황(금월)'!$D$2:$AG$263,19,0) -> 구e-ST | H40: =VLOOKUP(B40&D40,'[1]점검현황(금월)'!$D$2:$AG$263,25,0) -> 2018-11-06 | I40: =VLOOKUP(B40&D40,'[1]점검현황(금월)'!$D$7:$AG$263,27,0) -> 2020-01-09 | J40: =VLOOKUP(B40&D40,'[1]점검현황(금월)'!$D$7:$AG$263,23,0) -> 604 | K40: =VLOOKUP(B40&D40,'[1]점검현황(금월)'!$D$7:$AK$263,24,0) -> 09:40:00 | L40: =VLOOKUP(B40&D40,'[1]점검현황(금월)'!$D$7:$AK$263,34,0) -> 1179 | M40: 704 | N40: 10:40:00
B41: 율곡관 | C41: 10 | D41: 255 | E41: =VLOOKUP(B41&D41,'[1]점검현황(금월)'!$D$7:$AG$261,2,0) -> 행정학(자동녹화) | F41: =VLOOKUP(B41&D41,'[1]점검현황(금월)'!$D$7:$AG$263,3,0) -> VW540 | G41: =VLOOKUP(B41&D41,'[1]점검현황(금월)'!$D$2:$AG$263,19,0) -> e-ST | H41: =VLOOKUP(B41&D41,'[1]점검현황(금월)'!$D$2:$AG$263,25,0) -> 2019-08-00 | I41: =VLOOKUP(B41&D41,'[1]점검현황(금월)'!$D$7:$AG$263,27,0) -> 2019-08-00 | J41: =VLOOKUP(B41&D41,'[1]점검현황(금월)'!$D$7:$AG$263,23,0) -> 604 | K41: =VLOOKUP(B41&D41,'[1]점검현황(금월)'!$D$7:$AK$263,24,0) -> 09:50:00 | L41: =VLOOKUP(B41&D41,'[1]점검현황(금월)'!$D$7:$AK$263,34,0) -> 719 | M41: 704 | N41: 10:50:00
B42: 율곡관 | C42: 11 | D42: 256 | E42: =VLOOKUP(B42&D42,'[1]점검현황(금월)'!$D$7:$AG$261,2,0) -> 심리학(자동녹화) | F42: =VLOOKUP(B42&D42,'[1]점검현황(금월)'!$D$7:$AG$263,3,0) -> VW540 | G42: =VLOOKUP(B42&D42,'[1]점검현황(금월)'!$D$2:$AG$263,19,0) -> e-ST | H42: =VLOOKUP(B42&D42,'[1]점검현황(금월)'!$D$2:$AG$263,25,0) -> 2019-08-00 | I42: =VLOOKUP(B42&D42,'[1]점검현황(금월)'!$D$7:$AG$263,27,0) -> 2019-08-00 | J42: =VLOOKUP(B42&D42,'[1]점검현황(금월)'!$D$7:$AG$263,23,0) -> 604 | K42: =VLOOKUP(B42&D42,'[1]점검현황(금월)'!$D$7:$AK$263,24,0) -> 10:25:00 | L42: =VLOOKUP(B42&D42,'[1]점검현황(금월)'!$D$7:$AK$263,34,0) -> 838 | M42: 704 | N42: 11:00:00
B43: 율곡관 | C43: 12 | D43: 257 | E43: =VLOOKUP(B43&D43,'[1]점검현황(금월)'!$D$7:$AG$261,2,0) -> 사회학(자동녹화) | F43: =VLOOKUP(B43&D43,'[1]점검현황(금월)'!$D$7:$AG$263,3,0) -> VW540 | G43: =VLOOKUP(B43&D43,'[1]점검현황(금월)'!$D$2:$AG$263,19,0) -> e-ST | H43: =VLOOKUP(B43&D43,'[1]점검현황(금월)'!$D$2:$AG$263,25,0) -> 2019-08-00 | I43: =VLOOKUP(B43&D43,'[1]점검현황(금월)'!$D$7:$AG$263,27,0) -> 2019-08-00 | J43: =VLOOKUP(B43&D43,'[1]점검현황(금월)'!$D$7:$AG$263,23,0) -> 604 | K43: =VLOOKUP(B43&D43,'[1]점검현황(금월)'!$D$7:$AK$263,24,0) -> 10:10:00 | L43: =VLOOKUP(B43&D43,'[1]점검현황(금월)'!$D$7:$AK$263,34,0) -> 838 | M43: 704 | N43: 11:10:00
B44: 율곡관 | C44: 13 | D44: 258 | E44: =VLOOKUP(B44&D44,'[1]점검현황(금월)'!$D$7:$AG$261,2,0) -> 멀티미디어 (자동녹화) | F44: =VLOOKUP(B44&D44,'[1]점검현황(금월)'!$D$7:$AG$263,3,0) -> VX421 | G44: =VLOOKUP(B44&D44,'[1]점검현황(금월)'!$D$2:$AG$263,19,0) -> e-ST | H44: =VLOOKUP(B44&D44,'[1]점검현황(금월)'!$D$2:$AG$263,25,0) -> 2020-03-20 | I44: =VLOOKUP(B44&D44,'[1]점검현황(금월)'!$D$7:$AG$263,27,0) -> 2020-06-10 | J44: =VLOOKUP(B44&D44,'[1]점검현황(금월)'!$D$7:$AG$263,23,0) -> 610 | K44: =VLOOKUP(B44&D44,'[1]점검현황(금월)'!$D$7:$AK$263,24,0) -> 10:20:00 | L44: =VLOOKUP(B44&D44,'[1]점검현황(금월)'!$D$7:$AK$263,34,0) -> 0 | M44: 704 | N44: 11:20:00 | O44: 10,
B45: 율곡관 | C45: 14 | D45: 259 | E45: =VLOOKUP(B45&D45,'[1]점검현황(금월)'!$D$7:$AG$261,2,0) -> 멀티미디어 (자동녹화) | F45: =VLOOKUP(B45&D45,'[1]점검현황(금월)'!$D$7:$AG$263,3,0) -> VW540 | G45: =VLOOKUP(B45&D45,'[1]점검현황(금월)'!$D$2:$AG$263,19,0) -> e-ST | H45: =VLOOKUP(B45&D45,'[1]점검현황(금월)'!$D$2:$AG$263,25,0) -> 2020-01-14 | I45: =VLOOKUP(B45&D45,'[1]점검현황(금월)'!$D$7:$AG$263,27,0) -> 2020-01-14 | J45: =VLOOKUP(B45&D45,'[1]점검현황(금월)'!$D$7:$AG$263,23,0) -> 605 | K45: =VLOOKUP(B45&D45,'[1]점검현황(금월)'!$D$7:$AK$263,24,0) -> 10:30:00 | L45: =VLOOKUP(B45&D45,'[1]점검현황(금월)'!$D$7:$AK$263,34,0) -> 35 | M45: 704 | N45: 11:30:00
B46: 율곡관 | C46: 15 | D46: 260 | E46: =VLOOKUP(B46&D46,'[1]점검현황(금월)'!$D$7:$AG$261,2,0) -> 멀티미디어 (자동녹화) | F46: =VLOOKUP(B46&D46,'[1]점검현황(금월)'!$D$7:$AG$263,3,0) -> XU106K | G46: =VLOOKUP(B46&D46,'[1]점검현황(금월)'!$D$2:$AG$263,19,0) -> 구e-ST | H46: =VLOOKUP(B46&D46,'[1]점검현황(금월)'!$D$2:$AG$263,25,0) -> 2018-07-04 | I46: =VLOOKUP(B46&D46,'[1]점검현황(금월)'!$D$7:$AG$263,27,0) -> 2020-01-11 | J46: =VLOOKUP(B46&D46,'[1]점검현황(금월)'!$D$7:$AG$263,23,0) -> 605 | K46: =VLOOKUP(B46&D46,'[1]점검현황(금월)'!$D$7:$AK$263,24,0) -> 10:15:00 | L46: =VLOOKUP(B46&D46,'[1]점검현황(금월)'!$D$7:$AK$263,34,0) -> 256 | M46: 704 | N46: 11:40:00
B47: 율곡관 | C47: 16 | D47: 261 | E47: =VLOOKUP(B47&D47,'[1]점검현황(금월)'!$D$7:$AG$261,2,0) -> 멀티미디어 (자동녹화) | F47: =VLOOKUP(B47&D47,'[1]점검현황(금월)'!$D$7:$AG$263,3,0) -> VX421 | G47: =VLOOKUP(B47&D47,'[1]점검현황(금월)'!$D$2:$AG$263,19,0) -> 구e-ST | H47: =VLOOKUP(B47&D47,'[1]점검현황(금월)'!$D$2:$AG$263,25,0) -> 2020-03-20 | I47: =VLOOKUP(B47&D47,'[1]점검현황(금월)'!$D$7:$AG$263,27,0) -> 2020-06-11 | J47: =VLOOKUP(B47&D47,'[1]점검현황(금월)'!$D$7:$AG$263,23,0) -> 611 | K47: =VLOOKUP(B47&D47,'[1]점검현황(금월)'!$D$7:$AK$263,24,0) -> 13:50:00 | L47: =VLOOKUP(B47&D47,'[1]점검현황(금월)'!$D$7:$AK$263,34,0) -> 0 | M47: 704 | N47: 11:50:00 | O47: 11,
B48: 율곡관 | C48: 17 | D48: 262 | E48: =VLOOKUP(B48&D48,'[1]점검현황(금월)'!$D$7:$AG$261,2,0) -> 멀티미디어 | F48: =VLOOKUP(B48&D48,'[1]점검현황(금월)'!$D$7:$AG$263,3,0) -> VX421 | G48: =VLOOKUP(B48&D48,'[1]점검현황(금월)'!$D$2:$AG$263,19,0) -> 구 | H48: =VLOOKUP(B48&D48,'[1]점검현황(금월)'!$D$2:$AG$263,25,0) -> 2019-08-08 | I48: =VLOOKUP(B48&D48,'[1]점검현황(금월)'!$D$7:$AG$263,27,0) -> 2020-01-11 | J48: =VLOOKUP(B48&D48,'[1]점검현황(금월)'!$D$7:$AG$263,23,0) -> 605 | K48: =VLOOKUP(B48&D48,'[1]점검현황(금월)'!$D$7:$AK$263,24,0) -> 11:00:00 | L48: =VLOOKUP(B48&D48,'[1]점검현황(금월)'!$D$7:$AK$263,34,0) -> 453 | M48: 704 | N48: 12:00:00
B49: 율곡관 | C49: 18 | D49: 354 | E49: =VLOOKUP(B49&D49,'[1]점검현황(금월)'!$D$7:$AG$261,2,0) -> 대학원 | F49: =VLOOKUP(B49&D49,'[1]점검현황(금월)'!$D$7:$AG$263,3,0) -> LB280 | G49: =VLOOKUP(B49&D49,'[1]점검현황(금월)'!$D$2:$AG$263,19,0) -> e-ST | H49: =VLOOKUP(B49&D49,'[1]점검현황(금월)'!$D$2:$AG$263,25,0) -> 2015-10-11 | I49: =VLOOKUP(B49&D49,'[1]점검현황(금월)'!$D$7:$AG$263,27,0) -> 2015-07-15(클리닝 권고) | J49: =VLOOKUP(B49&D49,'[1]점검현황(금월)'!$D$7:$AG$263,23,0) -> 605 | K49: =VLOOKUP(B49&D49,'[1]점검현황(금월)'!$D$7:$AK$263,24,0) -> 15:37:00 | L49: =VLOOKUP(B49&D49,'[1]점검현황(금월)'!$D$7:$AK$263,34,0) -> 1968 | M49: 704 | N49: 13:00:00 | O49: 3,
B50: 율곡관 | C50: 19 | D50: 356 | E50: =VLOOKUP(B50&D50,'[1]점검현황(금월)'!$D$7:$AG$261,2,0) -> 경제학 | F50: =VLOOKUP(B50&D50,'[1]점검현황(금월)'!$D$7:$AG$263,3,0) -> VW540 | G50: =VLOOKUP(B50&D50,'[1]점검현황(금월)'!$D$2:$AG$263,19,0) -> e-ST | H50: =VLOOKUP(B50&D50,'[1]점검현황(금월)'!$D$2:$AG$263,25,0) -> 2019-08-00 | I50: =VLOOKUP(B50&D50,'[1]점검현황(금월)'!$D$7:$AG$263,27,0) -> 2019-08-00 | J50: =VLOOKUP(B50&D50,'[1]점검현황(금월)'!$D$7:$AG$263,23,0) -> 605 | K50: =VLOOKUP(B50&D50,'[1]점검현황(금월)'!$D$7:$AK$263,24,0) -> 11:20:00 | L50: =VLOOKUP(B50&D50,'[1]점검현황(금월)'!$D$7:$AK$263,34,0) -> 288 | M50: 704 | N50: 13:10:00
B51: 율곡관 | C51: 20 | D51: 357 | E51: =VLOOKUP(B51&D51,'[1]점검현황(금월)'!$D$7:$AG$261,2,0) -> 대학원 | F51: =VLOOKUP(B51&D51,'[1]점검현황(금월)'!$D$7:$AG$263,3,0) -> VX421 | G51: =VLOOKUP(B51&D51,'[1]점검현황(금월)'!$D$2:$AG$263,19,0) -> e-ST | H51: =VLOOKUP(B51&D51,'[1]점검현황(금월)'!$D$2:$AG$263,25,0) -> 2016-02-16 | I51: =VLOOKUP(B51&D51,'[1]점검현황(금월)'!$D$7:$AG$263,27,0) -> 2017-08-30 | J51: =VLOOKUP(B51&D51,'[1]점검현황(금월)'!$D$7:$AG$263,23,0) -> 605 | K51: =VLOOKUP(B51&D51,'[1]점검현황(금월)'!$D$7:$AK$263,24,0) -> 11:30:00 | L51: =VLOOKUP(B51&D51,'[1]점검현황(금월)'!$D$7:$AK$263,34,0) -> 3611 | M51: 704 | N51: 13:20:00
B52: 율곡관 | C52: 21 | D52: 358-1 | E52: =VLOOKUP(B52&D52,'[1]점검현황(금월)'!$D$7:$AG$261,2,0) -> 멀티미디어 (자동녹화) | F52: =VLOOKUP(B52&D52,'[1]점검현황(금월)'!$D$7:$AG$263,3,0) -> XU106K | G52: =VLOOKUP(B52&D52,'[1]점검현황(금월)'!$D$2:$AG$263,19,0) -> e-ST | H52: =VLOOKUP(B52&D52,'[1]점검현황(금월)'!$D$2:$AG$263,25,0) -> 2020-03-27 | I52: =VLOOKUP(B52&D52,'[1]점검현황(금월)'!$D$7:$AG$263,27,0) -> 2020-05-15 | J52: =VLOOKUP(B52&D52,'[1]점검현황(금월)'!$D$7:$AG$263,23,0) -> 605 | K52: =VLOOKUP(B52&D52,'[1]점검현황(금월)'!$D$7:$AK$263,24,0) -> 13:20:00 | L52: =VLOOKUP(B52&D52,'[1]점검현황(금월)'!$D$7:$AK$263,34,0) -> 176 | M52: 704 | N52: 13:30:00
B53: 율곡관 | C53: 22 | D53: 359 | E53: =VLOOKUP(B53&D53,'[1]점검현황(금월)'!$D$7:$AG$261,2,0) -> 멀티미디어 | F53: =VLOOKUP(B53&D53,'[1]점검현황(금월)'!$D$7:$AG$263,3,0) -> VX600 | G53: =VLOOKUP(B53&D53,'[1]점검현황(금월)'!$D$2:$AG$263,19,0) -> e-ST | H53: =VLOOKUP(B53&D53,'[1]점검현황(금월)'!$D$2:$AG$263,25,0) -> 2019-01-07 | I53: =VLOOKUP(B53&D53,'[1]점검현황(금월)'!$D$7:$AG$263,27,0) -> 2020-01-10 | J53: =VLOOKUP(B53&D53,'[1]점검현황(금월)'!$D$7:$AG$263,23,0) -> 618 | K53: =VLOOKUP(B53&D53,'[1]점검현황(금월)'!$D$7:$AK$263,24,0) -> 14:47:00 | L53: =VLOOKUP(B53&D53,'[1]점검현황(금월)'!$D$7:$AK$263,34,0) -> 919 | M53: 704 | N53: 13:40:00 | O53: 18(2)
B54: 율곡관 | C54: 23 | D54: 425 | E54: =VLOOKUP(B54&D54,'[1]점검현황(금월)'!$D$7:$AG$261,2,0) -> 대학원 | F54: =VLOOKUP(B54&D54,'[1]점검현황(금월)'!$D$7:$AG$263,3,0) -> VX421 | G54: =VLOOKUP(B54&D54,'[1]점검현황(금월)'!$D$2:$AG$263,19,0) -> e-ST | H54: =VLOOKUP(B54&D54,'[1]점검현황(금월)'!$D$2:$AG$263,25,0) -> 2017-02-22 | I54: =VLOOKUP(B54&D54,'[1]점검현황(금월)'!$D$7:$AG$263,27,0) -> 2017-02-22 | J54: =VLOOKUP(B54&D54,'[1]점검현황(금월)'!$D$7:$AG$263,23,0) -> 608 | K54: =VLOOKUP(B54&D54,'[1]점검현황(금월)'!$D$7:$AK$263,24,0) -> 12:00:00 | L54: =VLOOKUP(B54&D54,'[1]점검현황(금월)'!$D$7:$AK$263,34,0) -> 1622 | M54: 706 | N54: 08:30:00 | O54: 3,
B55: 율곡관 | C55: 24 | D55: 528 | E55: =VLOOKUP(B55&D55,'[1]점검현황(금월)'!$D$7:$AG$261,2,0) -> 대학원 | F55: =VLOOKUP(B55&D55,'[1]점검현황(금월)'!$D$7:$AG$263,3,0) -> VX421 | G55: =VLOOKUP(B55&D55,'[1]점검현황(금월)'!$D$2:$AG$263,19,0) -> e-ST | H55: =VLOOKUP(B55&D55,'[1]점검현황(금월)'!$D$2:$AG$263,25,0) -> 2017-02-22 | I55: =VLOOKUP(B55&D55,'[1]점검현황(금월)'!$D$7:$AG$263,27,0) -> 2017-02-22 | J55: =VLOOKUP(B55&D55,'[1]점검현황(금월)'!$D$7:$AG$263,23,0) -> 608 | K55: =VLOOKUP(B55&D55,'[1]점검현황(금월)'!$D$7:$AK$263,24,0) -> 12:00:00 | L55: =VLOOKUP(B55&D55,'[1]점검현황(금월)'!$D$7:$AK$263,34,0) -> 1265 | M55: 706 | N55: 08:30:00
A56: 성호관 | B56: 성호관 | C56: 1 | D56: 소극장 | E56: =VLOOKUP(B56&D56,'[1]점검현황(금월)'!$D$7:$AG$261,2,0) -> 소극장 135호 | F56: =VLOOKUP(B56&D56,'[1]점검현황(금월)'!$D$7:$AG$263,3,0) -> EX16KE | G56: =VLOOKUP(B56&D56,'[1]점검현황(금월)'!$D$2:$AG$263,19,0) -> e-ST | H56: =VLOOKUP(B56&D56,'[1]점검현황(금월)'!$D$2:$AG$263,25,0) -> 2020-03-19 | I56: =VLOOKUP(B56&D56,'[1]점검현황(금월)'!$D$7:$AG$263,27,0) -> 날짜 확인 불가(클리닝 권고) | J56: =VLOOKUP(B56&D56,'[1]점검현황(금월)'!$D$7:$AG$263,23,0) -> 611 | K56: =VLOOKUP(B56&D56,'[1]점검현황(금월)'!$D$7:$AK$263,24,0) -> 10:00:00 | L56: =VLOOKUP(B56&D56,'[1]점검현황(금월)'!$D$7:$AK$263,34,0) -> 68/0/0/0 | M56: 706 | N56: 08:50:00 | O56: 11,
B57: 성호관 | C57: 2 | D57: 103 | E57: =VLOOKUP(B57&D57,'[1]점검현황(금월)'!$D$7:$AG$261,2,0) -> 인문대 (PC실) | F57: =VLOOKUP(B57&D57,'[1]점검현황(금월)'!$D$7:$AG$263,3,0) -> VX421 | G57: =VLOOKUP(B57&D57,'[1]점검현황(금월)'!$D$2:$AG$263,19,0) -> e-ST | H57: =VLOOKUP(B57&D57,'[1]점검현황(금월)'!$D$2:$AG$263,25,0) -> 2019-08-23 | I57: =VLOOKUP(B57&D57,'[1]점검현황(금월)'!$D$7:$AG$263,27,0) -> 2016-12-23(클리닝 권고) | J57: =VLOOKUP(B57&D57,'[1]점검현황(금월)'!$D$7:$AG$263,23,0) -> 608 | K57: =VLOOKUP(B57&D57,'[1]점검현황(금월)'!$D$7:$AK$263,24,0) -> 13:20:00 | L57: =VLOOKUP(B57&D57,'[1]점검현황(금월)'!$D$7:$AK$263,34,0) -> 363 | M57: 706 | N57: 19:00:00
B58: 성호관 | C58: 3 | D58: 104 | E58: =VLOOKUP(B58&D58,'[1]점검현황(금월)'!$D$7:$AG$261,2,0) -> 멀티미디어 | F58: =VLOOKUP(B58&D58,'[1]점검현황(금월)'!$D$7:$AG$263,3,0) -> XU106K | G58: =VLOOKUP(B58&D58,'[1]점검현황(금월)'!$D$2:$AG$263,19,0) -> e-ST | H58: =VLOOKUP(B58&D58,'[1]점검현황(금월)'!$D$2:$AG$263,25,0) -> 2019-10-14 | I58: =VLOOKUP(B58&D58,'[1]점검현황(금월)'!$D$7:$AG$263,27,0) -> 2020-03-26 | J58: =VLOOKUP(B58&D58,'[1]점검현황(금월)'!$D$7:$AG$263,23,0) -> 608 | K58: =VLOOKUP(B58&D58,'[1]점검현황(금월)'!$D$7:$AK$263,24,0) -> 12:10:00 | L58: =VLOOKUP(B58&D58,'[1]점검현황(금월)'!$D$7:$AK$263,34,0) -> 395 | M58: 706 | N58: 19:10:00
B59: 성호관 | C59: 4 | D59: 105 | E59: =VLOOKUP(B59&D59,'[1]점검현황(금월)'!$D$7:$AG$261,2,0) -> 멀티미디어 | F59: =VLOOKUP(B59&D59,'[1]점검현황(금월)'!$D$7:$AG$263,3,0) -> VX410 | G59: =VLOOKUP(B59&D59,'[1]점검현황(금월)'!$D$2:$AG$263,19,0) -> e-ST | H59: =VLOOKUP(B59&D59,'[1]점검현황(금월)'!$D$2:$AG$263,25,0) -> 2019-11-29 | I59: =VLOOKUP(B59&D59,'[1]점검현황(금월)'!$D$7:$AG$263,27,0) -> 2020-03-27 | J59: =VLOOKUP(B59&D59,'[1]점검현황(금월)'!$D$7:$AG$263,23,0) -> 608 | K59: =VLOOKUP(B59&D59,'[1]점검현황(금월)'!$D$7:$AK$263,24,0) -> 11:40:00 | L59: =VLOOKUP(B59&D59,'[1]점검현황(금월)'!$D$7:$AK$263,34,0) -> 92 | M59: 706 | N59: 19:20:00
B60: 성호관 | C60: 5 | D60: 131 | E60: =VLOOKUP(B60&D60,'[1]점검현황(금월)'!$D$7:$AG$261,2,0) -> 멀티미디어 (자동녹화) | F60: =VLOOKUP(B60&D60,'[1]점검현황(금월)'!$D$7:$AG$263,3,0) -> VX600 | G60: =VLOOKUP(B60&D60,'[1]점검현황(금월)'!$D$2:$AG$263,19,0) -> e-ST | H60: =VLOOKUP(B60&D60,'[1]점검현황(금월)'!$D$2:$AG$263,25,0) -> 2019-11-06 | I60: =VLOOKUP(B60&D60,'[1]점검현황(금월)'!$D$7:$AG$263,27,0) -> 2020-03-20 | J60: =VLOOKUP(B60&D60,'[1]점검현황(금월)'!$D$7:$AG$263,23,0) -> 608 | K60: =VLOOKUP(B60&D60,'[1]점검현황(금월)'!$D$7:$AK$263,24,0) -> 10:35:00 | L60: =VLOOKUP(B60&D60,'[1]점검현황(금월)'!$D$7:$AK$263,34,0) -> 76 | M60: 706 | N60: 08:30:00
B61: 성호관 | C61: 6 | D61: 132 | E61: =VLOOKUP(B61&D61,'[1]점검현황(금월)'!$D$7:$AG$261,2,0) -> 멀티미디어 | F61: =VLOOKUP(B61&D61,'[1]점검현황(금월)'!$D$7:$AG$263,3,0) -> XU106K | G61: =VLOOKUP(B61&D61,'[1]점검현황(금월)'!$D$2:$AG$263,19,0) -> e-ST | H61: =VLOOKUP(B61&D61,'[1]점검현황(금월)'!$D$2:$AG$263,25,0) -> 2019-08-14 | I61: =VLOOKUP(B61&D61,'[1]점검현황(금월)'!$D$7:$AG$263,27,0) -> 2020-01-14 | J61: =VLOOKUP(B61&D61,'[1]점검현황(금월)'!$D$7:$AG$263,23,0) -> 608 | K61: =VLOOKUP(B61&D61,'[1]점검현황(금월)'!$D$7:$AK$263,24,0) -> 19:30:00 | L61: =VLOOKUP(B61&D61,'[1]점검현황(금월)'!$D$7:$AK$263,34,0) -> 547 | M61: 706 | N61: 08:40:00
B62: 성호관 | C62: 7 | D62: 133 | E62: =VLOOKUP(B62&D62,'[1]점검현황(금월)'!$D$7:$AG$261,2,0) -> 멀티미디어 | F62: =VLOOKUP(B62&D62,'[1]점검현황(금월)'!$D$7:$AG$263,3,0) -> VX410 | G62: =VLOOKUP(B62&D62,'[1]점검현황(금월)'!$D$2:$AG$263,19,0) -> e-ST | H62: =VLOOKUP(B62&D62,'[1]점검현황(금월)'!$D$2:$AG$263,25,0) -> 2019-08-14 | I62: =VLOOKUP(B62&D62,'[1]점검현황(금월)'!$D$7:$AG$263,27,0) -> 2020-06-12 | J62: =VLOOKUP(B62&D62,'[1]점검현황(금월)'!$D$7:$AG$263,23,0) -> 612 | K62: =VLOOKUP(B62&D62,'[1]점검현황(금월)'!$D$7:$AK$263,24,0) -> 08:30:00 | L62: =VLOOKUP(B62&D62,'[1]점검현황(금월)'!$D$7:$AK$263,34,0) -> 374 | M62: 706 | N62: 08:50:00 | O62: 12,
B63: 성호관 | C63: 8 | D63: 201 | E63: =VLOOKUP(B63&D63,'[1]점검현황(금월)'!$D$7:$AG$261,2,0) -> 다산학부 | F63: =VLOOKUP(B63&D63,'[1]점검현황(금월)'!$D$7:$AG$263,3,0) -> VW540 | G63: =VLOOKUP(B63&D63,'[1]점검현황(금월)'!$D$2:$AG$263,19,0) -> e-ST | H63: =VLOOKUP(B63&D63,'[1]점검현황(금월)'!$D$2:$AG$263,25,0) -> 2020-01-10 | I63: =VLOOKUP(B63&D63,'[1]점검현황(금월)'!$D$7:$AG$263,27,0) -> 2020-06-13 | J63: =VLOOKUP(B63&D63,'[1]점검현황(금월)'!$D$7:$AG$263,23,0) -> 613 | K63: =VLOOKUP(B63&D63,'[1]점검현황(금월)'!$D$7:$AK$263,24,0) -> 08:40:00 | L63: =VLOOKUP(B63&D63,'[1]점검현황(금월)'!$D$7:$AK$263,34,0) -> 8 | M63: 706 | N63: 19:00:00 | O63: 13,
B64: 성호관 | C64: 9 | D64: 201-1 | E64: =VLOOKUP(B64&D64,'[1]점검현황(금월)'!$D$7:$AG$261,2,0) -> 멀티미디어 | F64: =VLOOKUP(B64&D64,'[1]점검현황(금월)'!$D$7:$AG$263,3,0) -> VX421 | G64: =VLOOKUP(B64&D64,'[1]점검현황(금월)'!$D$2:$AG$263,19,0) -> e-ST | H64: =VLOOKUP(B64&D64,'[1]점검현황(금월)'!$D$2:$AG$263,25,0) -> 2020-01-07 | I64: =VLOOKUP(B64&D64,'[1]점검현황(금월)'!$D$7:$AG$263,27,0) -> 2020-02-13 | J64: =VLOOKUP(B64&D64,'[1]점검현황(금월)'!$D$7:$AG$263,23,0) -> 609 | K64: =VLOOKUP(B64&D64,'[1]점검현황(금월)'!$D$7:$AK$263,24,0) -> 18:50:00 | L64: =VLOOKUP(B64&D64,'[1]점검현황(금월)'!$D$7:$AK$263,34,0) -> 37 | M64: 707 | N64: 19:10:00
B65: 성호관 | C65: 10 | D65: 202 | E65: =VLOOKUP(B65&D65,'[1]점검현황(금월)'!$D$7:$AG$261,2,0) -> 멀티미디어 | F65: =VLOOKUP(B65&D65,'[1]점검현황(금월)'!$D$7:$AG$263,3,0) -> VX410 | G65: =VLOOKUP(B65&D65,'[1]점검현황(금월)'!$D$2:$AG$263,19,0) -> e-ST | H65: =VLOOKUP(B65&D65,'[1]점검현황(금월)'!$D$2:$AG$263,25,0) -> 2018-06-27 | I65: =VLOOKUP(B65&D65,'[1]점검현황(금월)'!$D$7:$AG$263,27,0) -> 2020-06-13 | J65: =VLOOKUP(B65&D65,'[1]점검현황(금월)'!$D$7:$AG$263,23,0) -> 613 | K65: =VLOOKUP(B65&D65,'[1]점검현황(금월)'!$D$7:$AK$263,24,0) -> 19:00:00 | L65: =VLOOKUP(B65&D65,'[1]점검현황(금월)'!$D$7:$AK$263,34,0) -> 455 | M65: 707 | N65: 19:20:00 | O65: 13,
B66: 성호관 | C66: 11 | D66: 203 | E66: =VLOOKUP(B66&D66,'[1]점검현황(금월)'!$D$7:$AG$261,2,0) -> 멀티미디어 (자동녹화) | F66: =VLOOKUP(B66&D66,'[1]점검현황(금월)'!$D$7:$AG$263,3,0) -> VX421 | G66: =VLOOKUP(B66&D66,'[1]점검현황(금월)'!$D$2:$AG$263,19,0) -> e-ST | H66: =VLOOKUP(B66&D66,'[1]점검현황(금월)'!$D$2:$AG$263,25,0) -> 2018-06-22 | I66: =VLOOKUP(B66&D66,'[1]점검현황(금월)'!$D$7:$AG$263,27,0) -> 2020-06-15 | J66: =VLOOKUP(B66&D66,'[1]점검현황(금월)'!$D$7:$AG$263,23,0) -> 617 | K66: =VLOOKUP(B66&D66,'[1]점검현황(금월)'!$D$7:$AK$263,24,0) -> 17:22:00 | L66: =VLOOKUP(B66&D66,'[1]점검현황(금월)'!$D$7:$AK$263,34,0) -> 1561 | M66: 707 | N66: 08:30:00 | O66: 15,17
B67: 성호관 | C67: 12 | D67: 204 | E67: =VLOOKUP(B67&D67,'[1]점검현황(금월)'!$D$7:$AG$261,2,0) -> 멀티미디어 (자동녹화) | F67: =VLOOKUP(B67&D67,'[1]점검현황(금월)'!$D$7:$AG$263,3,0) -> XU106K | G67: =VLOOKUP(B67&D67,'[1]점검현황(금월)'!$D$2:$AG$263,19,0) -> e-ST | H67: =VLOOKUP(B67&D67,'[1]점검현황(금월)'!$D$2:$AG$263,25,0) -> 2018-11-21 | I67: =VLOOKUP(B67&D67,'[1]점검현황(금월)'!$D$7:$AG$263,27,0) -> 2020-03-20 | J67: =VLOOKUP(B67&D67,'[1]점검현황(금월)'!$D$7:$AG$263,23,0) -> 609 | K67: =VLOOKUP(B67&D67,'[1]점검현황(금월)'!$D$7:$AK$263,24,0) -> 19:20:00 | L67: =VLOOKUP(B67&D67,'[1]점검현황(금월)'!$D$7:$AK$263,34,0) -> 174 | M67: 707 | N67: 08:40:00
B68: 성호관 | C68: 13 | D68: 205 | E68: =VLOOKUP(B68&D68,'[1]점검현황(금월)'!$D$7:$AG$261,2,0) -> 멀티미디어 (자동녹화) | F68: =VLOOKUP(B68&D68,'[1]점검현황(금월)'!$D$7:$AG$263,3,0) -> XU106K | G68: =VLOOKUP(B68&D68,'[1]점검현황(금월)'!$D$2:$AG$263,19,0) -> e-ST | H68: =VLOOKUP(B68&D68,'[1]점검현황(금월)'!$D$2:$AG$263,25,0) -> 2019-08-14 | I68: =VLOOKUP(B68&D68,'[1]점검현황(금월)'!$D$7:$AG$263,27,0) -> 2020-03-20 | J68: =VLOOKUP(B68&D68,'[1]점검현황(금월)'!$D$7:$AG$263,23,0) -> 609 | K68: =VLOOKUP(B68&D68,'[1]점검현황(금월)'!$D$7:$AK$263,24,0) -> 08:30:00 | L68: =VLOOKUP(B68&D68,'[1]점검현황(금월)'!$D$7:$AK$263,34,0) -> 502 | M68: 707 | N68: 08:50:00
B69: 성호관 | C69: 14 | D69: 232 | E69: =VLOOKUP(B69&D69,'[1]점검현황(금월)'!$D$7:$AG$261,2,0) -> 멀티미디어 | F69: =VLOOKUP(B69&D69,'[1]점검현황(금월)'!$D$7:$AG$263,3,0) -> VX410 | G69: =VLOOKUP(B69&D69,'[1]점검현황(금월)'!$D$2:$AG$263,19,0) -> e-ST | H69: =VLOOKUP(B69&D69,'[1]점검현황(금월)'!$D$2:$AG$263,25,0) -> 2018-11-26 | I69: =VLOOKUP(B69&D69,'[1]점검현황(금월)'!$D$7:$AG$263,27,0) -> 2020-05-18 | J69: =VLOOKUP(B69&D69,'[1]점검현황(금월)'!$D$7:$AG$263,23,0) -> 609 | K69: =VLOOKUP(B69&D69,'[1]점검현황(금월)'!$D$7:$AK$263,24,0) -> 14:50:00 | L69: =VLOOKUP(B69&D69,'[1]점검현황(금월)'!$D$7:$AK$263,34,0) -> 1189 | M69: 707 | N69: 19:00:00
B70: 성호관 | C70: 15 | D70: 233 | E70: =VLOOKUP(B70&D70,'[1]점검현황(금월)'!$D$7:$AG$261,2,0) -> 다산학부 | F70: =VLOOKUP(B70&D70,'[1]점검현황(금월)'!$D$7:$AG$263,3,0) -> VW540 | G70: =VLOOKUP(B70&D70,'[1]점검현황(금월)'!$D$2:$AG$263,19,0) -> 구 | H70: =VLOOKUP(B70&D70,'[1]점검현황(금월)'!$D$2:$AG$263,25,0) -> 2020-01-10 | I70: =VLOOKUP(B70&D70,'[1]점검현황(금월)'!$D$7:$AG$263,27,0) -> 2020-06-16 | J70: =VLOOKUP(B70&D70,'[1]점검현황(금월)'!$D$7:$AG$263,23,0) -> 616 | K70: =VLOOKUP(B70&D70,'[1]점검현황(금월)'!$D$7:$AK$263,24,0) -> 08:50:00 | L70: =VLOOKUP(B70&D70,'[1]점검현황(금월)'!$D$7:$AK$263,34,0) -> 16 | M70: 707 | N70: 19:10:00 | O70: 16,
B71: 성호관 | C71: 16 | D71: 234 | E71: =VLOOKUP(B71&D71,'[1]점검현황(금월)'!$D$7:$AG$261,2,0) -> 다산학부(자동녹화) | F71: =VLOOKUP(B71&D71,'[1]점검현황(금월)'!$D$7:$AG$263,3,0) -> VW540 | G71: =VLOOKUP(B71&D71,'[1]점검현황(금월)'!$D$2:$AG$263,19,0) -> e-ST | H71: =VLOOKUP(B71&D71,'[1]점검현황(금월)'!$D$2:$AG$263,25,0) -> 2020-02-21 | I71: =VLOOKUP(B71&D71,'[1]점검현황(금월)'!$D$7:$AG$263,27,0) -> 2020-02-21 | J71: =VLOOKUP(B71&D71,'[1]점검현황(금월)'!$D$7:$AG$263,23,0) -> 609 | K71: =VLOOKUP(B71&D71,'[1]점검현황(금월)'!$D$7:$AK$263,24,0) -> 19:00:00 | L71: =VLOOKUP(B71&D71,'[1]점검현황(금월)'!$D$7:$AK$263,34,0) -> 128 | M71: 707 | N71: 19:20:00
B72: 성호관 | C72: 17 | D72: 235 | E72: =VLOOKUP(B72&D72,'[1]점검현황(금월)'!$D$7:$AG$261,2,0) -> 다산학부 | F72: =VLOOKUP(B72&D72,'[1]점검현황(금월)'!$D$7:$AG$263,3,0) -> VW540 | G72: =VLOOKUP(B72&D72,'[1]점검현황(금월)'!$D$2:$AG$263,19,0) -> 구 | H72: =VLOOKUP(B72&D72,'[1]점검현황(금월)'!$D$2:$AG$263,25,0) -> 2020-01-10 | I72: =VLOOKUP(B72&D72,'[1]점검현황(금월)'!$D$7:$AG$263,27,0) -> 2020-03-23 | J72: =VLOOKUP(B72&D72,'[1]점검현황(금월)'!$D$7:$AG$263,23,0) -> 609 | K72: =VLOOKUP(B72&D72,'[1]점검현황(금월)'!$D$7:$AK$263,24,0) -> 13:05:00 | L72: =VLOOKUP(B72&D72,'[1]점검현황(금월)'!$D$7:$AK$263,34,0) -> 10 | M72: 707 | N72: 08:30:00
B73: 성호관 | C73: 18 | D73: 236 | E73: =VLOOKUP(B73&D73,'[1]점검현황(금월)'!$D$7:$AG$261,2,0) -> 다산학부 | F73: =VLOOKUP(B73&D73,'[1]점검현황(금월)'!$D$7:$AG$263,3,0) -> VW540 | G73: =VLOOKUP(B73&D73,'[1]점검현황(금월)'!$D$2:$AG$263,19,0) -> 구 | H73: =VLOOKUP(B73&D73,'[1]점검현황(금월)'!$D$2:$AG$263,25,0) -> 2020-01-10 | I73: =VLOOKUP(B73&D73,'[1]점검현황(금월)'!$D$7:$AG$263,27,0) -> 2020-04-21 | J73: =VLOOKUP(B73&D73,'[1]점검현황(금월)'!$D$7:$AG$263,23,0) -> 609 | K73: =VLOOKUP(B73&D73,'[1]점검현황(금월)'!$D$7:$AK$263,24,0) -> 19:20:00 | L73: =VLOOKUP(B73&D73,'[1]점검현황(금월)'!$D$7:$AK$263,34,0) -> 9 | M73: 707 | N73: 08:40:00
B74: 성호관 | C74: 19 | D74: 237 | E74: =VLOOKUP(B74&D74,'[1]점검현황(금월)'!$D$7:$AG$261,2,0) -> 멀티미디어 | F74: =VLOOKUP(B74&D74,'[1]점검현황(금월)'!$D$7:$AG$263,3,0) -> VX410 | G74: =VLOOKUP(B74&D74,'[1]점검현황(금월)'!$D$2:$AG$263,19,0) -> e-ST | H74: =VLOOKUP(B74&D74,'[1]점검현황(금월)'!$D$2:$AG$263,25,0) -> 2018-09-12 | I74: =VLOOKUP(B74&D74,'[1]점검현황(금월)'!$D$7:$AG$263,27,0) -> 2020-01-16 | J74: =VLOOKUP(B74&D74,'[1]점검현황(금월)'!$D$7:$AG$263,23,0) -> 610 | K74: =VLOOKUP(B74&D74,'[1]점검현황(금월)'!$D$7:$AK$263,24,0) -> 08:30:00 | L74: =VLOOKUP(B74&D74,'[1]점검현황(금월)'!$D$7:$AK$263,34,0) -> 1042 | M74: 708 | N74: 08:50:00
B75: 성호관 | C75: 20 | D75: 303 | E75: =VLOOKUP(B75&D75,'[1]점검현황(금월)'!$D$7:$AG$261,2,0) -> 교수학습 (자동녹화) | F75: =VLOOKUP(B75&D75,'[1]점검현황(금월)'!$D$7:$AG$263,3,0) -> VGZ601 | G75: =VLOOKUP(B75&D75,'[1]점검현황(금월)'!$D$2:$AG$263,19,0) -> e-ST | H75: =VLOOKUP(B75&D75,'[1]점검현황(금월)'!$D$2:$AG$263,25,0) -> 2020-02-25 | I75: =VLOOKUP(B75&D75,'[1]점검현황(금월)'!$D$7:$AG$263,27,0) -> 2020-02-25 | J75: =VLOOKUP(B75&D75,'[1]점검현황(금월)'!$D$7:$AG$263,23,0) -> 610 | K75: =VLOOKUP(B75&D75,'[1]점검현황(금월)'!$D$7:$AK$263,24,0) -> 15:56:00 | L75: =VLOOKUP(B75&D75,'[1]점검현황(금월)'!$D$7:$AK$263,34,0) -> 22 | M75: 708 | N75: 09:50:00
B76: 성호관 | C76: 21 | D76: 304 | E76: =VLOOKUP(B76&D76,'[1]점검현황(금월)'!$D$7:$AG$261,2,0) -> 멀티미디어 | F76: =VLOOKUP(B76&D76,'[1]점검현황(금월)'!$D$7:$AG$263,3,0) -> VX600 | G76: =VLOOKUP(B76&D76,'[1]점검현황(금월)'!$D$2:$AG$263,19,0) -> e-ST | H76: =VLOOKUP(B76&D76,'[1]점검현황(금월)'!$D$2:$AG$263,25,0) -> 2018-08-04 | I76: =VLOOKUP(B76&D76,'[1]점검현황(금월)'!$D$7:$AG$263,27,0) -> 2020-01-17 | J76: =VLOOKUP(B76&D76,'[1]점검현황(금월)'!$D$7:$AG$263,23,0) -> 615 | K76: =VLOOKUP(B76&D76,'[1]점검현황(금월)'!$D$7:$AK$263,24,0) -> 13:47:00 | L76: =VLOOKUP(B76&D76,'[1]점검현황(금월)'!$D$7:$AK$263,34,0) -> 580 | M76: 708 | N76: 19:10:00 | O76: 15,
B77: 성호관 | C77: 22 | D77: 305 | E77: =VLOOKUP(B77&D77,'[1]점검현황(금월)'!$D$7:$AG$261,2,0) -> 멀티미디어 (자동녹화) | F77: =VLOOKUP(B77&D77,'[1]점검현황(금월)'!$D$7:$AG$263,3,0) -> VX410 | G77: =VLOOKUP(B77&D77,'[1]점검현황(금월)'!$D$2:$AG$263,19,0) -> 구e-ST | H77: =VLOOKUP(B77&D77,'[1]점검현황(금월)'!$D$2:$AG$263,25,0) -> 2019-06-12 | I77: =VLOOKUP(B77&D77,'[1]점검현황(금월)'!$D$7:$AG$263,27,0) -> 2020-02-13 | J77: =VLOOKUP(B77&D77,'[1]점검현황(금월)'!$D$7:$AG$263,23,0) -> 610 | K77: =VLOOKUP(B77&D77,'[1]점검현황(금월)'!$D$7:$AK$263,24,0) -> 19:00:00 | L77: =VLOOKUP(B77&D77,'[1]점검현황(금월)'!$D$7:$AK$263,34,0) -> 1003 | M77: 708 | N77: 19:20:00
B78: 성호관 | C78: 23 | D78: 306 | E78: =VLOOKUP(B78&D78,'[1]점검현황(금월)'!$D$7:$AG$261,2,0) -> 멀티미디어 | F78: =VLOOKUP(B78&D78,'[1]점검현황(금월)'!$D$7:$AG$263,3,0) -> VX600 | G78: =VLOOKUP(B78&D78,'[1]점검현황(금월)'!$D$2:$AG$263,19,0) -> e-ST | H78: =VLOOKUP(B78&D78,'[1]점검현황(금월)'!$D$2:$AG$263,25,0) -> 2020-01-07 | I78: =VLOOKUP(B78&D78,'[1]점검현황(금월)'!$D$7:$AG$263,27,0) -> 2020-03-02 | J78: =VLOOKUP(B78&D78,'[1]점검현황(금월)'!$D$7:$AG$263,23,0) -> 616 | K78: =VLOOKUP(B78&D78,'[1]점검현황(금월)'!$D$7:$AK$263,24,0) -> 13:04:00 | L78: =VLOOKUP(B78&D78,'[1]점검현황(금월)'!$D$7:$AK$263,34,0) -> 0 | M78: 708 | N78: 08:30:00
B79: 성호관 | C79: 24 | D79: 332 | E79: =VLOOKUP(B79&D79,'[1]점검현황(금월)'!$D$7:$AG$261,2,0) -> 멀티미디어 | F79: =VLOOKUP(B79&D79,'[1]점검현황(금월)'!$D$7:$AG$263,3,0) -> VX431 | G79: =VLOOKUP(B79&D79,'[1]점검현황(금월)'!$D$2:$AG$263,19,0) -> e-ST | H79: =VLOOKUP(B79&D79,'[1]점검현황(금월)'!$D$2:$AG$263,25,0) -> 2019-00-00 | I79: =VLOOKUP(B79&D79,'[1]점검현황(금월)'!$D$7:$AG$263,27,0) -> 2020-04-17 | J79: =VLOOKUP(B79&D79,'[1]점검현황(금월)'!$D$7:$AG$263,23,0) -> 615 | K79: =VLOOKUP(B79&D79,'[1]점검현황(금월)'!$D$7:$AK$263,24,0) -> 15:56:00 | L79: =VLOOKUP(B79&D79,'[1]점검현황(금월)'!$D$7:$AK$263,34,0) -> 1061 | M79: 708 | N79: 08:50:00 | O79: 15(2)
B80: 성호관 | C80: 25 | D80: 333 | E80: =VLOOKUP(B80&D80,'[1]점검현황(금월)'!$D$7:$AG$261,2,0) -> 멀티미디어(자동녹화) | F80: =VLOOKUP(B80&D80,'[1]점검현황(금월)'!$D$7:$AG$263,3,0) -> VW540 | G80: =VLOOKUP(B80&D80,'[1]점검현황(금월)'!$D$2:$AG$263,19,0) -> e-ST | H80: =VLOOKUP(B80&D80,'[1]점검현황(금월)'!$D$2:$AG$263,25,0) -> 2020-02-00 | I80: =VLOOKUP(B80&D80,'[1]점검현황(금월)'!$D$7:$AG$263,27,0) -> 2020-02-00 | J80: =VLOOKUP(B80&D80,'[1]점검현황(금월)'!$D$7:$AG$263,23,0) -> 610 | K80: =VLOOKUP(B80&D80,'[1]점검현황(금월)'!$D$7:$AK$263,24,0) -> 08:40:00 | L80: =VLOOKUP(B80&D80,'[1]점검현황(금월)'!$D$7:$AK$263,34,0) -> 112 | M80: 708 | N80: 19:00:00
B81: 성호관 | C81: 26 | D81: 334 | E81: =VLOOKUP(B81&D81,'[1]점검현황(금월)'!$D$7:$AG$261,2,0) -> 멀티미디어 | F81: =VLOOKUP(B81&D81,'[1]점검현황(금월)'!$D$7:$AG$263,3,0) -> VX410 | G81: =VLOOKUP(B81&D81,'[1]점검현황(금월)'!$D$2:$AG$263,19,0) -> e-ST | H81: =VLOOKUP(B81&D81,'[1]점검현황(금월)'!$D$2:$AG$263,25,0) -> 2018-06-19 | I81: =VLOOKUP(B81&D81,'[1]점검현황(금월)'!$D$7:$AG$263,27,0) -> 2020-06-17 | J81: =VLOOKUP(B81&D81,'[1]점검현황(금월)'!$D$7:$AG$263,23,0) -> 617 | K81: =VLOOKUP(B81&D81,'[1]점검현황(금월)'!$D$7:$AK$263,24,0) -> 17:21:00 | L81: =VLOOKUP(B81&D81,'[1]점검현황(금월)'!$D$7:$AK$263,34,0) -> 1123 | M81: 708 | N81: 19:10:00 | O81: 17,
B82: 성호관 | C82: 27 | D82: 337 | E82: =VLOOKUP(B82&D82,'[1]점검현황(금월)'!$D$7:$AG$261,2,0) -> 물리학과(자동녹화) | F82: =VLOOKUP(B82&D82,'[1]점검현황(금월)'!$D$7:$AG$263,3,0) -> VW540 | G82: =VLOOKUP(B82&D82,'[1]점검현황(금월)'!$D$2:$AG$263,19,0) -> e-ST | H82: =VLOOKUP(B82&D82,'[1]점검현황(금월)'!$D$2:$AG$263,25,0) -> 2020-02-00 | I82: =VLOOKUP(B82&D82,'[1]점검현황(금월)'!$D$7:$AG$263,27,0) -> 2020-02-00 | J82: =VLOOKUP(B82&D82,'[1]점검현황(금월)'!$D$7:$AG$263,23,0) -> 610 | K82: =VLOOKUP(B82&D82,'[1]점검현황(금월)'!$D$7:$AK$263,24,0) -> 19:00:00 | L82: =VLOOKUP(B82&D82,'[1]점검현황(금월)'!$D$7:$AK$263,34,0) -> 59 | M82: 708 | N82: 19:20:00
B83: 성호관 | C83: 28 | D83: 339 | E83: =VLOOKUP(B83&D83,'[1]점검현황(금월)'!$D$7:$AG$261,2,0) -> 대학원 | F83: =VLOOKUP(B83&D83,'[1]점검현황(금월)'!$D$7:$AG$263,3,0) -> VX421 | G83: =VLOOKUP(B83&D83,'[1]점검현황(금월)'!$D$2:$AG$263,19,0) -> e-ST | H83: =VLOOKUP(B83&D83,'[1]점검현황(금월)'!$D$2:$AG$263,25,0) -> 2017-02-22 | I83: =VLOOKUP(B83&D83,'[1]점검현황(금월)'!$D$7:$AG$263,27,0) -> 2017-02-22 | J83: =VLOOKUP(B83&D83,'[1]점검현황(금월)'!$D$7:$AG$263,23,0) -> 610 | K83: =VLOOKUP(B83&D83,'[1]점검현황(금월)'!$D$7:$AK$263,24,0) -> 19:10:00 | L83: =VLOOKUP(B83&D83,'[1]점검현황(금월)'!$D$7:$AK$263,34,0) -> 182 | M83: 708 | N83: 09:00:00
A84: 원천관 | B84: 원천관 | C84: 1 | D84: 107 | E84: =VLOOKUP(B84&D84,'[1]점검현황(금월)'!$D$7:$AG$261,2,0) -> 전자공학 | F84: =VLOOKUP(B84&D84,'[1]점검현황(금월)'!$D$7:$AG$263,3,0) -> XT35K | G84: =VLOOKUP(B84&D84,'[1]점검현황(금월)'!$D$2:$AG$263,19,0) -> 자체 | H84: =VLOOKUP(B84&D84,'[1]점검현황(금월)'!$D$2:$AG$263,25,0) -> 2015-08-14 | I84: =VLOOKUP(B84&D84,'[1]점검현황(금월)'!$D$7:$AG$263,27,0) -> 날짜 확인 불가(클리닝 권고) | J84: =VLOOKUP(B84&D84,'[1]점검현황(금월)'!$D$7:$AG$263,23,0) -> 611 | K84: =VLOOKUP(B84&D84,'[1]점검현황(금월)'!$D$7:$AK$263,24,0) -> 19:20:00 | L84: =VLOOKUP(B84&D84,'[1]점검현황(금월)'!$D$7:$AK$263,34,0) -> 208 | M84: 709 | N84: 09:10:00
B85: 원천관 | C85: 2 | D85: 228 | E85: =VLOOKUP(B85&D85,'[1]점검현황(금월)'!$D$7:$AG$261,2,0) -> 전자공학 | F85: =VLOOKUP(B85&D85,'[1]점검현황(금월)'!$D$7:$AG$263,3,0) -> VX431 | G85: =VLOOKUP(B85&D85,'[1]점검현황(금월)'!$D$2:$AG$263,19,0) -> e-ST | H85: =VLOOKUP(B85&D85,'[1]점검현황(금월)'!$D$2:$AG$263,25,0) -> 2018-09-04 | I85: =VLOOKUP(B85&D85,'[1]점검현황(금월)'!$D$7:$AG$263,27,0) -> 2016-09-02(클리닝 권고) | J85: =VLOOKUP(B85&D85,'[1]점검현황(금월)'!$D$7:$AG$263,23,0) -> 611 | K85: =VLOOKUP(B85&D85,'[1]점검현황(금월)'!$D$7:$AK$263,24,0) -> 20:20:00 | L85: =VLOOKUP(B85&D85,'[1]점검현황(금월)'!$D$7:$AK$263,34,0) -> 787 | M85: 709 | N85: 10:10:00
B86: 원천관 | C86: 3 | D86: 237 | E86: =VLOOKUP(B86&D86,'[1]점검현황(금월)'!$D$7:$AG$261,2,0) -> 생명과학 | F86: =VLOOKUP(B86&D86,'[1]점검현황(금월)'!$D$7:$AG$263,3,0) -> VX421 | G86: =VLOOKUP(B86&D86,'[1]점검현황(금월)'!$D$2:$AG$263,19,0) -> 구 | H86: =VLOOKUP(B86&D86,'[1]점검현황(금월)'!$D$2:$AG$263,25,0) -> 2019-08-26 | I86: =VLOOKUP(B86&D86,'[1]점검현황(금월)'!$D$7:$AG$263,27,0) -> 2015-11-23(클리닝 권고) | J86: =VLOOKUP(B86&D86,'[1]점검현황(금월)'!$D$7:$AG$263,23,0) -> 611 | K86: =VLOOKUP(B86&D86,'[1]점검현황(금월)'!$D$7:$AK$263,24,0) -> 08:30:00 | L86: =VLOOKUP(B86&D86,'[1]점검현황(금월)'!$D$7:$AK$263,34,0) -> 252 | M86: 709 | N86: 09:20:00
B87: 원천관 | C87: 4 | D87: 242 | E87: =VLOOKUP(B87&D87,'[1]점검현황(금월)'!$D$7:$AG$261,2,0) -> 대학원 | F87: =VLOOKUP(B87&D87,'[1]점검현황(금월)'!$D$7:$AG$263,3,0) -> VX61 | G87: =VLOOKUP(B87&D87,'[1]점검현황(금월)'!$D$2:$AG$263,19,0) -> e-ST | H87: =VLOOKUP(B87&D87,'[1]점검현황(금월)'!$D$2:$AG$263,25,0) -> 2019-00-00 | I87: =VLOOKUP(B87&D87,'[1]점검현황(금월)'!$D$7:$AG$263,27,0) -> 2019-00-00 | J87: =VLOOKUP(B87&D87,'[1]점검현황(금월)'!$D$7:$AG$263,23,0) -> 611 | K87: =VLOOKUP(B87&D87,'[1]점검현황(금월)'!$D$7:$AK$263,24,0) -> 08:40:00 | L87: =VLOOKUP(B87&D87,'[1]점검현황(금월)'!$D$7:$AK$263,34,0) -> 519 | M87: 709 | N87: 09:30:00 | O87: 1,
B88: 원천관 | C88: 5 | D88: 243 | E88: =VLOOKUP(B88&D88,'[1]점검현황(금월)'!$D$7:$AG$261,2,0) -> 대학원 | F88: =VLOOKUP(B88&D88,'[1]점검현황(금월)'!$D$7:$AG$263,3,0) -> VX421 | G88: =VLOOKUP(B88&D88,'[1]점검현황(금월)'!$D$2:$AG$263,19,0) -> e-ST | H88: =VLOOKUP(B88&D88,'[1]점검현황(금월)'!$D$2:$AG$263,25,0) -> 2017-02-22 | I88: =VLOOKUP(B88&D88,'[1]점검현황(금월)'!$D$7:$AG$263,27,0) -> 2017-02-22 | J88: =VLOOKUP(B88&D88,'[1]점검현황(금월)'!$D$7:$AG$263,23,0) -> 611 | K88: =VLOOKUP(B88&D88,'[1]점검현황(금월)'!$D$7:$AK$263,24,0) -> 08:50:00 | L88: =VLOOKUP(B88&D88,'[1]점검현황(금월)'!$D$7:$AK$263,34,0) -> 2183 | M88: 709 | N88: 09:40:00
B89: 원천관 | C89: 6 | D89: 251 | E89: =VLOOKUP(B89&D89,'[1]점검현황(금월)'!$D$7:$AG$261,2,0) -> 강당 | F89: =VLOOKUP(B89&D89,'[1]점검현황(금월)'!$D$7:$AG$263,3,0) -> DVM-070M | G89: =VLOOKUP(B89&D89,'[1]점검현황(금월)'!$D$2:$AG$263,19,0) -> e-ST | H89: =VLOOKUP(B89&D89,'[1]점검현황(금월)'!$D$2:$AG$263,25,0) -> 2020-03-19 | I89: =VLOOKUP(B89&D89,'[1]점검현황(금월)'!$D$7:$AG$263,27,0) -> 2017-06-27 | J89: =VLOOKUP(B89&D89,'[1]점검현황(금월)'!$D$7:$AG$263,23,0) -> 629 | K89: =VLOOKUP(B89&D89,'[1]점검현황(금월)'!$D$7:$AK$263,24,0) -> 19:29:00 | L89: =VLOOKUP(B89&D89,'[1]점검현황(금월)'!$D$7:$AK$263,34,0) -> 0/0/0/0 | M89: 709 | N89: 09:50:00 | O89: 3,29
B90: 원천관 | C90: 7 | D90: 317-1 | E90: =VLOOKUP(B90&D90,'[1]점검현황(금월)'!$D$7:$AG$261,2,0) -> 전자공학 | F90: =VLOOKUP(B90&D90,'[1]점검현황(금월)'!$D$7:$AG$263,3,0) -> XU106K | G90: =VLOOKUP(B90&D90,'[1]점검현황(금월)'!$D$2:$AG$263,19,0) -> e-ST | H90: =VLOOKUP(B90&D90,'[1]점검현황(금월)'!$D$2:$AG$263,25,0) -> 2017-01-10 | I90: =VLOOKUP(B90&D90,'[1]점검현황(금월)'!$D$7:$AG$263,27,0) -> 2018-05-22 | J90: =VLOOKUP(B90&D90,'[1]점검현황(금월)'!$D$7:$AG$263,23,0) -> 611 | K90: =VLOOKUP(B90&D90,'[1]점검현황(금월)'!$D$7:$AK$263,24,0) -> 19:10:00 | L90: =VLOOKUP(B90&D90,'[1]점검현황(금월)'!$D$7:$AK$263,34,0) -> 1793 | M90: 709 | N90: 10:00:00
B91: 원천관 | C91: 8 | D91: 333 | E91: =VLOOKUP(B91&D91,'[1]점검현황(금월)'!$D$7:$AG$261,2,0) -> 전자공학 | F91: =VLOOKUP(B91&D91,'[1]점검현황(금월)'!$D$7:$AG$263,3,0) -> VX431 | G91: =VLOOKUP(B91&D91,'[1]점검현황(금월)'!$D$2:$AG$263,19,0) -> 자체 | H91: =VLOOKUP(B91&D91,'[1]점검현황(금월)'!$D$2:$AG$263,25,0) -> 2019-00-00 | I91: =VLOOKUP(B91&D91,'[1]점검현황(금월)'!$D$7:$AG$263,27,0) -> 2019-00-00 | J91: =VLOOKUP(B91&D91,'[1]점검현황(금월)'!$D$7:$AG$263,23,0) -> 611 | K91: =VLOOKUP(B91&D91,'[1]점검현황(금월)'!$D$7:$AK$263,24,0) -> 20:20:00 | L91: =VLOOKUP(B91&D91,'[1]점검현황(금월)'!$D$7:$AK$263,34,0) -> 528 | M91: 709 | N91: 11:10:00
B92: 원천관 | C92: 9 | D92: 334 | E92: =VLOOKUP(B92&D92,'[1]점검현황(금월)'!$D$7:$AG$261,2,0) -> 전자공학 | F92: =VLOOKUP(B92&D92,'[1]점검현황(금월)'!$D$7:$AG$263,3,0) -> XU106K | G92: =VLOOKUP(B92&D92,'[1]점검현황(금월)'!$D$2:$AG$263,19,0) -> 자체 | H92: =VLOOKUP(B92&D92,'[1]점검현황(금월)'!$D$2:$AG$263,25,0) -> 2016-08-23 | I92: =VLOOKUP(B92&D92,'[1]점검현황(금월)'!$D$7:$AG$263,27,0) -> 2014-11-19(클리닝 권고) | J92: =VLOOKUP(B92&D92,'[1]점검현황(금월)'!$D$7:$AG$263,23,0) -> 611 | K92: =VLOOKUP(B92&D92,'[1]점검현황(금월)'!$D$7:$AK$263,24,0) -> 09:00:00 | L92: =VLOOKUP(B92&D92,'[1]점검현황(금월)'!$D$7:$AK$263,34,0) -> 163 | M92: 709 | N92: 10:20:00
B93: 원천관 | C93: 10 | D93: 340 | E93: =VLOOKUP(B93&D93,'[1]점검현황(금월)'!$D$7:$AG$261,2,0) -> 전자공학 | F93: =VLOOKUP(B93&D93,'[1]점검현황(금월)'!$D$7:$AG$263,3,0) -> PT-VX610 | G93: =VLOOKUP(B93&D93,'[1]점검현황(금월)'!$D$2:$AG$263,19,0) -> 자체 | H93: =VLOOKUP(B93&D93,'[1]점검현황(금월)'!$D$2:$AG$263,25,0) -> 2017-04-07 | I93: =VLOOKUP(B93&D93,'[1]점검현황(금월)'!$D$7:$AG$263,27,0) -> 2014-04-17(클리닝 권고) | J93: =VLOOKUP(B93&D93,'[1]점검현황(금월)'!$D$7:$AG$263,23,0) -> 611 | K93: =VLOOKUP(B93&D93,'[1]점검현황(금월)'!$D$7:$AK$263,24,0) -> 09:05:00 | L93: =VLOOKUP(B93&D93,'[1]점검현황(금월)'!$D$7:$AK$263,34,0) -> 1516 | M93: 709 | N93: 10:30:00
B94: 원천관 | C94: 11 | D94: 502 | E94: =VLOOKUP(B94&D94,'[1]점검현황(금월)'!$D$7:$AG$261,2,0) -> 물리학과 | F94: =VLOOKUP(B94&D94,'[1]점검현황(금월)'!$D$7:$AG$263,3,0) -> VX61 | G94: =VLOOKUP(B94&D94,'[1]점검현황(금월)'!$D$2:$AG$263,19,0) -> 자체 | H94: =VLOOKUP(B94&D94,'[1]점검현황(금월)'!$D$2:$AG$263,25,0) -> 2019-00-00 | I94: =VLOOKUP(B94&D94,'[1]점검현황(금월)'!$D$7:$AG$263,27,0) -> 2019-00-00 | J94: =VLOOKUP(B94&D94,'[1]점검현황(금월)'!$D$7:$AG$263,23,0) -> 612 | K94: =VLOOKUP(B94&D94,'[1]점검현황(금월)'!$D$7:$AK$263,24,0) -> 09:10:00 | L94: =VLOOKUP(B94&D94,'[1]점검현황(금월)'!$D$7:$AK$263,34,0) -> 175 | M94: 710 | N94: 10:40:00
B95: 원천관 | C95: 12 | D95: 503 | E95: =VLOOKUP(B95&D95,'[1]점검현황(금월)'!$D$7:$AG$261,2,0) -> 물리학과 | F95: =VLOOKUP(B95&D95,'[1]점검현황(금월)'!$D$7:$AG$263,3,0) -> VX610 | G95: =VLOOKUP(B95&D95,'[1]점검현황(금월)'!$D$2:$AG$263,19,0) -> 자체 | H95: =VLOOKUP(B95&D95,'[1]점검현황(금월)'!$D$2:$AG$263,25,0) -> 2019-03-11 | I95: =VLOOKUP(B95&D95,'[1]점검현황(금월)'!$D$7:$AG$263,27,0) -> 2019-03-11 | J95: =VLOOKUP(B95&D95,'[1]점검현황(금월)'!$D$7:$AG$263,23,0) -> 612 | K95: =VLOOKUP(B95&D95,'[1]점검현황(금월)'!$D$7:$AK$263,24,0) -> 09:15:00 | L95: =VLOOKUP(B95&D95,'[1]점검현황(금월)'!$D$7:$AK$263,34,0) -> 333 | M95: 710 | N95: 10:50:00
B96: 원천관 | C96: 13 | D96: 504 | E96: =VLOOKUP(B96&D96,'[1]점검현황(금월)'!$D$7:$AG$261,2,0) -> 물리학과 | F96: =VLOOKUP(B96&D96,'[1]점검현황(금월)'!$D$7:$AG$263,3,0) -> VX61 | G96: =VLOOKUP(B96&D96,'[1]점검현황(금월)'!$D$2:$AG$263,19,0) -> 자체 | H96: =VLOOKUP(B96&D96,'[1]점검현황(금월)'!$D$2:$AG$263,25,0) -> 2019-00-00 | I96: =VLOOKUP(B96&D96,'[1]점검현황(금월)'!$D$7:$AG$263,27,0) -> 2019-00-00 | J96: =VLOOKUP(B96&D96,'[1]점검현황(금월)'!$D$7:$AG$263,23,0) -> 612 | K96: =VLOOKUP(B96&D96,'[1]점검현황(금월)'!$D$7:$AK$263,24,0) -> 09:20:00 | L96: =VLOOKUP(B96&D96,'[1]점검현황(금월)'!$D$7:$AK$263,34,0) -> 182 | M96: 710 | N96: 11:00:00
B97: 원천관 | C97: 14 | D97: 505 | E97: =VLOOKUP(B97&D97,'[1]점검현황(금월)'!$D$7:$AG$261,2,0) -> 물리학과 | F97: =VLOOKUP(B97&D97,'[1]점검현황(금월)'!$D$7:$AG$263,3,0) -> XU106K | G97: =VLOOKUP(B97&D97,'[1]점검현황(금월)'!$D$2:$AG$263,19,0) -> 자체 | H97: =VLOOKUP(B97&D97,'[1]점검현황(금월)'!$D$2:$AG$263,25,0) -> 2018-03-20 | I97: =VLOOKUP(B97&D97,'[1]점검현황(금월)'!$D$7:$AG$263,27,0) -> 날짜 확인 불가(클리닝 권고) | J97: =VLOOKUP(B97&D97,'[1]점검현황(금월)'!$D$7:$AG$263,23,0) -> 612 | K97: =VLOOKUP(B97&D97,'[1]점검현황(금월)'!$D$7:$AK$263,24,0) -> 09:25:00 | L97: =VLOOKUP(B97&D97,'[1]점검현황(금월)'!$D$7:$AK$263,34,0) -> 282 | M97: 710 | N97: 11:10:00
B98: 원천관 | C98: 15 | D98: 506 | E98: =VLOOKUP(B98&D98,'[1]점검현황(금월)'!$D$7:$AG$261,2,0) -> 물리학과 | F98: =VLOOKUP(B98&D98,'[1]점검현황(금월)'!$D$7:$AG$263,3,0) -> VW540 | G98: =VLOOKUP(B98&D98,'[1]점검현황(금월)'!$D$2:$AG$263,19,0) -> 자체 | H98: =VLOOKUP(B98&D98,'[1]점검현황(금월)'!$D$2:$AG$263,25,0) -> 2020-02-24 | I98: =VLOOKUP(B98&D98,'[1]점검현황(금월)'!$D$7:$AG$263,27,0) -> 2020-02-24 | J98: =VLOOKUP(B98&D98,'[1]점검현황(금월)'!$D$7:$AG$263,23,0) -> 612 | K98: =VLOOKUP(B98&D98,'[1]점검현황(금월)'!$D$7:$AK$263,24,0) -> 09:30:00 | L98: =VLOOKUP(B98&D98,'[1]점검현황(금월)'!$D$7:$AK$263,34,0) -> 4 | M98: 710 | N98: 11:20:00
B99: 원천관 | C99: 16 | D99: 507 | E99: =VLOOKUP(B99&D99,'[1]점검현황(금월)'!$D$7:$AG$261,2,0) -> 화학과(자동녹화) | F99: =VLOOKUP(B99&D99,'[1]점검현황(금월)'!$D$7:$AG$263,3,0) -> VW540 | G99: =VLOOKUP(B99&D99,'[1]점검현황(금월)'!$D$2:$AG$263,19,0) -> e-ST | H99: =VLOOKUP(B99&D99,'[1]점검현황(금월)'!$D$2:$AG$263,25,0) -> 2020-02-24 | I99: =VLOOKUP(B99&D99,'[1]점검현황(금월)'!$D$7:$AG$263,27,0) -> 2020-02-24 | J99: =VLOOKUP(B99&D99,'[1]점검현황(금월)'!$D$7:$AG$263,23,0) -> 612 | K99: =VLOOKUP(B99&D99,'[1]점검현황(금월)'!$D$7:$AK$263,24,0) -> 09:35:00 | L99: =VLOOKUP(B99&D99,'[1]점검현황(금월)'!$D$7:$AK$263,34,0) -> 44 | M99: 710 | N99: 11:30:00
B100: 원천관 | C100: 17 | D100: 508 | E100: =VLOOKUP(B100&D100,'[1]점검현황(금월)'!$D$7:$AG$261,2,0) -> 전자공학 | F100: =VLOOKUP(B100&D100,'[1]점검현황(금월)'!$D$7:$AG$263,3,0) -> VX610 | G100: =VLOOKUP(B100&D100,'[1]점검현황(금월)'!$D$2:$AG$263,19,0) -> e-ST | H100: =VLOOKUP(B100&D100,'[1]점검현황(금월)'!$D$2:$AG$263,25,0) -> 2018-01-18 | I100: =VLOOKUP(B100&D100,'[1]점검현황(금월)'!$D$7:$AG$263,27,0) -> 2018-01-18 | J100: =VLOOKUP(B100&D100,'[1]점검현황(금월)'!$D$7:$AG$263,23,0) -> 612 | K100: =VLOOKUP(B100&D100,'[1]점검현황(금월)'!$D$7:$AK$263,24,0) -> 09:40:00 | L100: =VLOOKUP(B100&D100,'[1]점검현황(금월)'!$D$7:$AK$263,34,0) -> 452 | M100: 710 | N100: 11:40:00
B101: 원천관 | C101: 18 | D101: 509 | E101: =VLOOKUP(B101&D101,'[1]점검현황(금월)'!$D$7:$AG$261,2,0) -> 전자공학 | F101: =VLOOKUP(B101&D101,'[1]점검현황(금월)'!$D$7:$AG$263,3,0) -> XU106K | G101: =VLOOKUP(B101&D101,'[1]점검현황(금월)'!$D$2:$AG$263,19,0) -> e-ST | H101: =VLOOKUP(B101&D101,'[1]점검현황(금월)'!$D$2:$AG$263,25,0) -> 2016-03-08 | I101: =VLOOKUP(B101&D101,'[1]점검현황(금월)'!$D$7:$AG$263,27,0) -> 2017-04-28 | J101: =VLOOKUP(B101&D101,'[1]점검현황(금월)'!$D$7:$AG$263,23,0) -> 612 | K101: =VLOOKUP(B101&D101,'[1]점검현황(금월)'!$D$7:$AK$263,24,0) -> 17:35:00 | L101: =VLOOKUP(B101&D101,'[1]점검현황(금월)'!$D$7:$AK$263,34,0) -> 1299 | M101: 710 | N101: 11:50:00
B102: 원천관 | C102: 19 | D102: 534-2 | E102: =VLOOKUP(B102&D102,'[1]점검현황(금월)'!$D$7:$AG$261,2,0) -> 생명과학 (자동녹화) | F102: =VLOOKUP(B102&D102,'[1]점검현황(금월)'!$D$7:$AG$263,3,0) -> VW540 | G102: =VLOOKUP(B102&D102,'[1]점검현황(금월)'!$D$2:$AG$263,19,0) -> e-ST | H102: =VLOOKUP(B102&D102,'[1]점검현황(금월)'!$D$2:$AG$263,25,0) -> 2019-08-00 | I102: =VLOOKUP(B102&D102,'[1]점검현황(금월)'!$D$7:$AG$263,27,0) -> 2019-08-00 | J102: =VLOOKUP(B102&D102,'[1]점검현황(금월)'!$D$7:$AG$263,23,0) -> 612 | K102: =VLOOKUP(B102&D102,'[1]점검현황(금월)'!$D$7:$AK$263,24,0) -> 09:50:00 | L102: =VLOOKUP(B102&D102,'[1]점검현황(금월)'!$D$7:$AK$263,34,0) -> 316 | M102: 710 | N102: 12:00:00
B103: 원천관 | C103: 20 | D103: 535 | E103: =VLOOKUP(B103&D103,'[1]점검현황(금월)'!$D$7:$AG$261,2,0) -> 전자공학 (자동녹화) | F103: =VLOOKUP(B103&D103,'[1]점검현황(금월)'!$D$7:$AG$263,3,0) -> VX610/VX610/VX610 | G103: =VLOOKUP(B103&D103,'[1]점검현황(금월)'!$D$2:$AG$263,19,0) -> e-ST | H103: =VLOOKUP(B103&D103,'[1]점검현황(금월)'!$D$2:$AG$263,25,0) -> 18-02-18/18-02-18/18-02-18 | I103: =VLOOKUP(B103&D103,'[1]점검현황(금월)'!$D$7:$AG$263,27,0) -> 18-02-18/18-02-18/18-02-18 | J103: =VLOOKUP(B103&D103,'[1]점검현황(금월)'!$D$7:$AG$263,23,0) -> 612 | K103: =VLOOKUP(B103&D103,'[1]점검현황(금월)'!$D$7:$AK$263,24,0) -> 10:00:00 | L103: =VLOOKUP(B103&D103,'[1]점검현황(금월)'!$D$7:$AK$263,34,0) -> 974/330/1075 | M103: 710 | N103: 13:00:00 | O103: 5,
B104: 원천관 | C104: 21 | D104: 537 | E104: =VLOOKUP(B104&D104,'[1]점검현황(금월)'!$D$7:$AG$261,2,0) -> 전자공학 | F104: =VLOOKUP(B104&D104,'[1]점검현황(금월)'!$D$7:$AG$263,3,0) -> VX410 | G104: =VLOOKUP(B104&D104,'[1]점검현황(금월)'!$D$2:$AG$263,19,0) -> 자체 | H104: =VLOOKUP(B104&D104,'[1]점검현황(금월)'!$D$2:$AG$263,25,0) -> 2015-03-13 | I104: =VLOOKUP(B104&D104,'[1]점검현황(금월)'!$D$7:$AG$263,27,0) -> 날짜 확인 불가(클리닝 권고) | J104: =VLOOKUP(B104&D104,'[1]점검현황(금월)'!$D$7:$AG$263,23,0) -> 613 | K104: =VLOOKUP(B104&D104,'[1]점검현황(금월)'!$D$7:$AK$263,24,0) -> 10:10:00 | L104: =VLOOKUP(B104&D104,'[1]점검현황(금월)'!$D$7:$AK$263,34,0) -> 595 | M104: 711 | N104: 13:10:00
B105: 원천관 | C105: 22 | D105: 538 | E105: =VLOOKUP(B105&D105,'[1]점검현황(금월)'!$D$7:$AG$261,2,0) -> 전자공학 | F105: =VLOOKUP(B105&D105,'[1]점검현황(금월)'!$D$7:$AG$263,3,0) -> VX421 | G105: =VLOOKUP(B105&D105,'[1]점검현황(금월)'!$D$2:$AG$263,19,0) -> e-ST | H105: =VLOOKUP(B105&D105,'[1]점검현황(금월)'!$D$2:$AG$263,25,0) -> 2014-06-00 | I105: =VLOOKUP(B105&D105,'[1]점검현황(금월)'!$D$7:$AG$263,27,0) -> 날짜 확인 불가(클리닝 권고) | J105: =VLOOKUP(B105&D105,'[1]점검현황(금월)'!$D$7:$AG$263,23,0) -> 613 | K105: =VLOOKUP(B105&D105,'[1]점검현황(금월)'!$D$7:$AK$263,24,0) -> 10:20:00 | L105: =VLOOKUP(B105&D105,'[1]점검현황(금월)'!$D$7:$AK$263,34,0) -> 2196 | M105: 711 | N105: 13:20:00
B106: 원천관 | C106: 23 | D106: 539 | E106: =VLOOKUP(B106&D106,'[1]점검현황(금월)'!$D$7:$AG$261,2,0) -> 전자공학 | F106: =VLOOKUP(B106&D106,'[1]점검현황(금월)'!$D$7:$AG$263,3,0) -> XU100K | G106: =VLOOKUP(B106&D106,'[1]점검현황(금월)'!$D$2:$AG$263,19,0) -> 자체 | H106: =VLOOKUP(B106&D106,'[1]점검현황(금월)'!$D$2:$AG$263,25,0) -> 2017-10-27 | I106: =VLOOKUP(B106&D106,'[1]점검현황(금월)'!$D$7:$AG$263,27,0) -> 날짜 확인 불가(클리닝 권고) | J106: =VLOOKUP(B106&D106,'[1]점검현황(금월)'!$D$7:$AG$263,23,0) -> 613 | K106: =VLOOKUP(B106&D106,'[1]점검현황(금월)'!$D$7:$AK$263,24,0) -> 10:30:00 | L106: =VLOOKUP(B106&D106,'[1]점검현황(금월)'!$D$7:$AK$263,34,0) -> 852 | M106: 711 | N106: 13:30:00
B107: 원천관 | C107: 24 | D107: 540 | E107: =VLOOKUP(B107&D107,'[1]점검현황(금월)'!$D$7:$AG$261,2,0) -> 멀티미디어 PC실 | F107: =VLOOKUP(B107&D107,'[1]점검현황(금월)'!$D$7:$AG$263,3,0) -> VW540 | G107: =VLOOKUP(B107&D107,'[1]점검현황(금월)'!$D$2:$AG$263,19,0) -> e-ST | H107: =VLOOKUP(B107&D107,'[1]점검현황(금월)'!$D$2:$AG$263,25,0) -> 2020-01-18 | I107: =VLOOKUP(B107&D107,'[1]점검현황(금월)'!$D$7:$AG$263,27,0) -> 2020-06-18 | J107: =VLOOKUP(B107&D107,'[1]점검현황(금월)'!$D$7:$AG$263,23,0) -> 629 | K107: =VLOOKUP(B107&D107,'[1]점검현황(금월)'!$D$7:$AK$263,24,0) -> 18:00:00 | L107: =VLOOKUP(B107&D107,'[1]점검현황(금월)'!$D$7:$AK$263,34,0) -> 2 | M107: 711 | N107: 13:40:00 | O107: 18,29
A108: 서관 | B108: 서관 | C108: 1 | D108: 107 | E108: =VLOOKUP(B108&D108,'[1]점검현황(금월)'!$D$7:$AG$261,2,0) -> 멀티미디어 (자동녹화) | F108: =VLOOKUP(B108&D108,'[1]점검현황(금월)'!$D$7:$AG$263,3,0) -> VX421 | G108: =VLOOKUP(B108&D108,'[1]점검현황(금월)'!$D$2:$AG$263,19,0) -> e-ST | H108: =VLOOKUP(B108&D108,'[1]점검현황(금월)'!$D$2:$AG$263,25,0) -> 2019-07-03 | I108: =VLOOKUP(B108&D108,'[1]점검현황(금월)'!$D$7:$AG$263,27,0) -> 2020-04-20 | J108: =VLOOKUP(B108&D108,'[1]점검현황(금월)'!$D$7:$AG$263,23,0) -> 613 | K108: =VLOOKUP(B108&D108,'[1]점검현황(금월)'!$D$7:$AK$263,24,0) -> 10:40:00 | L108: =VLOOKUP(B108&D108,'[1]점검현황(금월)'!$D$7:$AK$263,34,0) -> 702 | M108: 711 | N108: 13:40:00
B109: 서관 | C109: 2 | D109: 135 | E109: =VLOOKUP(B109&D109,'[1]점검현황(금월)'!$D$7:$AG$261,2,0) -> 기계공학 (자동녹화) | F109: =VLOOKUP(B109&D109,'[1]점검현황(금월)'!$D$7:$AG$263,3,0) -> VX421 | G109: =VLOOKUP(B109&D109,'[1]점검현황(금월)'!$D$2:$AG$263,19,0) -> e-ST | H109: =VLOOKUP(B109&D109,'[1]점검현황(금월)'!$D$2:$AG$263,25,0) -> 2019-11-12 | I109: =VLOOKUP(B109&D109,'[1]점검현황(금월)'!$D$7:$AG$263,27,0) -> 2016-02-29(클리닝 권고) | J109: =VLOOKUP(B109&D109,'[1]점검현황(금월)'!$D$7:$AG$263,23,0) -> 612 | K109: =VLOOKUP(B109&D109,'[1]점검현황(금월)'!$D$7:$AK$263,24,0) -> 10:50:00 | L109: =VLOOKUP(B109&D109,'[1]점검현황(금월)'!$D$7:$AK$263,34,0) -> 462 | M109: 711 | N109: 08:30:00 | O109: 12,
B110: 서관 | C110: 3 | D110: 239 | E110: =VLOOKUP(B110&D110,'[1]점검현황(금월)'!$D$7:$AG$261,2,0) -> 환경공학(자동녹화) | F110: =VLOOKUP(B110&D110,'[1]점검현황(금월)'!$D$7:$AG$263,3,0) -> VX421 | G110: =VLOOKUP(B110&D110,'[1]점검현황(금월)'!$D$2:$AG$263,19,0) -> e-ST | H110: =VLOOKUP(B110&D110,'[1]점검현황(금월)'!$D$2:$AG$263,25,0) -> 2018-12-07 | I110: =VLOOKUP(B110&D110,'[1]점검현황(금월)'!$D$7:$AG$263,27,0) -> 2016-02-17(클리닝 권고) | J110: =VLOOKUP(B110&D110,'[1]점검현황(금월)'!$D$7:$AG$263,23,0) -> 613 | K110: =VLOOKUP(B110&D110,'[1]점검현황(금월)'!$D$7:$AK$263,24,0) -> 11:00:00 | L110: =VLOOKUP(B110&D110,'[1]점검현황(금월)'!$D$7:$AK$263,34,0) -> 752 | M110: 711 | N110: 08:40:00
B111: 서관 | C111: 4 | D111: 302 | E111: =VLOOKUP(B111&D111,'[1]점검현황(금월)'!$D$7:$AG$261,2,0) -> 대학원 | F111: =VLOOKUP(B111&D111,'[1]점검현황(금월)'!$D$7:$AG$263,3,0) -> VX421 | G111: =VLOOKUP(B111&D111,'[1]점검현황(금월)'!$D$2:$AG$263,19,0) -> e-ST | H111: =VLOOKUP(B111&D111,'[1]점검현황(금월)'!$D$2:$AG$263,25,0) -> 2017-02-22 | I111: =VLOOKUP(B111&D111,'[1]점검현황(금월)'!$D$7:$AG$263,27,0) -> 2017-02-22 | J111: =VLOOKUP(B111&D111,'[1]점검현황(금월)'!$D$7:$AG$263,23,0) -> 613 | K111: =VLOOKUP(B111&D111,'[1]점검현황(금월)'!$D$7:$AK$263,24,0) -> 11:10:00 | L111: =VLOOKUP(B111&D111,'[1]점검현황(금월)'!$D$7:$AK$263,34,0) -> 725 | M111: 711 | N111: 08:50:00
B112: 서관 | C112: 5 | D112: 303 | E112: =VLOOKUP(B112&D112,'[1]점검현황(금월)'!$D$7:$AG$261,2,0) -> 화학공학 | F112: =VLOOKUP(B112&D112,'[1]점검현황(금월)'!$D$7:$AG$263,3,0) -> VW540 | G112: =VLOOKUP(B112&D112,'[1]점검현황(금월)'!$D$2:$AG$263,19,0) -> 구 | H112: =VLOOKUP(B112&D112,'[1]점검현황(금월)'!$D$2:$AG$263,25,0) -> 2019-09-20 | I112: =VLOOKUP(B112&D112,'[1]점검현황(금월)'!$D$7:$AG$263,27,0) -> 2019-09-20 | J112: =VLOOKUP(B112&D112,'[1]점검현황(금월)'!$D$7:$AG$263,23,0) -> 613 | K112: =VLOOKUP(B112&D112,'[1]점검현황(금월)'!$D$7:$AK$263,24,0) -> 11:20:00 | L112: =VLOOKUP(B112&D112,'[1]점검현황(금월)'!$D$7:$AK$263,34,0) -> 329 | M112: 711 | N112: 19:00:00
B113: 서관 | C113: 6 | D113: 305 | E113: =VLOOKUP(B113&D113,'[1]점검현황(금월)'!$D$7:$AG$261,2,0) -> 기계공학 | F113: =VLOOKUP(B113&D113,'[1]점검현황(금월)'!$D$7:$AG$263,3,0) -> VX400 | G113: =VLOOKUP(B113&D113,'[1]점검현황(금월)'!$D$2:$AG$263,19,0) -> e-ST | H113: =VLOOKUP(B113&D113,'[1]점검현황(금월)'!$D$2:$AG$263,25,0) -> 2019-10-11 | I113: =VLOOKUP(B113&D113,'[1]점검현황(금월)'!$D$7:$AG$263,27,0) -> 날짜 확인 불가(클리닝 권고) | J113: =VLOOKUP(B113&D113,'[1]점검현황(금월)'!$D$7:$AG$263,23,0) -> 613 | K113: =VLOOKUP(B113&D113,'[1]점검현황(금월)'!$D$7:$AK$263,24,0) -> 11:50:00 | L113: =VLOOKUP(B113&D113,'[1]점검현황(금월)'!$D$7:$AK$263,34,0) -> 279 | M113: 711 | N113: 20:00:00
B114: 서관 | C114: 7 | D114: 307 | E114: =VLOOKUP(B114&D114,'[1]점검현황(금월)'!$D$7:$AG$261,2,0) -> 기계공학 | F114: =VLOOKUP(B114&D114,'[1]점검현황(금월)'!$D$7:$AG$263,3,0) -> VX421 | G114: =VLOOKUP(B114&D114,'[1]점검현황(금월)'!$D$2:$AG$263,19,0) -> e-ST | H114: =VLOOKUP(B114&D114,'[1]점검현황(금월)'!$D$2:$AG$263,25,0) -> 2019-08-20 | I114: =VLOOKUP(B114&D114,'[1]점검현황(금월)'!$D$7:$AG$263,27,0) -> 날짜 확인 불가(클리닝 권고) | J114: =VLOOKUP(B114&D114,'[1]점검현황(금월)'!$D$7:$AG$263,23,0) -> 613 | K114: =VLOOKUP(B114&D114,'[1]점검현황(금월)'!$D$7:$AK$263,24,0) -> 11:30:00 | L114: =VLOOKUP(B114&D114,'[1]점검현황(금월)'!$D$7:$AK$263,34,0) -> 217 | M114: 711 | N114: 19:10:00
B115: 서관 | C115: 8 | D115: 331 | E115: =VLOOKUP(B115&D115,'[1]점검현황(금월)'!$D$7:$AG$261,2,0) -> 기계공학 | F115: =VLOOKUP(B115&D115,'[1]점검현황(금월)'!$D$7:$AG$263,3,0) -> VX421 | G115: =VLOOKUP(B115&D115,'[1]점검현황(금월)'!$D$2:$AG$263,19,0) -> e-ST | H115: =VLOOKUP(B115&D115,'[1]점검현황(금월)'!$D$2:$AG$263,25,0) -> 2019-11-08 | I115: =VLOOKUP(B115&D115,'[1]점검현황(금월)'!$D$7:$AG$263,27,0) -> 2018-02-01 | J115: =VLOOKUP(B115&D115,'[1]점검현황(금월)'!$D$7:$AG$263,23,0) -> 613 | K115: =VLOOKUP(B115&D115,'[1]점검현황(금월)'!$D$7:$AK$263,24,0) -> 17:41:00 | L115: =VLOOKUP(B115&D115,'[1]점검현황(금월)'!$D$7:$AK$263,34,0) -> 66 | M115: 711 | N115: 19:20:00
B116: 서관 | C116: 9 | D116: 332 | E116: =VLOOKUP(B116&D116,'[1]점검현황(금월)'!$D$7:$AG$261,2,0) -> 응 화 생 | F116: =VLOOKUP(B116&D116,'[1]점검현황(금월)'!$D$7:$AG$263,3,0) -> VW540 | G116: =VLOOKUP(B116&D116,'[1]점검현황(금월)'!$D$2:$AG$263,19,0) -> 구 | H116: =VLOOKUP(B116&D116,'[1]점검현황(금월)'!$D$2:$AG$263,25,0) -> 2020-04-07 | I116: =VLOOKUP(B116&D116,'[1]점검현황(금월)'!$D$7:$AG$263,27,0) -> 2020-04-07 | J116: =VLOOKUP(B116&D116,'[1]점검현황(금월)'!$D$7:$AG$263,23,0) -> 615 | K116: =VLOOKUP(B116&D116,'[1]점검현황(금월)'!$D$7:$AK$263,24,0) -> 11:50:00 | L116: =VLOOKUP(B116&D116,'[1]점검현황(금월)'!$D$7:$AK$263,34,0) -> 23 | M116: 711 | N116: 08:30:00 | O116: 15,
B117: 서관 | C117: 10 | D117: 334 | E117: =VLOOKUP(B117&D117,'[1]점검현황(금월)'!$D$7:$AG$261,2,0) -> 멀티미디어 | F117: =VLOOKUP(B117&D117,'[1]점검현황(금월)'!$D$7:$AG$263,3,0) -> VX421 | G117: =VLOOKUP(B117&D117,'[1]점검현황(금월)'!$D$2:$AG$263,19,0) -> e-ST | H117: =VLOOKUP(B117&D117,'[1]점검현황(금월)'!$D$2:$AG$263,25,0) -> 2019-10-17 | I117: =VLOOKUP(B117&D117,'[1]점검현황(금월)'!$D$7:$AG$263,27,0) -> 2020-06-19 | J117: =VLOOKUP(B117&D117,'[1]점검현황(금월)'!$D$7:$AG$263,23,0) -> 619 | K117: =VLOOKUP(B117&D117,'[1]점검현황(금월)'!$D$7:$AK$263,24,0) -> 12:00:00 | L117: =VLOOKUP(B117&D117,'[1]점검현황(금월)'!$D$7:$AK$263,34,0) -> 103 | M117: 711 | N117: 08:40:00 | O117: 3,19
B118: 서관 | C118: 11 | D118: 337 | E118: =VLOOKUP(B118&D118,'[1]점검현황(금월)'!$D$7:$AG$261,2,0) -> 환경공학 | F118: =VLOOKUP(B118&D118,'[1]점검현황(금월)'!$D$7:$AG$263,3,0) -> LG DX630B | G118: =VLOOKUP(B118&D118,'[1]점검현황(금월)'!$D$2:$AG$263,19,0) -> 자체 | H118: =VLOOKUP(B118&D118,'[1]점검현황(금월)'!$D$2:$AG$263,25,0) -> 2018-11-27 | I118: =VLOOKUP(B118&D118,'[1]점검현황(금월)'!$D$7:$AG$263,27,0) -> 날짜 확인 불가(클리닝 권고) | J118: =VLOOKUP(B118&D118,'[1]점검현황(금월)'!$D$7:$AG$263,23,0) -> 613 | K118: =VLOOKUP(B118&D118,'[1]점검현황(금월)'!$D$7:$AK$263,24,0) -> 13:00:00 | L118: =VLOOKUP(B118&D118,'[1]점검현황(금월)'!$D$7:$AK$263,34,0) -> 305 | M118: 711 | N118: 09:40:00
A119: 동관 | B119: 동관 | C119: 1 | D119: 104-1 | E119: =VLOOKUP(B119&D119,'[1]점검현황(금월)'!$D$7:$AG$261,2,0) -> 기계공학 | F119: =VLOOKUP(B119&D119,'[1]점검현황(금월)'!$D$7:$AG$263,3,0) -> XU106K | G119: =VLOOKUP(B119&D119,'[1]점검현황(금월)'!$D$2:$AG$263,19,0) -> e-ST | H119: =VLOOKUP(B119&D119,'[1]점검현황(금월)'!$D$2:$AG$263,25,0) -> 2017-09-05 | I119: =VLOOKUP(B119&D119,'[1]점검현황(금월)'!$D$7:$AG$263,27,0) -> 날짜 확인 불가(클리닝 권고) | J119: =VLOOKUP(B119&D119,'[1]점검현황(금월)'!$D$7:$AG$263,23,0) -> 613 | K119: =VLOOKUP(B119&D119,'[1]점검현황(금월)'!$D$7:$AK$263,24,0) -> 13:00:00 | L119: =VLOOKUP(B119&D119,'[1]점검현황(금월)'!$D$7:$AK$263,34,0) -> 745 | M119: 711 | N119: 08:50:00
B120: 동관 | C120: 2 | D120: 104-3 | E120: =VLOOKUP(B120&D120,'[1]점검현황(금월)'!$D$7:$AG$261,2,0) -> 기계공학 | F120: =VLOOKUP(B120&D120,'[1]점검현황(금월)'!$D$7:$AG$263,3,0) -> XU106K | G120: =VLOOKUP(B120&D120,'[1]점검현황(금월)'!$D$2:$AG$263,19,0) -> e-ST | H120: =VLOOKUP(B120&D120,'[1]점검현황(금월)'!$D$2:$AG$263,25,0) -> 2019-08-20 | I120: =VLOOKUP(B120&D120,'[1]점검현황(금월)'!$D$7:$AG$263,27,0) -> 날짜 확인 불가(클리닝 권고) | J120: =VLOOKUP(B120&D120,'[1]점검현황(금월)'!$D$7:$AG$263,23,0) -> 613 | K120: =VLOOKUP(B120&D120,'[1]점검현황(금월)'!$D$7:$AK$263,24,0) -> 13:20:00 | L120: =VLOOKUP(B120&D120,'[1]점검현황(금월)'!$D$7:$AK$263,34,0) -> 23 | M120: 711 | N120: 19:10:00
B121: 동관 | C121: 3 | D121: 212 | E121: =VLOOKUP(B121&D121,'[1]점검현황(금월)'!$D$7:$AG$261,2,0) -> 기계공학 | F121: =VLOOKUP(B121&D121,'[1]점검현황(금월)'!$D$7:$AG$263,3,0) -> XU106K | G121: =VLOOKUP(B121&D121,'[1]점검현황(금월)'!$D$2:$AG$263,19,0) -> 자체 | H121: =VLOOKUP(B121&D121,'[1]점검현황(금월)'!$D$2:$AG$263,25,0) -> 19-09-02/11-2-22/11-2-22/17-9-27 | I121: =VLOOKUP(B121&D121,'[1]점검현황(금월)'!$D$7:$AG$263,27,0) -> 20-04-20/날짜확인불가/날짜확인불가/날짜확인불가 | J121: =VLOOKUP(B121&D121,'[1]점검현황(금월)'!$D$7:$AG$263,23,0) -> 613 | K121: =VLOOKUP(B121&D121,'[1]점검현황(금월)'!$D$7:$AK$263,24,0) -> 13:25:00 | L121: =VLOOKUP(B121&D121,'[1]점검현황(금월)'!$D$7:$AK$263,34,0) -> 150/439/102/16 | M121: 711 | N121: 19:15:00
B122: 동관 | C122: 4 | D122: 331 | E122: =VLOOKUP(B122&D122,'[1]점검현황(금월)'!$D$7:$AG$261,2,0) -> 기계공학 | F122: =VLOOKUP(B122&D122,'[1]점검현황(금월)'!$D$7:$AG$263,3,0) -> VX400 | G122: =VLOOKUP(B122&D122,'[1]점검현황(금월)'!$D$2:$AG$263,19,0) -> e-ST | H122: =VLOOKUP(B122&D122,'[1]점검현황(금월)'!$D$2:$AG$263,25,0) -> 2018-01-15 | I122: =VLOOKUP(B122&D122,'[1]점검현황(금월)'!$D$7:$AG$263,27,0) -> 날짜 확인 불가(클리닝 권고) | J122: =VLOOKUP(B122&D122,'[1]점검현황(금월)'!$D$7:$AG$263,23,0) -> 613 | K122: =VLOOKUP(B122&D122,'[1]점검현황(금월)'!$D$7:$AK$263,24,0) -> 13:30:00 | L122: =VLOOKUP(B122&D122,'[1]점검현황(금월)'!$D$7:$AK$263,34,0) -> 904 | M122: 711 | N122: 19:20:00
A123: 팔달관 | B123: 팔달관 | C123: 1 | D123: 107 | E123: =VLOOKUP(B123&D123,'[1]점검현황(금월)'!$D$7:$AG$261,2,0) -> 멀티미디어 (자동녹화) | F123: =VLOOKUP(B123&D123,'[1]점검현황(금월)'!$D$7:$AG$263,3,0) -> VX600 | G123: =VLOOKUP(B123&D123,'[1]점검현황(금월)'!$D$2:$AG$263,19,0) -> e-ST | H123: =VLOOKUP(B123&D123,'[1]점검현황(금월)'!$D$2:$AG$263,25,0) -> 2019-11-06 | I123: =VLOOKUP(B123&D123,'[1]점검현황(금월)'!$D$7:$AG$263,27,0) -> 2020-05-19 | J123: =VLOOKUP(B123&D123,'[1]점검현황(금월)'!$D$7:$AG$263,23,0) -> 613 | K123: =VLOOKUP(B123&D123,'[1]점검현황(금월)'!$D$7:$AK$263,24,0) -> 13:40:00 | L123: =VLOOKUP(B123&D123,'[1]점검현황(금월)'!$D$7:$AK$263,34,0) -> 209 | M123: 711 | N123: 08:30:00
B124: 팔달관 | C124: 2 | D124: 108 | E124: =VLOOKUP(B124&D124,'[1]점검현황(금월)'!$D$7:$AG$261,2,0) -> 멀티미디어 (자동녹화) | F124: =VLOOKUP(B124&D124,'[1]점검현황(금월)'!$D$7:$AG$263,3,0) -> VX600 | G124: =VLOOKUP(B124&D124,'[1]점검현황(금월)'!$D$2:$AG$263,19,0) -> e-ST | H124: =VLOOKUP(B124&D124,'[1]점검현황(금월)'!$D$2:$AG$263,25,0) -> 2020-02-04 | I124: =VLOOKUP(B124&D124,'[1]점검현황(금월)'!$D$7:$AG$263,27,0) -> 2019-11-23 | J124: =VLOOKUP(B124&D124,'[1]점검현황(금월)'!$D$7:$AG$263,23,0) -> 615 | K124: =VLOOKUP(B124&D124,'[1]점검현황(금월)'!$D$7:$AK$263,24,0) -> 17:28:00 | L124: =VLOOKUP(B124&D124,'[1]점검현황(금월)'!$D$7:$AK$263,34,0) -> 0 | M124: 713 | N124: 08:40:00
B125: 팔달관 | C125: 3 | D125: 110 | E125: =VLOOKUP(B125&D125,'[1]점검현황(금월)'!$D$7:$AG$261,2,0) -> 멀티미디어 (자동녹화) | F125: =VLOOKUP(B125&D125,'[1]점검현황(금월)'!$D$7:$AG$263,3,0) -> VW540 | G125: =VLOOKUP(B125&D125,'[1]점검현황(금월)'!$D$2:$AG$263,19,0) -> e-ST | H125: =VLOOKUP(B125&D125,'[1]점검현황(금월)'!$D$2:$AG$263,25,0) -> 2020-02-21 | I125: =VLOOKUP(B125&D125,'[1]점검현황(금월)'!$D$7:$AG$263,27,0) -> 2020-03-02 | J125: =VLOOKUP(B125&D125,'[1]점검현황(금월)'!$D$7:$AG$263,23,0) -> 615 | K125: =VLOOKUP(B125&D125,'[1]점검현황(금월)'!$D$7:$AK$263,24,0) -> 14:00:00 | L125: =VLOOKUP(B125&D125,'[1]점검현황(금월)'!$D$7:$AK$263,34,0) -> 43 | M125: 713 | N125: 08:50:00 | O125: 3,11
B126: 팔달관 | C126: 4 | D126: 111 | E126: =VLOOKUP(B126&D126,'[1]점검현황(금월)'!$D$7:$AG$261,2,0) -> 사이버보안 (자동녹화) | F126: =VLOOKUP(B126&D126,'[1]점검현황(금월)'!$D$7:$AG$263,3,0) -> VX600 | G126: =VLOOKUP(B126&D126,'[1]점검현황(금월)'!$D$2:$AG$263,19,0) -> e-ST | H126: =VLOOKUP(B126&D126,'[1]점검현황(금월)'!$D$2:$AG$263,25,0) -> 2015-09-16 | I126: =VLOOKUP(B126&D126,'[1]점검현황(금월)'!$D$7:$AG$263,27,0) -> 2015-09-16(클리닝 권고) | J126: =VLOOKUP(B126&D126,'[1]점검현황(금월)'!$D$7:$AG$263,23,0) -> 615 | K126: =VLOOKUP(B126&D126,'[1]점검현황(금월)'!$D$7:$AK$263,24,0) -> 11:30:00 | L126: =VLOOKUP(B126&D126,'[1]점검현황(금월)'!$D$7:$AK$263,34,0) -> 239 | M126: 713 | N126: 19:00:00
B127: 팔달관 | C127: 5 | D127: 207 | E127: =VLOOKUP(B127&D127,'[1]점검현황(금월)'!$D$7:$AG$261,2,0) -> 신소재(자동녹화) | F127: =VLOOKUP(B127&D127,'[1]점검현황(금월)'!$D$7:$AG$263,3,0) -> VW540 | G127: =VLOOKUP(B127&D127,'[1]점검현황(금월)'!$D$2:$AG$263,19,0) -> e-ST | H127: =VLOOKUP(B127&D127,'[1]점검현황(금월)'!$D$2:$AG$263,25,0) -> 2019-08-00 | I127: =VLOOKUP(B127&D127,'[1]점검현황(금월)'!$D$7:$AG$263,27,0) -> 2019-08-00 | J127: =VLOOKUP(B127&D127,'[1]점검현황(금월)'!$D$7:$AG$263,23,0) -> 615 | K127: =VLOOKUP(B127&D127,'[1]점검현황(금월)'!$D$7:$AK$263,24,0) -> 08:40:00 | L127: =VLOOKUP(B127&D127,'[1]점검현황(금월)'!$D$7:$AK$263,34,0) -> 957 | M127: 713 | N127: 19:10:00
B128: 팔달관 | C128: 6 | D128: 211 | E128: =VLOOKUP(B128&D128,'[1]점검현황(금월)'!$D$7:$AG$261,2,0) -> 교통시스템(자동녹화) | F128: =VLOOKUP(B128&D128,'[1]점검현황(금월)'!$D$7:$AG$263,3,0) -> VW540 | G128: =VLOOKUP(B128&D128,'[1]점검현황(금월)'!$D$2:$AG$263,19,0) -> e-ST | H128: =VLOOKUP(B128&D128,'[1]점검현황(금월)'!$D$2:$AG$263,25,0) -> 2019-11-15 | I128: =VLOOKUP(B128&D128,'[1]점검현황(금월)'!$D$7:$AG$263,27,0) -> 2019-11-15 | J128: =VLOOKUP(B128&D128,'[1]점검현황(금월)'!$D$7:$AG$263,23,0) -> 615 | K128: =VLOOKUP(B128&D128,'[1]점검현황(금월)'!$D$7:$AK$263,24,0) -> 08:50:00 | L128: =VLOOKUP(B128&D128,'[1]점검현황(금월)'!$D$7:$AK$263,34,0) -> 347 | M128: 713 | N128: 19:20:00
B129: 팔달관 | C129: 7 | D129: 307 | E129: =VLOOKUP(B129&D129,'[1]점검현황(금월)'!$D$7:$AG$261,2,0) -> 산업공학(자동녹화) | F129: =VLOOKUP(B129&D129,'[1]점검현황(금월)'!$D$7:$AG$263,3,0) -> VX600 | G129: =VLOOKUP(B129&D129,'[1]점검현황(금월)'!$D$2:$AG$263,19,0) -> e-ST | H129: =VLOOKUP(B129&D129,'[1]점검현황(금월)'!$D$2:$AG$263,25,0) -> 2019-08-26 | I129: =VLOOKUP(B129&D129,'[1]점검현황(금월)'!$D$7:$AG$263,27,0) -> 2016-11-29(클리닝 권고) | J129: =VLOOKUP(B129&D129,'[1]점검현황(금월)'!$D$7:$AG$263,23,0) -> 615 | K129: =VLOOKUP(B129&D129,'[1]점검현황(금월)'!$D$7:$AK$263,24,0) -> 19:00:00 | L129: =VLOOKUP(B129&D129,'[1]점검현황(금월)'!$D$7:$AK$263,34,0) -> 520 | M129: 713 | N129: 08:30:00 | O129: 4,15
B130: 팔달관 | C130: 8 | D130: 308 | E130: =VLOOKUP(B130&D130,'[1]점검현황(금월)'!$D$7:$AG$261,2,0) -> 생명과학(자동녹화) | F130: =VLOOKUP(B130&D130,'[1]점검현황(금월)'!$D$7:$AG$263,3,0) -> VX421 | G130: =VLOOKUP(B130&D130,'[1]점검현황(금월)'!$D$2:$AG$263,19,0) -> e-ST | H130: =VLOOKUP(B130&D130,'[1]점검현황(금월)'!$D$2:$AG$263,25,0) -> 2016-11-29 | I130: =VLOOKUP(B130&D130,'[1]점검현황(금월)'!$D$7:$AG$263,27,0) -> 2016-11-29(클리닝 권고) | J130: =VLOOKUP(B130&D130,'[1]점검현황(금월)'!$D$7:$AG$263,23,0) -> 615 | K130: =VLOOKUP(B130&D130,'[1]점검현황(금월)'!$D$7:$AK$263,24,0) -> 19:10:00 | L130: =VLOOKUP(B130&D130,'[1]점검현황(금월)'!$D$7:$AK$263,34,0) -> 2309 | M130: 713 | N130: 08:40:00
B131: 팔달관 | C131: 9 | D131: 309 | E131: =VLOOKUP(B131&D131,'[1]점검현황(금월)'!$D$7:$AG$261,2,0) -> 정통컴 (자동녹화) | F131: =VLOOKUP(B131&D131,'[1]점검현황(금월)'!$D$7:$AG$263,3,0) -> VX600 | G131: =VLOOKUP(B131&D131,'[1]점검현황(금월)'!$D$2:$AG$263,19,0) -> e-ST | H131: =VLOOKUP(B131&D131,'[1]점검현황(금월)'!$D$2:$AG$263,25,0) -> 2019-09-03 | I131: =VLOOKUP(B131&D131,'[1]점검현황(금월)'!$D$7:$AG$263,27,0) -> 2016-11-18(클리닝 권고) | J131: =VLOOKUP(B131&D131,'[1]점검현황(금월)'!$D$7:$AG$263,23,0) -> 615 | K131: =VLOOKUP(B131&D131,'[1]점검현황(금월)'!$D$7:$AK$263,24,0) -> 19:20:00 | L131: =VLOOKUP(B131&D131,'[1]점검현황(금월)'!$D$7:$AK$263,34,0) -> 697 | M131: 713 | N131: 08:50:00
B132: 팔달관 | C132: 10 | D132: 310 | E132: =VLOOKUP(B132&D132,'[1]점검현황(금월)'!$D$7:$AG$261,2,0) -> 건설시스템(자동녹화) | F132: =VLOOKUP(B132&D132,'[1]점검현황(금월)'!$D$7:$AG$263,3,0) -> VW540 | G132: =VLOOKUP(B132&D132,'[1]점검현황(금월)'!$D$2:$AG$263,19,0) -> e-ST | H132: =VLOOKUP(B132&D132,'[1]점검현황(금월)'!$D$2:$AG$263,25,0) -> 2019-08-00 | I132: =VLOOKUP(B132&D132,'[1]점검현황(금월)'!$D$7:$AG$263,27,0) -> 2019-08-00 | J132: =VLOOKUP(B132&D132,'[1]점검현황(금월)'!$D$7:$AG$263,23,0) -> 615 | K132: =VLOOKUP(B132&D132,'[1]점검현황(금월)'!$D$7:$AK$263,24,0) -> 08:30:00 | L132: =VLOOKUP(B132&D132,'[1]점검현황(금월)'!$D$7:$AK$263,34,0) -> 396 | M132: 713 | N132: 19:00:00
B133: 팔달관 | C133: 11 | D133: 311 | E133: =VLOOKUP(B133&D133,'[1]점검현황(금월)'!$D$7:$AG$261,2,0) -> 수학과 (자동녹화) | F133: =VLOOKUP(B133&D133,'[1]점검현황(금월)'!$D$7:$AG$263,3,0) -> VW540 | G133: =VLOOKUP(B133&D133,'[1]점검현황(금월)'!$D$2:$AG$263,19,0) -> e-ST | H133: =VLOOKUP(B133&D133,'[1]점검현황(금월)'!$D$2:$AG$263,25,0) -> 2020-02-00 | I133: =VLOOKUP(B133&D133,'[1]점검현황(금월)'!$D$7:$AG$263,27,0) -> 2020-02-00 | J133: =VLOOKUP(B133&D133,'[1]점검현황(금월)'!$D$7:$AG$263,23,0) -> 619 | K133: =VLOOKUP(B133&D133,'[1]점검현황(금월)'!$D$7:$AK$263,24,0) -> 18:42:00 | L133: =VLOOKUP(B133&D133,'[1]점검현황(금월)'!$D$7:$AK$263,34,0) -> 35 | M133: 713 | N133: 19:10:00 | O133: 12,19
B134: 팔달관 | C134: 12 | D134: 317 | E134: =VLOOKUP(B134&D134,'[1]점검현황(금월)'!$D$7:$AG$261,2,0) -> 정통컴 (자동녹화) | F134: =VLOOKUP(B134&D134,'[1]점검현황(금월)'!$D$7:$AG$263,3,0) -> VX421 | G134: =VLOOKUP(B134&D134,'[1]점검현황(금월)'!$D$2:$AG$263,19,0) -> e-ST | H134: =VLOOKUP(B134&D134,'[1]점검현황(금월)'!$D$2:$AG$263,25,0) -> 2016-02-29 | I134: =VLOOKUP(B134&D134,'[1]점검현황(금월)'!$D$7:$AG$263,27,0) -> 2016-02-29(클리닝 권고) | J134: =VLOOKUP(B134&D134,'[1]점검현황(금월)'!$D$7:$AG$263,23,0) -> 616 | K134: =VLOOKUP(B134&D134,'[1]점검현황(금월)'!$D$7:$AK$263,24,0) -> 19:20:00 | L134: =VLOOKUP(B134&D134,'[1]점검현황(금월)'!$D$7:$AK$263,34,0) -> 1154 | M134: 714 | N134: 19:15:00
B135: 팔달관 | C135: 13 | D135: 318 | E135: =VLOOKUP(B135&D135,'[1]점검현황(금월)'!$D$7:$AG$261,2,0) -> 정 통 컴 | F135: =VLOOKUP(B135&D135,'[1]점검현황(금월)'!$D$7:$AG$263,3,0) -> VX421 / VX431 | G135: =VLOOKUP(B135&D135,'[1]점검현황(금월)'!$D$2:$AG$263,19,0) -> e-ST | H135: =VLOOKUP(B135&D135,'[1]점검현황(금월)'!$D$2:$AG$263,25,0) -> 19-08-19/19-00-00 | I135: =VLOOKUP(B135&D135,'[1]점검현황(금월)'!$D$7:$AG$263,27,0) -> 2016-11-24 / 2019-00-00 | J135: =VLOOKUP(B135&D135,'[1]점검현황(금월)'!$D$7:$AG$263,23,0) -> 616 | K135: =VLOOKUP(B135&D135,'[1]점검현황(금월)'!$D$7:$AK$263,24,0) -> 08:50:00 | L135: =VLOOKUP(B135&D135,'[1]점검현황(금월)'!$D$7:$AK$263,34,0) -> 187/390 | M135: 714 | N135: 19:20:00
B136: 팔달관 | C136: 14 | D136: 323 | E136: =VLOOKUP(B136&D136,'[1]점검현황(금월)'!$D$7:$AG$261,2,0) -> 산업공학 | F136: =VLOOKUP(B136&D136,'[1]점검현황(금월)'!$D$7:$AG$263,3,0) -> VX600 / VX600 | G136: =VLOOKUP(B136&D136,'[1]점검현황(금월)'!$D$2:$AG$263,19,0) -> e-ST | H136: =VLOOKUP(B136&D136,'[1]점검현황(금월)'!$D$2:$AG$263,25,0) -> 18-11-12/19-08-22 | I136: =VLOOKUP(B136&D136,'[1]점검현황(금월)'!$D$7:$AG$263,27,0) -> 16-02-29 / 16-02-19 | J136: =VLOOKUP(B136&D136,'[1]점검현황(금월)'!$D$7:$AG$263,23,0) -> 616 | K136: =VLOOKUP(B136&D136,'[1]점검현황(금월)'!$D$7:$AK$263,24,0) -> 10:50:00 | L136: =VLOOKUP(B136&D136,'[1]점검현황(금월)'!$D$7:$AK$263,34,0) -> 883/475 | M136: 714 | N136: 13:00:00
B137: 팔달관 | C137: 15 | D137: 325 | E137: =VLOOKUP(B137&D137,'[1]점검현황(금월)'!$D$7:$AG$261,2,0) -> 멀티미디어 (자동녹화) | F137: =VLOOKUP(B137&D137,'[1]점검현황(금월)'!$D$7:$AG$263,3,0) -> VX421 | G137: =VLOOKUP(B137&D137,'[1]점검현황(금월)'!$D$2:$AG$263,19,0) -> e-ST | H137: =VLOOKUP(B137&D137,'[1]점검현황(금월)'!$D$2:$AG$263,25,0) -> 2019-11-11 | I137: =VLOOKUP(B137&D137,'[1]점검현황(금월)'!$D$7:$AG$263,27,0) -> 2020-05-22 | J137: =VLOOKUP(B137&D137,'[1]점검현황(금월)'!$D$7:$AG$263,23,0) -> 616 | K137: =VLOOKUP(B137&D137,'[1]점검현황(금월)'!$D$7:$AK$263,24,0) -> 14:05:00 | L137: =VLOOKUP(B137&D137,'[1]점검현황(금월)'!$D$7:$AK$263,34,0) -> 306 | M137: 714 | N137: 08:30:00
B138: 팔달관 | C138: 16 | D138: 328 | E138: =VLOOKUP(B138&D138,'[1]점검현황(금월)'!$D$7:$AG$261,2,0) -> 정 통 컴 | F138: =VLOOKUP(B138&D138,'[1]점검현황(금월)'!$D$7:$AG$263,3,0) -> VX421 | G138: =VLOOKUP(B138&D138,'[1]점검현황(금월)'!$D$2:$AG$263,19,0) -> e-ST | H138: =VLOOKUP(B138&D138,'[1]점검현황(금월)'!$D$2:$AG$263,25,0) -> 2017-11-23 | I138: =VLOOKUP(B138&D138,'[1]점검현황(금월)'!$D$7:$AG$263,27,0) -> 2017-11-23 | J138: =VLOOKUP(B138&D138,'[1]점검현황(금월)'!$D$7:$AG$263,23,0) -> 616 | K138: =VLOOKUP(B138&D138,'[1]점검현황(금월)'!$D$7:$AK$263,24,0) -> 15:55:00 | L138: =VLOOKUP(B138&D138,'[1]점검현황(금월)'!$D$7:$AK$263,34,0) -> 1274 | M138: 714 | N138: 08:40:00
B139: 팔달관 | C139: 17 | D139: 333 | E139: =VLOOKUP(B139&D139,'[1]점검현황(금월)'!$D$7:$AG$261,2,0) -> 정 통 컴 | F139: =VLOOKUP(B139&D139,'[1]점검현황(금월)'!$D$7:$AG$263,3,0) -> VX410 | G139: =VLOOKUP(B139&D139,'[1]점검현황(금월)'!$D$2:$AG$263,19,0) -> e-ST | H139: =VLOOKUP(B139&D139,'[1]점검현황(금월)'!$D$2:$AG$263,25,0) -> 2019-08-19 | I139: =VLOOKUP(B139&D139,'[1]점검현황(금월)'!$D$7:$AG$263,27,0) -> 2017-08-03 | J139: =VLOOKUP(B139&D139,'[1]점검현황(금월)'!$D$7:$AG$263,23,0) -> 616 | K139: =VLOOKUP(B139&D139,'[1]점검현황(금월)'!$D$7:$AK$263,24,0) -> 16:00:00 | L139: =VLOOKUP(B139&D139,'[1]점검현황(금월)'!$D$7:$AK$263,34,0) -> 1454 | M139: 714 | N139: 08:45:00
B140: 팔달관 | C140: 18 | D140: 336 | E140: =VLOOKUP(B140&D140,'[1]점검현황(금월)'!$D$7:$AG$261,2,0) -> 정 통 컴 | F140: =VLOOKUP(B140&D140,'[1]점검현황(금월)'!$D$7:$AG$263,3,0) -> VX421 | G140: =VLOOKUP(B140&D140,'[1]점검현황(금월)'!$D$2:$AG$263,19,0) -> e-ST | H140: =VLOOKUP(B140&D140,'[1]점검현황(금월)'!$D$2:$AG$263,25,0) -> 2017-08-28 | I140: =VLOOKUP(B140&D140,'[1]점검현황(금월)'!$D$7:$AG$263,27,0) -> 2017-08-28 | J140: =VLOOKUP(B140&D140,'[1]점검현황(금월)'!$D$7:$AG$263,23,0) -> 616 | K140: =VLOOKUP(B140&D140,'[1]점검현황(금월)'!$D$7:$AK$263,24,0) -> 19:20:00 | L140: =VLOOKUP(B140&D140,'[1]점검현황(금월)'!$D$7:$AK$263,34,0) -> 201 | M140: 714 | N140: 08:50:00
B141: 팔달관 | C141: 19 | D141: 407 | E141: =VLOOKUP(B141&D141,'[1]점검현황(금월)'!$D$7:$AG$261,2,0) -> SW특성화 (자동녹화) | F141: =VLOOKUP(B141&D141,'[1]점검현황(금월)'!$D$7:$AG$263,3,0) -> EX600 / EX600 / EX600 | G141: =VLOOKUP(B141&D141,'[1]점검현황(금월)'!$D$2:$AG$263,19,0) -> e-ST | H141: =VLOOKUP(B141&D141,'[1]점검현황(금월)'!$D$2:$AG$263,25,0) -> 19-07-03/19-07-03/19-4-19 | I141: =VLOOKUP(B141&D141,'[1]점검현황(금월)'!$D$7:$AG$263,27,0) -> 13-02-18/13-02-18/16-03-19 | J141: =VLOOKUP(B141&D141,'[1]점검현황(금월)'!$D$7:$AG$263,23,0) -> 616 | K141: =VLOOKUP(B141&D141,'[1]점검현황(금월)'!$D$7:$AK$263,24,0) -> 08:40:00 | L141: =VLOOKUP(B141&D141,'[1]점검현황(금월)'!$D$7:$AK$263,34,0) -> 479/421/553 | M141: 714 | N141: 19:10:00
B142: 팔달관 | C142: 20 | D142: 409 | E142: =VLOOKUP(B142&D142,'[1]점검현황(금월)'!$D$7:$AG$261,2,0) -> 정통컴 (자동녹화) | F142: =VLOOKUP(B142&D142,'[1]점검현황(금월)'!$D$7:$AG$263,3,0) -> VX421 | G142: =VLOOKUP(B142&D142,'[1]점검현황(금월)'!$D$2:$AG$263,19,0) -> e-ST | H142: =VLOOKUP(B142&D142,'[1]점검현황(금월)'!$D$2:$AG$263,25,0) -> 2019-07-03 | I142: =VLOOKUP(B142&D142,'[1]점검현황(금월)'!$D$7:$AG$263,27,0) -> 2017-11-23 | J142: =VLOOKUP(B142&D142,'[1]점검현황(금월)'!$D$7:$AG$263,23,0) -> 616 | K142: =VLOOKUP(B142&D142,'[1]점검현황(금월)'!$D$7:$AK$263,24,0) -> 08:50:00 | L142: =VLOOKUP(B142&D142,'[1]점검현황(금월)'!$D$7:$AK$263,34,0) -> 906 | M142: 714 | N142: 19:20:00
B143: 팔달관 | C143: 21 | D143: 410 | E143: =VLOOKUP(B143&D143,'[1]점검현황(금월)'!$D$7:$AG$261,2,0) -> 사이버보안 | F143: =VLOOKUP(B143&D143,'[1]점검현황(금월)'!$D$7:$AG$263,3,0) -> VX600 | G143: =VLOOKUP(B143&D143,'[1]점검현황(금월)'!$D$2:$AG$263,19,0) -> 구 | H143: =VLOOKUP(B143&D143,'[1]점검현황(금월)'!$D$2:$AG$263,25,0) -> 2019-08-26 | I143: =VLOOKUP(B143&D143,'[1]점검현황(금월)'!$D$7:$AG$263,27,0) -> 2016-11-24(클리닝 권고) | J143: =VLOOKUP(B143&D143,'[1]점검현황(금월)'!$D$7:$AG$263,23,0) -> 616 | K143: =VLOOKUP(B143&D143,'[1]점검현황(금월)'!$D$7:$AK$263,24,0) -> 09:00:00 | L143: =VLOOKUP(B143&D143,'[1]점검현황(금월)'!$D$7:$AK$263,34,0) -> 650 | M143: 714 | N143: 09:00:00
B144: 팔달관 | C144: 22 | D144: 415 | E144: =VLOOKUP(B144&D144,'[1]점검현황(금월)'!$D$7:$AG$261,2,0) -> 교통시스템 | F144: =VLOOKUP(B144&D144,'[1]점검현황(금월)'!$D$7:$AG$263,3,0) -> LB353 | G144: =VLOOKUP(B144&D144,'[1]점검현황(금월)'!$D$2:$AG$263,19,0) -> 자체 | H144: =VLOOKUP(B144&D144,'[1]점검현황(금월)'!$D$2:$AG$263,25,0) -> 2017-12-06 | I144: =VLOOKUP(B144&D144,'[1]점검현황(금월)'!$D$7:$AG$263,27,0) -> 2017-12-06 | J144: =VLOOKUP(B144&D144,'[1]점검현황(금월)'!$D$7:$AG$263,23,0) -> 617 | K144: =VLOOKUP(B144&D144,'[1]점검현황(금월)'!$D$7:$AK$263,24,0) -> 09:10:00 | L144: =VLOOKUP(B144&D144,'[1]점검현황(금월)'!$D$7:$AK$263,34,0) -> 101 | M144: 715 | N144: 09:10:00
B145: 팔달관 | C145: 23 | D145: 435 | E145: =VLOOKUP(B145&D145,'[1]점검현황(금월)'!$D$7:$AG$261,2,0) -> 수학과 LAB | F145: =VLOOKUP(B145&D145,'[1]점검현황(금월)'!$D$7:$AG$263,3,0) -> XU105K / EW730 | G145: =VLOOKUP(B145&D145,'[1]점검현황(금월)'!$D$2:$AG$263,19,0) -> e-ST | H145: =VLOOKUP(B145&D145,'[1]점검현황(금월)'!$D$2:$AG$263,25,0) -> 15-09-16 / 19-09-03 | I145: =VLOOKUP(B145&D145,'[1]점검현황(금월)'!$D$7:$AG$263,27,0) -> 16-08-16 / 날짜 확인 불가(클리닝 권고) | J145: =VLOOKUP(B145&D145,'[1]점검현황(금월)'!$D$7:$AG$263,23,0) -> 617 | K145: =VLOOKUP(B145&D145,'[1]점검현황(금월)'!$D$7:$AK$263,24,0) -> 09:30:00 | L145: =VLOOKUP(B145&D145,'[1]점검현황(금월)'!$D$7:$AK$263,34,0) -> 1485/4 | M145: 715 | N145: 09:15:00
B146: 팔달관 | C146: 24 | D146: 621 | E146: =VLOOKUP(B146&D146,'[1]점검현황(금월)'!$D$7:$AG$261,2,0) -> 수학과 LAB | F146: =VLOOKUP(B146&D146,'[1]점검현황(금월)'!$D$7:$AG$263,3,0) -> EB-5900 | G146: =VLOOKUP(B146&D146,'[1]점검현황(금월)'!$D$2:$AG$263,19,0) -> e-ST | H146: =VLOOKUP(B146&D146,'[1]점검현황(금월)'!$D$2:$AG$263,25,0) -> 2016-05-27 | I146: =VLOOKUP(B146&D146,'[1]점검현황(금월)'!$D$7:$AG$263,27,0) -> 날짜 확인 불가(클리닝 권고) | J146: =VLOOKUP(B146&D146,'[1]점검현황(금월)'!$D$7:$AG$263,23,0) -> 617 | K146: =VLOOKUP(B146&D146,'[1]점검현황(금월)'!$D$7:$AK$263,24,0) -> 19:00:00 | L146: =VLOOKUP(B146&D146,'[1]점검현황(금월)'!$D$7:$AK$263,34,0) -> 875 | M146: 715 | N146: 09:20:00
B147: 팔달관 | C147: 25 | D147: 735 | E147: =VLOOKUP(B147&D147,'[1]점검현황(금월)'!$D$7:$AG$261,2,0) -> 대학원 | F147: =VLOOKUP(B147&D147,'[1]점검현황(금월)'!$D$7:$AG$263,3,0) -> VX421 | G147: =VLOOKUP(B147&D147,'[1]점검현황(금월)'!$D$2:$AG$263,19,0) -> e-ST | H147: =VLOOKUP(B147&D147,'[1]점검현황(금월)'!$D$2:$AG$263,25,0) -> 2017-02-22 | I147: =VLOOKUP(B147&D147,'[1]점검현황(금월)'!$D$7:$AG$263,27,0) -> 2017-02-22 | J147: =VLOOKUP(B147&D147,'[1]점검현황(금월)'!$D$7:$AG$263,23,0) -> 617 | K147: =VLOOKUP(B147&D147,'[1]점검현황(금월)'!$D$7:$AK$263,24,0) -> 19:10:00 | L147: =VLOOKUP(B147&D147,'[1]점검현황(금월)'!$D$7:$AK$263,34,0) -> 2041 | M147: 715 | N147: 09:30:00
B148: 팔달관 | C148: 26 | D148: 1001 | E148: =VLOOKUP(B148&D148,'[1]점검현황(금월)'!$D$7:$AG$261,2,0) -> 대학원 | F148: =VLOOKUP(B148&D148,'[1]점검현황(금월)'!$D$7:$AG$263,3,0) -> VX421 | G148: =VLOOKUP(B148&D148,'[1]점검현황(금월)'!$D$2:$AG$263,19,0) -> e-ST | H148: =VLOOKUP(B148&D148,'[1]점검현황(금월)'!$D$2:$AG$263,25,0) -> 2017-02-22 | I148: =VLOOKUP(B148&D148,'[1]점검현황(금월)'!$D$7:$AG$263,27,0) -> 2017-02-22 | J148: =VLOOKUP(B148&D148,'[1]점검현황(금월)'!$D$7:$AG$263,23,0) -> 617 | K148: =VLOOKUP(B148&D148,'[1]점검현황(금월)'!$D$7:$AK$263,24,0) -> 19:20:00 | L148: =VLOOKUP(B148&D148,'[1]점검현황(금월)'!$D$7:$AK$263,34,0) -> 1481 | M148: 715 | N148: 09:40:00
B149: 팔달관 | C149: 27 | D149: 1002 | E149: =VLOOKUP(B149&D149,'[1]점검현황(금월)'!$D$7:$AG$261,2,0) -> 대학원 | F149: =VLOOKUP(B149&D149,'[1]점검현황(금월)'!$D$7:$AG$263,3,0) -> VX421 | G149: =VLOOKUP(B149&D149,'[1]점검현황(금월)'!$D$2:$AG$263,19,0) -> e-ST | H149: =VLOOKUP(B149&D149,'[1]점검현황(금월)'!$D$2:$AG$263,25,0) -> 2017-02-22 | I149: =VLOOKUP(B149&D149,'[1]점검현황(금월)'!$D$7:$AG$263,27,0) -> 2017-02-22 | J149: =VLOOKUP(B149&D149,'[1]점검현황(금월)'!$D$7:$AG$263,23,0) -> 617 | K149: =VLOOKUP(B149&D149,'[1]점검현황(금월)'!$D$7:$AK$263,24,0) -> 08:30:00 | L149: =VLOOKUP(B149&D149,'[1]점검현황(금월)'!$D$7:$AK$263,34,0) -> 1807 | M149: 715 | N149: 09:50:00
B150: 팔달관 | C150: 28 | D150: 1020 | E150: =VLOOKUP(B150&D150,'[1]점검현황(금월)'!$D$7:$AG$261,2,0) -> 건설교통 (CAD실) | F150: =VLOOKUP(B150&D150,'[1]점검현황(금월)'!$D$7:$AG$263,3,0) -> VW540 | G150: =VLOOKUP(B150&D150,'[1]점검현황(금월)'!$D$2:$AG$263,19,0) -> e-ST | H150: =VLOOKUP(B150&D150,'[1]점검현황(금월)'!$D$2:$AG$263,25,0) -> 2019-11-15 | I150: =VLOOKUP(B150&D150,'[1]점검현황(금월)'!$D$7:$AG$263,27,0) -> 2019-11-15 | J150: =VLOOKUP(B150&D150,'[1]점검현황(금월)'!$D$7:$AG$263,23,0) -> 617 | K150: =VLOOKUP(B150&D150,'[1]점검현황(금월)'!$D$7:$AK$263,24,0) -> 08:50:00 | L150: =VLOOKUP(B150&D150,'[1]점검현황(금월)'!$D$7:$AK$263,34,0) -> 70 | M150: 715 | N150: 10:10:00
B151: 팔달관 | C151: 29 | D151: 1023 | E151: =VLOOKUP(B151&D151,'[1]점검현황(금월)'!$D$7:$AG$261,2,0) -> 토목공학 (CAD실) | F151: =VLOOKUP(B151&D151,'[1]점검현황(금월)'!$D$7:$AG$263,3,0) -> VX600 | G151: =VLOOKUP(B151&D151,'[1]점검현황(금월)'!$D$2:$AG$263,19,0) -> 구 | H151: =VLOOKUP(B151&D151,'[1]점검현황(금월)'!$D$2:$AG$263,25,0) -> 2019-08-00 | I151: =VLOOKUP(B151&D151,'[1]점검현황(금월)'!$D$7:$AG$263,27,0) -> 2019-08-00 | J151: =VLOOKUP(B151&D151,'[1]점검현황(금월)'!$D$7:$AG$263,23,0) -> 617 | K151: =VLOOKUP(B151&D151,'[1]점검현황(금월)'!$D$7:$AK$263,24,0) -> 19:00:00 | L151: =VLOOKUP(B151&D151,'[1]점검현황(금월)'!$D$7:$AK$263,34,0) -> 3191 | M151: 715 | N151: 10:20:00
B152: 팔달관 | C152: 30 | D152: 1025 | E152: =VLOOKUP(B152&D152,'[1]점검현황(금월)'!$D$7:$AG$261,2,0) -> 정 통 컴 (자동녹화) | F152: =VLOOKUP(B152&D152,'[1]점검현황(금월)'!$D$7:$AG$263,3,0) -> VX600 | G152: =VLOOKUP(B152&D152,'[1]점검현황(금월)'!$D$2:$AG$263,19,0) -> e-ST | H152: =VLOOKUP(B152&D152,'[1]점검현황(금월)'!$D$2:$AG$263,25,0) -> 2019-09-05 | I152: =VLOOKUP(B152&D152,'[1]점검현황(금월)'!$D$7:$AG$263,27,0) -> 2016-03-17(클리닝 권고) | J152: =VLOOKUP(B152&D152,'[1]점검현황(금월)'!$D$7:$AG$263,23,0) -> 617 | K152: =VLOOKUP(B152&D152,'[1]점검현황(금월)'!$D$7:$AK$263,24,0) -> 19:10:00 | L152: =VLOOKUP(B152&D152,'[1]점검현황(금월)'!$D$7:$AK$263,34,0) -> 282 | M152: 715 | N152: 10:30:00
A153: 산학원 | B153: 산학원 | C153: 1 | D153: B103 | E153: =VLOOKUP(B153&D153,'[1]점검현황(금월)'!$D$7:$AG$261,2,0) -> 미디어 (자동녹화) | F153: =VLOOKUP(B153&D153,'[1]점검현황(금월)'!$D$7:$AG$263,3,0) -> EX500E / EX500E | G153: =VLOOKUP(B153&D153,'[1]점검현황(금월)'!$D$2:$AG$263,19,0) -> e-ST | H153: =VLOOKUP(B153&D153,'[1]점검현황(금월)'!$D$2:$AG$263,25,0) -> 19-09-06 / 18-04-19 | I153: =VLOOKUP(B153&D153,'[1]점검현황(금월)'!$D$7:$AG$263,27,0) -> 날짜 확인 불가(클리닝 권고) | J153: =VLOOKUP(B153&D153,'[1]점검현황(금월)'!$D$7:$AG$263,23,0) -> 617 | K153: =VLOOKUP(B153&D153,'[1]점검현황(금월)'!$D$7:$AK$263,24,0) -> 19:20:00 | L153: =VLOOKUP(B153&D153,'[1]점검현황(금월)'!$D$7:$AK$263,34,0) -> 370/1277 | M153: 715 | N153: 10:40:00 | O153: 11,
B154: 산학원 | C154: 2 | D154: 113 | E154: =VLOOKUP(B154&D154,'[1]점검현황(금월)'!$D$7:$AG$261,2,0) -> 평생교육원(자동녹화) | F154: =VLOOKUP(B154&D154,'[1]점검현황(금월)'!$D$7:$AG$263,3,0) -> VX421 | G154: =VLOOKUP(B154&D154,'[1]점검현황(금월)'!$D$2:$AG$263,19,0) -> e-ST | H154: =VLOOKUP(B154&D154,'[1]점검현황(금월)'!$D$2:$AG$263,25,0) -> 2017-03-28 | I154: =VLOOKUP(B154&D154,'[1]점검현황(금월)'!$D$7:$AG$263,27,0) -> 2017-03-28 | J154: =VLOOKUP(B154&D154,'[1]점검현황(금월)'!$D$7:$AG$263,23,0) -> 618 | K154: =VLOOKUP(B154&D154,'[1]점검현황(금월)'!$D$7:$AK$263,24,0) -> 09:00:00 | L154: =VLOOKUP(B154&D154,'[1]점검현황(금월)'!$D$7:$AK$263,34,0) -> 1777 | M154: 716 | N154: 19:00:00
B155: 산학원 | C155: 3 | D155: 115 | E155: =VLOOKUP(B155&D155,'[1]점검현황(금월)'!$D$7:$AG$261,2,0) -> 평생교육원 | F155: =VLOOKUP(B155&D155,'[1]점검현황(금월)'!$D$7:$AG$263,3,0) -> VX421 | G155: =VLOOKUP(B155&D155,'[1]점검현황(금월)'!$D$2:$AG$263,19,0) -> e-ST | H155: =VLOOKUP(B155&D155,'[1]점검현황(금월)'!$D$2:$AG$263,25,0) -> 2017-03-28 | I155: =VLOOKUP(B155&D155,'[1]점검현황(금월)'!$D$7:$AG$263,27,0) -> 2017-03-28 | J155: =VLOOKUP(B155&D155,'[1]점검현황(금월)'!$D$7:$AG$263,23,0) -> 618 | K155: =VLOOKUP(B155&D155,'[1]점검현황(금월)'!$D$7:$AK$263,24,0) -> 09:10:00 | L155: =VLOOKUP(B155&D155,'[1]점검현황(금월)'!$D$7:$AK$263,34,0) -> 1841 | M155: 716 | N155: 19:10:00
B156: 산학원 | C156: 4 | D156: 117 | E156: =VLOOKUP(B156&D156,'[1]점검현황(금월)'!$D$7:$AG$261,2,0) -> 평생교육원 | F156: =VLOOKUP(B156&D156,'[1]점검현황(금월)'!$D$7:$AG$263,3,0) -> VX421 | G156: =VLOOKUP(B156&D156,'[1]점검현황(금월)'!$D$2:$AG$263,19,0) -> e-ST | H156: =VLOOKUP(B156&D156,'[1]점검현황(금월)'!$D$2:$AG$263,25,0) -> 2017-03-28 | I156: =VLOOKUP(B156&D156,'[1]점검현황(금월)'!$D$7:$AG$263,27,0) -> 2017-03-28 | J156: =VLOOKUP(B156&D156,'[1]점검현황(금월)'!$D$7:$AG$263,23,0) -> 618 | K156: =VLOOKUP(B156&D156,'[1]점검현황(금월)'!$D$7:$AK$263,24,0) -> 09:30:00 | L156: =VLOOKUP(B156&D156,'[1]점검현황(금월)'!$D$7:$AK$263,34,0) -> 3087 | M156: 716 | N156: 19:20:00
B157: 산학원 | C157: 5 | D157: 118 | E157: =VLOOKUP(B157&D157,'[1]점검현황(금월)'!$D$7:$AG$261,2,0) -> 평생교육원 | F157: =VLOOKUP(B157&D157,'[1]점검현황(금월)'!$D$7:$AG$263,3,0) -> VX410 | G157: =VLOOKUP(B157&D157,'[1]점검현황(금월)'!$D$2:$AG$263,19,0) -> e-ST | H157: =VLOOKUP(B157&D157,'[1]점검현황(금월)'!$D$2:$AG$263,25,0) -> 2014-05-16 | I157: =VLOOKUP(B157&D157,'[1]점검현황(금월)'!$D$7:$AG$263,27,0) -> 날짜 확인 불가(클리닝 권고) | J157: =VLOOKUP(B157&D157,'[1]점검현황(금월)'!$D$7:$AG$263,23,0) -> 618 | K157: =VLOOKUP(B157&D157,'[1]점검현황(금월)'!$D$7:$AK$263,24,0) -> 19:00:00 | L157: =VLOOKUP(B157&D157,'[1]점검현황(금월)'!$D$7:$AK$263,34,0) -> 2443 | M157: 716 | N157: 08:30:00
B158: 산학원 | C158: 6 | D158: 119 | E158: =VLOOKUP(B158&D158,'[1]점검현황(금월)'!$D$7:$AG$261,2,0) -> 평생교육원 | F158: =VLOOKUP(B158&D158,'[1]점검현황(금월)'!$D$7:$AG$263,3,0) -> XU106K | G158: =VLOOKUP(B158&D158,'[1]점검현황(금월)'!$D$2:$AG$263,19,0) -> e-ST | H158: =VLOOKUP(B158&D158,'[1]점검현황(금월)'!$D$2:$AG$263,25,0) -> 2015-03-13 | I158: =VLOOKUP(B158&D158,'[1]점검현황(금월)'!$D$7:$AG$263,27,0) -> 날짜 확인 불가(클리닝 권고) | J158: =VLOOKUP(B158&D158,'[1]점검현황(금월)'!$D$7:$AG$263,23,0) -> 618 | K158: =VLOOKUP(B158&D158,'[1]점검현황(금월)'!$D$7:$AK$263,24,0) -> 19:10:00 | L158: =VLOOKUP(B158&D158,'[1]점검현황(금월)'!$D$7:$AK$263,34,0) -> 544 | M158: 716 | N158: 08:40:00
B159: 산학원 | C159: 7 | D159: 204 | E159: 미디어 | F159: VX600 | G159: e-ST | H159: - | I159: 날짜 확인 불가(클리닝 권고) | J159: 317 | K159: 19:20:00 | L159: 154 | M159: 716 | N159: 09:00:00
B160: 산학원 | C160: 8 | D160: 415 | E160: =VLOOKUP(B160&D160,'[1]점검현황(금월)'!$D$7:$AG$261,2,0) -> 미디어 (PC실) | F160: =VLOOKUP(B160&D160,'[1]점검현황(금월)'!$D$7:$AG$263,3,0) -> VW540 | G160: =VLOOKUP(B160&D160,'[1]점검현황(금월)'!$D$2:$AG$263,19,0) -> e-ST | H160: =VLOOKUP(B160&D160,'[1]점검현황(금월)'!$D$2:$AG$263,25,0) -> 2019-12-06 | I160: =VLOOKUP(B160&D160,'[1]점검현황(금월)'!$D$7:$AG$263,27,0) -> 2019-12-06 | J160: =VLOOKUP(B160&D160,'[1]점검현황(금월)'!$D$7:$AG$263,23,0) -> 618 | K160: =VLOOKUP(B160&D160,'[1]점검현황(금월)'!$D$7:$AK$263,24,0) -> 08:30:00 | L160: =VLOOKUP(B160&D160,'[1]점검현황(금월)'!$D$7:$AK$263,34,0) -> 46 | M160: 716 | N160: 10:50:00
B161: 산학원 | C161: 9 | D161: 419 | E161: =VLOOKUP(B161&D161,'[1]점검현황(금월)'!$D$7:$AG$261,2,0) -> 미디어 (PC실) | F161: =VLOOKUP(B161&D161,'[1]점검현황(금월)'!$D$7:$AG$263,3,0) -> EX600E | G161: =VLOOKUP(B161&D161,'[1]점검현황(금월)'!$D$2:$AG$263,19,0) -> e-ST | H161: =VLOOKUP(B161&D161,'[1]점검현황(금월)'!$D$2:$AG$263,25,0) -> 2018-03-27 | I161: =VLOOKUP(B161&D161,'[1]점검현황(금월)'!$D$7:$AG$263,27,0) -> 날짜 확인 불가(클리닝 권고) | J161: =VLOOKUP(B161&D161,'[1]점검현황(금월)'!$D$7:$AG$263,23,0) -> 618 | K161: =VLOOKUP(B161&D161,'[1]점검현황(금월)'!$D$7:$AK$263,24,0) -> 08:40:00 | L161: =VLOOKUP(B161&D161,'[1]점검현황(금월)'!$D$7:$AK$263,34,0) -> 862 | M161: 716 | N161: 11:00:00 | O161: 9,
B162: 산학원 | C162: 10 | D162: 420 | E162: =VLOOKUP(B162&D162,'[1]점검현황(금월)'!$D$7:$AG$261,2,0) -> 미디어 (PC실) | F162: =VLOOKUP(B162&D162,'[1]점검현황(금월)'!$D$7:$AG$263,3,0) -> VW540 | G162: =VLOOKUP(B162&D162,'[1]점검현황(금월)'!$D$2:$AG$263,19,0) -> e-ST | H162: =VLOOKUP(B162&D162,'[1]점검현황(금월)'!$D$2:$AG$263,25,0) -> 2019-12-06 | I162: =VLOOKUP(B162&D162,'[1]점검현황(금월)'!$D$7:$AG$263,27,0) -> 2019-12-06 | J162: =VLOOKUP(B162&D162,'[1]점검현황(금월)'!$D$7:$AG$263,23,0) -> 618 | K162: =VLOOKUP(B162&D162,'[1]점검현황(금월)'!$D$7:$AK$263,24,0) -> 08:50:00 | L162: =VLOOKUP(B162&D162,'[1]점검현황(금월)'!$D$7:$AK$263,34,0) -> 24 | M162: 716 | N162: 11:10:00
B163: 산학원 | C163: 11 | D163: 421 | E163: =VLOOKUP(B163&D163,'[1]점검현황(금월)'!$D$7:$AG$261,2,0) -> 미디어 (PC실) | F163: =VLOOKUP(B163&D163,'[1]점검현황(금월)'!$D$7:$AG$263,3,0) -> VW540 | G163: =VLOOKUP(B163&D163,'[1]점검현황(금월)'!$D$2:$AG$263,19,0) -> e-ST | H163: =VLOOKUP(B163&D163,'[1]점검현황(금월)'!$D$2:$AG$263,25,0) -> 2019-12-06 | I163: =VLOOKUP(B163&D163,'[1]점검현황(금월)'!$D$7:$AG$263,27,0) -> 2019-12-06 | J163: =VLOOKUP(B163&D163,'[1]점검현황(금월)'!$D$7:$AG$263,23,0) -> 618 | K163: =VLOOKUP(B163&D163,'[1]점검현황(금월)'!$D$7:$AK$263,24,0) -> 19:00:00 | L163: =VLOOKUP(B163&D163,'[1]점검현황(금월)'!$D$7:$AK$263,34,0) -> 27 | M163: 716 | N163: 11:20:00
B164: 산학원 | C164: 12 | D164: 422 | E164: =VLOOKUP(B164&D164,'[1]점검현황(금월)'!$D$7:$AG$261,2,0) -> 미디어 (자동녹화) | F164: =VLOOKUP(B164&D164,'[1]점검현황(금월)'!$D$7:$AG$263,3,0) -> VX421 | G164: =VLOOKUP(B164&D164,'[1]점검현황(금월)'!$D$2:$AG$263,19,0) -> 구e-ST | H164: =VLOOKUP(B164&D164,'[1]점검현황(금월)'!$D$2:$AG$263,25,0) -> 2017-05-22 | I164: =VLOOKUP(B164&D164,'[1]점검현황(금월)'!$D$7:$AG$263,27,0) -> 2017-05-22 | J164: =VLOOKUP(B164&D164,'[1]점검현황(금월)'!$D$7:$AG$263,23,0) -> 619 | K164: =VLOOKUP(B164&D164,'[1]점검현황(금월)'!$D$7:$AK$263,24,0) -> 19:10:00 | L164: =VLOOKUP(B164&D164,'[1]점검현황(금월)'!$D$7:$AK$263,34,0) -> 1198 | M164: 717 | N164: 11:30:00
B165: 산학원 | C165: 13 | D165: 422-1 | E165: =VLOOKUP(B165&D165,'[1]점검현황(금월)'!$D$7:$AG$261,2,0) -> 미디어 | F165: =VLOOKUP(B165&D165,'[1]점검현황(금월)'!$D$7:$AG$263,3,0) -> OPTOMA | G165: =VLOOKUP(B165&D165,'[1]점검현황(금월)'!$D$2:$AG$263,19,0) -> e-ST | H165: =VLOOKUP(B165&D165,'[1]점검현황(금월)'!$D$2:$AG$263,25,0) -> 2016-01-15 | I165: =VLOOKUP(B165&D165,'[1]점검현황(금월)'!$D$7:$AG$263,27,0) -> 2016-01-15(클리닝 권고) | J165: =VLOOKUP(B165&D165,'[1]점검현황(금월)'!$D$7:$AG$263,23,0) -> 619 | K165: =VLOOKUP(B165&D165,'[1]점검현황(금월)'!$D$7:$AK$263,24,0) -> 19:20:00 | L165: =VLOOKUP(B165&D165,'[1]점검현황(금월)'!$D$7:$AK$263,34,0) -> 964 | M165: 717 | N165: 11:40:00
B166: 산학원 | C166: 14 | D166: 504 | E166: =VLOOKUP(B166&D166,'[1]점검현황(금월)'!$D$7:$AG$261,2,0) -> 대학원지식정보안학과 | F166: =VLOOKUP(B166&D166,'[1]점검현황(금월)'!$D$7:$AG$263,3,0) -> VW540 | G166: =VLOOKUP(B166&D166,'[1]점검현황(금월)'!$D$2:$AG$263,19,0) -> 자체 | H166: =VLOOKUP(B166&D166,'[1]점검현황(금월)'!$D$2:$AG$263,25,0) -> 2019-00-00 | I166: =VLOOKUP(B166&D166,'[1]점검현황(금월)'!$D$7:$AG$263,27,0) -> 2019-00-00 | J166: =VLOOKUP(B166&D166,'[1]점검현황(금월)'!$D$7:$AG$263,23,0) -> 619 | K166: =VLOOKUP(B166&D166,'[1]점검현황(금월)'!$D$7:$AK$263,24,0) -> 09:00:00 | L166: =VLOOKUP(B166&D166,'[1]점검현황(금월)'!$D$7:$AK$263,34,0) -> 152 | M166: 717 | N166: 11:50:00
B167: 산학원 | C167: 15 | D167: 505 | E167: =VLOOKUP(B167&D167,'[1]점검현황(금월)'!$D$7:$AG$261,2,0) -> 대학원지식정보안학과 | F167: =VLOOKUP(B167&D167,'[1]점검현황(금월)'!$D$7:$AG$263,3,0) -> VW540 | G167: =VLOOKUP(B167&D167,'[1]점검현황(금월)'!$D$2:$AG$263,19,0) -> 자체 | H167: =VLOOKUP(B167&D167,'[1]점검현황(금월)'!$D$2:$AG$263,25,0) -> 2019-00-00 | I167: =VLOOKUP(B167&D167,'[1]점검현황(금월)'!$D$7:$AG$263,27,0) -> 2019-00-00 | J167: =VLOOKUP(B167&D167,'[1]점검현황(금월)'!$D$7:$AG$263,23,0) -> 619 | K167: =VLOOKUP(B167&D167,'[1]점검현황(금월)'!$D$7:$AK$263,24,0) -> 09:10:00 | L167: =VLOOKUP(B167&D167,'[1]점검현황(금월)'!$D$7:$AK$263,34,0) -> 243 | M167: 717 | N167: 12:00:00
B168: 산학원 | C168: 16 | D168: 811 | E168: =VLOOKUP(B168&D168,'[1]점검현황(금월)'!$D$7:$AG$261,2,0) -> 전공 - 건축 | F168: =VLOOKUP(B168&D168,'[1]점검현황(금월)'!$D$7:$AG$263,3,0) -> OPTOMA | G168: =VLOOKUP(B168&D168,'[1]점검현황(금월)'!$D$2:$AG$263,19,0) -> 자체 | H168: =VLOOKUP(B168&D168,'[1]점검현황(금월)'!$D$2:$AG$263,25,0) -> 2018-08-28 | I168: =VLOOKUP(B168&D168,'[1]점검현황(금월)'!$D$7:$AG$263,27,0) -> 2018-08-28 | J168: =VLOOKUP(B168&D168,'[1]점검현황(금월)'!$D$7:$AG$263,23,0) -> 619 | K168: =VLOOKUP(B168&D168,'[1]점검현황(금월)'!$D$7:$AK$263,24,0) -> 16:30:00 | L168: =VLOOKUP(B168&D168,'[1]점검현황(금월)'!$D$7:$AK$263,34,0) -> 409 | M168: 717 | N168: 13:05:00
B169: 산학원 | C169: 17 | D169: 814 | E169: =VLOOKUP(B169&D169,'[1]점검현황(금월)'!$D$7:$AG$261,2,0) -> 전공 - 건축 | F169: =VLOOKUP(B169&D169,'[1]점검현황(금월)'!$D$7:$AG$263,3,0) -> OPTOMA | G169: =VLOOKUP(B169&D169,'[1]점검현황(금월)'!$D$2:$AG$263,19,0) -> 자체 | H169: =VLOOKUP(B169&D169,'[1]점검현황(금월)'!$D$2:$AG$263,25,0) -> 2018-08-28 | I169: =VLOOKUP(B169&D169,'[1]점검현황(금월)'!$D$7:$AG$263,27,0) -> 2018-08-28 | J169: =VLOOKUP(B169&D169,'[1]점검현황(금월)'!$D$7:$AG$263,23,0) -> 619 | K169: =VLOOKUP(B169&D169,'[1]점검현황(금월)'!$D$7:$AK$263,24,0) -> 16:50:00 | L169: =VLOOKUP(B169&D169,'[1]점검현황(금월)'!$D$7:$AK$263,34,0) -> 877 | M169: 717 | N169: 13:10:00
B170: 산학원 | C170: 18 | D170: 825 | E170: =VLOOKUP(B170&D170,'[1]점검현황(금월)'!$D$7:$AG$261,2,0) -> 전공 - 건축(자동녹화) | F170: =VLOOKUP(B170&D170,'[1]점검현황(금월)'!$D$7:$AG$263,3,0) -> OPTOMA | G170: =VLOOKUP(B170&D170,'[1]점검현황(금월)'!$D$2:$AG$263,19,0) -> e-ST | H170: =VLOOKUP(B170&D170,'[1]점검현황(금월)'!$D$2:$AG$263,25,0) -> 2018-08-28 | I170: =VLOOKUP(B170&D170,'[1]점검현황(금월)'!$D$7:$AG$263,27,0) -> 2018-08-28 | J170: =VLOOKUP(B170&D170,'[1]점검현황(금월)'!$D$7:$AG$263,23,0) -> 619 | K170: =VLOOKUP(B170&D170,'[1]점검현황(금월)'!$D$7:$AK$263,24,0) -> 09:30:00 | L170: =VLOOKUP(B170&D170,'[1]점검현황(금월)'!$D$7:$AK$263,34,0) -> 1089 | M170: 717 | N170: 13:15:00
B171: 산학원 | C171: 19 | D171: 827 | E171: =VLOOKUP(B171&D171,'[1]점검현황(금월)'!$D$7:$AG$261,2,0) -> 전공 - 건축 | F171: =VLOOKUP(B171&D171,'[1]점검현황(금월)'!$D$7:$AG$263,3,0) -> OPTOMA | G171: =VLOOKUP(B171&D171,'[1]점검현황(금월)'!$D$2:$AG$263,19,0) -> 자체 | H171: =VLOOKUP(B171&D171,'[1]점검현황(금월)'!$D$2:$AG$263,25,0) -> 2018-08-28 | I171: =VLOOKUP(B171&D171,'[1]점검현황(금월)'!$D$7:$AG$263,27,0) -> 2018-08-28 | J171: =VLOOKUP(B171&D171,'[1]점검현황(금월)'!$D$7:$AG$263,23,0) -> 619 | K171: =VLOOKUP(B171&D171,'[1]점검현황(금월)'!$D$7:$AK$263,24,0) -> 09:40:00 | L171: =VLOOKUP(B171&D171,'[1]점검현황(금월)'!$D$7:$AK$263,34,0) -> 522 | M171: 717 | N171: 13:20:00
A172: 학군단 | B172: 학군단 | C172: 1 | D172: 1강의 | E172: =VLOOKUP(B172&D172,'[1]점검현황(금월)'!$D$7:$AG$261,2,0) -> 멀티미디어 | F172: =VLOOKUP(B172&D172,'[1]점검현황(금월)'!$D$7:$AG$263,3,0) -> VX421 | G172: =VLOOKUP(B172&D172,'[1]점검현황(금월)'!$D$2:$AG$263,19,0) -> 구 | H172: =VLOOKUP(B172&D172,'[1]점검현황(금월)'!$D$2:$AG$263,25,0) -> 2017-12-08 | I172: =VLOOKUP(B172&D172,'[1]점검현황(금월)'!$D$7:$AG$263,27,0) -> 2020-06-20 | J172: =VLOOKUP(B172&D172,'[1]점검현황(금월)'!$D$7:$AG$263,23,0) -> 620 | K172: =VLOOKUP(B172&D172,'[1]점검현황(금월)'!$D$7:$AK$263,24,0) -> 09:50:00 | L172: =VLOOKUP(B172&D172,'[1]점검현황(금월)'!$D$7:$AK$263,34,0) -> 290 | M172: 717 | N172: 13:30:00 | O172: 20,
B173: 학군단 | C173: 2 | D173: 2강의 | E173: =VLOOKUP(B173&D173,'[1]점검현황(금월)'!$D$7:$AG$261,2,0) -> 멀티미디어 | F173: =VLOOKUP(B173&D173,'[1]점검현황(금월)'!$D$7:$AG$263,3,0) -> XT35K | G173: =VLOOKUP(B173&D173,'[1]점검현황(금월)'!$D$2:$AG$263,19,0) -> 구 | H173: =VLOOKUP(B173&D173,'[1]점검현황(금월)'!$D$2:$AG$263,25,0) -> 2015-06-25 | I173: =VLOOKUP(B173&D173,'[1]점검현황(금월)'!$D$7:$AG$263,27,0) -> 2020-01-20 | J173: =VLOOKUP(B173&D173,'[1]점검현황(금월)'!$D$7:$AG$263,23,0) -> 619 | K173: =VLOOKUP(B173&D173,'[1]점검현황(금월)'!$D$7:$AK$263,24,0) -> 10:00:00 | L173: =VLOOKUP(B173&D173,'[1]점검현황(금월)'!$D$7:$AK$263,34,0) -> 714 | M173: 717 | N173: 13:40:00
A174: 전산원 | B174: 전산원 | C174: 1 | D174: 101 | E174: =VLOOKUP(B174&D174,'[1]점검현황(금월)'!$D$7:$AG$261,2,0) -> 멀티미디어 | F174: =VLOOKUP(B174&D174,'[1]점검현황(금월)'!$D$7:$AG$263,3,0) -> VX510 | G174: =VLOOKUP(B174&D174,'[1]점검현황(금월)'!$D$2:$AG$263,19,0) -> e-ST | H174: =VLOOKUP(B174&D174,'[1]점검현황(금월)'!$D$2:$AG$263,25,0) -> 2020-03-20 | I174: =VLOOKUP(B174&D174,'[1]점검현황(금월)'!$D$7:$AG$263,27,0) -> 2017-11-28 | J174: =VLOOKUP(B174&D174,'[1]점검현황(금월)'!$D$7:$AG$263,23,0) -> 620 | K174: =VLOOKUP(B174&D174,'[1]점검현황(금월)'!$D$7:$AK$263,24,0) -> 17:30:00 | L174: =VLOOKUP(B174&D174,'[1]점검현황(금월)'!$D$7:$AK$263,34,0) -> 0 | M174: 718 | N174: 08:30:00
B175: 전산원 | C175: 2 | D175: 109 | E175: =VLOOKUP(B175&D175,'[1]점검현황(금월)'!$D$7:$AG$261,2,0) -> 에너지시스템학과 | F175: =VLOOKUP(B175&D175,'[1]점검현황(금월)'!$D$7:$AG$263,3,0) -> LG BD430 | G175: =VLOOKUP(B175&D175,'[1]점검현황(금월)'!$D$2:$AG$263,19,0) -> 자체 | H175: =VLOOKUP(B175&D175,'[1]점검현황(금월)'!$D$2:$AG$263,25,0) -> 2019-05-31 | I175: =VLOOKUP(B175&D175,'[1]점검현황(금월)'!$D$7:$AG$263,27,0) -> 날짜 확인 불가(클리닝 권고) | J175: =VLOOKUP(B175&D175,'[1]점검현황(금월)'!$D$7:$AG$263,23,0) -> 620 | K175: =VLOOKUP(B175&D175,'[1]점검현황(금월)'!$D$7:$AK$263,24,0) -> 15:00:00 | L175: =VLOOKUP(B175&D175,'[1]점검현황(금월)'!$D$7:$AK$263,34,0) -> 122 | M175: 718 | N175: 08:30:00
B176: 전산원 | C176: 3 | D176: 311 | E176: =VLOOKUP(B176&D176,'[1]점검현황(금월)'!$D$7:$AG$261,2,0) -> 에너지시스템학과 | F176: =VLOOKUP(B176&D176,'[1]점검현황(금월)'!$D$7:$AG$263,3,0) -> XU100K | G176: =VLOOKUP(B176&D176,'[1]점검현황(금월)'!$D$2:$AG$263,19,0) -> 자체 | H176: =VLOOKUP(B176&D176,'[1]점검현황(금월)'!$D$2:$AG$263,25,0) -> 2017-12-14 | I176: =VLOOKUP(B176&D176,'[1]점검현황(금월)'!$D$7:$AG$263,27,0) -> 2017-12-14 | J176: =VLOOKUP(B176&D176,'[1]점검현황(금월)'!$D$7:$AG$263,23,0) -> 620 | K176: =VLOOKUP(B176&D176,'[1]점검현황(금월)'!$D$7:$AK$263,24,0) -> 16:00:00 | L176: =VLOOKUP(B176&D176,'[1]점검현황(금월)'!$D$7:$AK$263,34,0) -> 1546 | M176: 718 | N176: 08:40:00
B177: 전산원 | C177: 4 | D177: 507 | E177: =VLOOKUP(B177&D177,'[1]점검현황(금월)'!$D$7:$AG$261,2,0) -> 융합시스템공학과 | F177: =VLOOKUP(B177&D177,'[1]점검현황(금월)'!$D$7:$AG$263,3,0) -> EB-2255U | G177: =VLOOKUP(B177&D177,'[1]점검현황(금월)'!$D$2:$AG$263,19,0) -> e-ST | H177: =VLOOKUP(B177&D177,'[1]점검현황(금월)'!$D$2:$AG$263,25,0) -> 18-02-19 / 18-02-19 | I177: =VLOOKUP(B177&D177,'[1]점검현황(금월)'!$D$7:$AG$263,27,0) -> 18-02-19 / 18-02-19 | J177: =VLOOKUP(B177&D177,'[1]점검현황(금월)'!$D$7:$AG$263,23,0) -> 620 | K177: =VLOOKUP(B177&D177,'[1]점검현황(금월)'!$D$7:$AK$263,24,0) -> 10:10:00 | L177: =VLOOKUP(B177&D177,'[1]점검현황(금월)'!$D$7:$AK$263,34,0) -> 388/511 | M177: 718 | N177: 10:00:00
B178: 전산원 | C178: 5 | D178: 509 | E178: =VLOOKUP(B178&D178,'[1]점검현황(금월)'!$D$7:$AG$261,2,0) -> 멀티미디어 PC실 | F178: =VLOOKUP(B178&D178,'[1]점검현황(금월)'!$D$7:$AG$263,3,0) -> XU106K | G178: =VLOOKUP(B178&D178,'[1]점검현황(금월)'!$D$2:$AG$263,19,0) -> 구 | H178: =VLOOKUP(B178&D178,'[1]점검현황(금월)'!$D$2:$AG$263,25,0) -> 2019-01-09 | I178: =VLOOKUP(B178&D178,'[1]점검현황(금월)'!$D$7:$AG$263,27,0) -> 2020-01-21 | J178: =VLOOKUP(B178&D178,'[1]점검현황(금월)'!$D$7:$AG$263,23,0) -> 620 | K178: =VLOOKUP(B178&D178,'[1]점검현황(금월)'!$D$7:$AK$263,24,0) -> 10:20:00 | L178: =VLOOKUP(B178&D178,'[1]점검현황(금월)'!$D$7:$AK$263,34,0) -> 552 | M178: 718 | N178: 08:40:00
B179: 전산원 | C179: 6 | D179: 510 | E179: =VLOOKUP(B179&D179,'[1]점검현황(금월)'!$D$7:$AG$261,2,0) -> 멀티미디어 PC실 | F179: =VLOOKUP(B179&D179,'[1]점검현황(금월)'!$D$7:$AG$263,3,0) -> XU106K | G179: =VLOOKUP(B179&D179,'[1]점검현황(금월)'!$D$2:$AG$263,19,0) -> 구 | H179: =VLOOKUP(B179&D179,'[1]점검현황(금월)'!$D$2:$AG$263,25,0) -> 2018-10-12 | I179: =VLOOKUP(B179&D179,'[1]점검현황(금월)'!$D$7:$AG$263,27,0) -> 2020-01-22 | J179: =VLOOKUP(B179&D179,'[1]점검현황(금월)'!$D$7:$AG$263,23,0) -> 620 | K179: =VLOOKUP(B179&D179,'[1]점검현황(금월)'!$D$7:$AK$263,24,0) -> 11:10:00 | L179: =VLOOKUP(B179&D179,'[1]점검현황(금월)'!$D$7:$AK$263,34,0) -> 847 | M179: 718 | N179: 08:50:00
B180: 전산원 | C180: 7 | D180: 511 | E180: =VLOOKUP(B180&D180,'[1]점검현황(금월)'!$D$7:$AG$261,2,0) -> 융합시스템공학과 | F180: =VLOOKUP(B180&D180,'[1]점검현황(금월)'!$D$7:$AG$263,3,0) -> VW360 | G180: =VLOOKUP(B180&D180,'[1]점검현황(금월)'!$D$2:$AG$263,19,0) -> 0 | H180: =VLOOKUP(B180&D180,'[1]점검현황(금월)'!$D$2:$AG$263,25,0) -> 2019-00-00 | I180: =VLOOKUP(B180&D180,'[1]점검현황(금월)'!$D$7:$AG$263,27,0) -> 2019-00-00 | J180: =VLOOKUP(B180&D180,'[1]점검현황(금월)'!$D$7:$AG$263,23,0) -> 620 | K180: =VLOOKUP(B180&D180,'[1]점검현황(금월)'!$D$7:$AK$263,24,0) -> 11:20:00 | L180: =VLOOKUP(B180&D180,'[1]점검현황(금월)'!$D$7:$AK$263,34,0) -> 18 | M180: 718 | N180: 09:00:00
A181: 연암관 | B181: 연암관 | C181: 1 | D181: 101 | E181: =VLOOKUP(B181&D181,'[1]점검현황(금월)'!$D$7:$AG$261,2,0) -> 대강당 | F181: =VLOOKUP(B181&D181,'[1]점검현황(금월)'!$D$7:$AG$263,3,0) -> EX16KE | G181: =VLOOKUP(B181&D181,'[1]점검현황(금월)'!$D$2:$AG$263,19,0) -> e-ST | H181: =VLOOKUP(B181&D181,'[1]점검현황(금월)'!$D$2:$AG$263,25,0) -> 2020-03-19 | I181: =VLOOKUP(B181&D181,'[1]점검현황(금월)'!$D$7:$AG$263,27,0) -> 2014-05-20(클리닝 권고) | J181: =VLOOKUP(B181&D181,'[1]점검현황(금월)'!$D$7:$AG$263,23,0) -> 629 | K181: =VLOOKUP(B181&D181,'[1]점검현황(금월)'!$D$7:$AK$263,24,0) -> 10:50:00 | L181: =VLOOKUP(B181&D181,'[1]점검현황(금월)'!$D$7:$AK$263,34,0) -> 14/0/0/0 | M181: 718 | N181: 19:10:00 | O181: 10,29
B182: 연암관 | C182: 2 | D182: 102 | E182: =VLOOKUP(B182&D182,'[1]점검현황(금월)'!$D$7:$AG$261,2,0) -> 멀티미디어 (자동녹화) | F182: =VLOOKUP(B182&D182,'[1]점검현황(금월)'!$D$7:$AG$263,3,0) -> VX600 | G182: =VLOOKUP(B182&D182,'[1]점검현황(금월)'!$D$2:$AG$263,19,0) -> e-ST | H182: =VLOOKUP(B182&D182,'[1]점검현황(금월)'!$D$2:$AG$263,25,0) -> 2016-12-23 | I182: =VLOOKUP(B182&D182,'[1]점검현황(금월)'!$D$7:$AG$263,27,0) -> 2020-01-23 | J182: =VLOOKUP(B182&D182,'[1]점검현황(금월)'!$D$7:$AG$263,23,0) -> 620 | K182: =VLOOKUP(B182&D182,'[1]점검현황(금월)'!$D$7:$AK$263,24,0) -> 11:00:00 | L182: =VLOOKUP(B182&D182,'[1]점검현황(금월)'!$D$7:$AK$263,34,0) -> 1154 | M182: 718 | N182: 19:20:00
B183: 연암관 | C183: 3 | D183: 104 | E183: =VLOOKUP(B183&D183,'[1]점검현황(금월)'!$D$7:$AG$261,2,0) -> 멀티미디어 (자동녹화) | F183: =VLOOKUP(B183&D183,'[1]점검현황(금월)'!$D$7:$AG$263,3,0) -> VX600 | G183: =VLOOKUP(B183&D183,'[1]점검현황(금월)'!$D$2:$AG$263,19,0) -> e-ST | H183: =VLOOKUP(B183&D183,'[1]점검현황(금월)'!$D$2:$AG$263,25,0) -> 2019-11-19 | I183: =VLOOKUP(B183&D183,'[1]점검현황(금월)'!$D$7:$AG$263,27,0) -> 2020-03-02 | J183: =VLOOKUP(B183&D183,'[1]점검현황(금월)'!$D$7:$AG$263,23,0) -> 620 | K183: =VLOOKUP(B183&D183,'[1]점검현황(금월)'!$D$7:$AK$263,24,0) -> 15:20:00 | L183: =VLOOKUP(B183&D183,'[1]점검현황(금월)'!$D$7:$AK$263,34,0) -> 128 | M183: 718 | N183: 08:30:00
B184: 연암관 | C184: 4 | D184: 105 | E184: =VLOOKUP(B184&D184,'[1]점검현황(금월)'!$D$7:$AG$261,2,0) -> 멀티미디어 (자동녹화) | F184: =VLOOKUP(B184&D184,'[1]점검현황(금월)'!$D$7:$AG$263,3,0) -> VX600 | G184: =VLOOKUP(B184&D184,'[1]점검현황(금월)'!$D$2:$AG$263,19,0) -> e-ST | H184: =VLOOKUP(B184&D184,'[1]점검현황(금월)'!$D$2:$AG$263,25,0) -> 2019-10-07 | I184: =VLOOKUP(B184&D184,'[1]점검현황(금월)'!$D$7:$AG$263,27,0) -> 2020-03-02 | J184: =VLOOKUP(B184&D184,'[1]점검현황(금월)'!$D$7:$AG$263,23,0) -> 620 | K184: =VLOOKUP(B184&D184,'[1]점검현황(금월)'!$D$7:$AK$263,24,0) -> 17:30:00 | L184: =VLOOKUP(B184&D184,'[1]점검현황(금월)'!$D$7:$AK$263,34,0) -> 493 | M184: 718 | N184: 08:40:00 | O184: 3,
B185: 연암관 | C185: 5 | D185: 202-2 | E185: =VLOOKUP(B185&D185,'[1]점검현황(금월)'!$D$7:$AG$261,2,0) -> 법전원 | F185: =VLOOKUP(B185&D185,'[1]점검현황(금월)'!$D$7:$AG$263,3,0) -> XT35K | G185: =VLOOKUP(B185&D185,'[1]점검현황(금월)'!$D$2:$AG$263,19,0) -> 자체 | H185: =VLOOKUP(B185&D185,'[1]점검현황(금월)'!$D$2:$AG$263,25,0) -> 2007-12-31 | I185: =VLOOKUP(B185&D185,'[1]점검현황(금월)'!$D$7:$AG$263,27,0) -> 날짜 확인 불가(클리닝 권고) | J185: =VLOOKUP(B185&D185,'[1]점검현황(금월)'!$D$7:$AG$263,23,0) -> 620 | K185: =VLOOKUP(B185&D185,'[1]점검현황(금월)'!$D$7:$AK$263,24,0) -> 11:30:00 | L185: =VLOOKUP(B185&D185,'[1]점검현황(금월)'!$D$7:$AK$263,34,0) -> 233 | M185: 718 | N185: 08:50:00
B186: 연암관 | C186: 6 | D186: 301 | E186: =VLOOKUP(B186&D186,'[1]점검현황(금월)'!$D$7:$AG$261,2,0) -> 법전원 | F186: =VLOOKUP(B186&D186,'[1]점검현황(금월)'!$D$7:$AG$263,3,0) -> XU106K / XU106K | G186: =VLOOKUP(B186&D186,'[1]점검현황(금월)'!$D$2:$AG$263,19,0) -> e-ST | H186: =VLOOKUP(B186&D186,'[1]점검현황(금월)'!$D$2:$AG$263,25,0) -> 17-09-29 / 17-09-29 | I186: =VLOOKUP(B186&D186,'[1]점검현황(금월)'!$D$7:$AG$263,27,0) -> 15-04-27 / 15-04-27 | J186: =VLOOKUP(B186&D186,'[1]점검현황(금월)'!$D$7:$AG$263,23,0) -> 620 | K186: =VLOOKUP(B186&D186,'[1]점검현황(금월)'!$D$7:$AK$263,24,0) -> 11:40:00 | L186: =VLOOKUP(B186&D186,'[1]점검현황(금월)'!$D$7:$AK$263,34,0) -> 1548/303 | M186: 718 | N186: 19:00:00
B187: 연암관 | C187: 7 | D187: 315 | E187: =VLOOKUP(B187&D187,'[1]점검현황(금월)'!$D$7:$AG$261,2,0) -> 법전원 | F187: =VLOOKUP(B187&D187,'[1]점검현황(금월)'!$D$7:$AG$263,3,0) -> XU105K | G187: =VLOOKUP(B187&D187,'[1]점검현황(금월)'!$D$2:$AG$263,19,0) -> 구 | H187: =VLOOKUP(B187&D187,'[1]점검현황(금월)'!$D$2:$AG$263,25,0) -> 2018-03-21 | I187: =VLOOKUP(B187&D187,'[1]점검현황(금월)'!$D$7:$AG$263,27,0) -> 날짜 확인 불가(클리닝 권고) | J187: =VLOOKUP(B187&D187,'[1]점검현황(금월)'!$D$7:$AG$263,23,0) -> 620 | K187: =VLOOKUP(B187&D187,'[1]점검현황(금월)'!$D$7:$AK$263,24,0) -> 11:50:00 | L187: =VLOOKUP(B187&D187,'[1]점검현황(금월)'!$D$7:$AK$263,34,0) -> 143 | M187: 718 | N187: 19:10:00
B188: 연암관 | C188: 8 | D188: 401 | E188: =VLOOKUP(B188&D188,'[1]점검현황(금월)'!$D$7:$AG$261,2,0) -> 법전원 | F188: =VLOOKUP(B188&D188,'[1]점검현황(금월)'!$D$7:$AG$263,3,0) -> VX61 | G188: =VLOOKUP(B188&D188,'[1]점검현황(금월)'!$D$2:$AG$263,19,0) -> e-ST | H188: =VLOOKUP(B188&D188,'[1]점검현황(금월)'!$D$2:$AG$263,25,0) -> 2019-00-00 | I188: =VLOOKUP(B188&D188,'[1]점검현황(금월)'!$D$7:$AG$263,27,0) -> 2019-00-00 | J188: =VLOOKUP(B188&D188,'[1]점검현황(금월)'!$D$7:$AG$263,23,0) -> 620 | K188: =VLOOKUP(B188&D188,'[1]점검현황(금월)'!$D$7:$AK$263,24,0) -> 12:00:00 | L188: =VLOOKUP(B188&D188,'[1]점검현황(금월)'!$D$7:$AK$263,34,0) -> 439 | M188: 718 | N188: 19:20:00
B189: 연암관 | C189: 9 | D189: 412 | E189: =VLOOKUP(B189&D189,'[1]점검현황(금월)'!$D$7:$AG$261,2,0) -> 법전원 | F189: =VLOOKUP(B189&D189,'[1]점검현황(금월)'!$D$7:$AG$263,3,0) -> XU100K | G189: =VLOOKUP(B189&D189,'[1]점검현황(금월)'!$D$2:$AG$263,19,0) -> 구 | H189: =VLOOKUP(B189&D189,'[1]점검현황(금월)'!$D$2:$AG$263,25,0) -> 2007-12-18 | I189: =VLOOKUP(B189&D189,'[1]점검현황(금월)'!$D$7:$AG$263,27,0) -> 날짜 확인 불가(클리닝 권고) | J189: =VLOOKUP(B189&D189,'[1]점검현황(금월)'!$D$7:$AG$263,23,0) -> 620 | K189: =VLOOKUP(B189&D189,'[1]점검현황(금월)'!$D$7:$AK$263,24,0) -> 13:00:00 | L189: =VLOOKUP(B189&D189,'[1]점검현황(금월)'!$D$7:$AK$263,34,0) -> 88 | M189: 718 | N189: 08:30:00
B190: 연암관 | C190: 10 | D190: 413 | E190: =VLOOKUP(B190&D190,'[1]점검현황(금월)'!$D$7:$AG$261,2,0) -> 법전원 | F190: =VLOOKUP(B190&D190,'[1]점검현황(금월)'!$D$7:$AG$263,3,0) -> XU105K | G190: =VLOOKUP(B190&D190,'[1]점검현황(금월)'!$D$2:$AG$263,19,0) -> 구e-ST | H190: =VLOOKUP(B190&D190,'[1]점검현황(금월)'!$D$2:$AG$263,25,0) -> 2015-09-04 | I190: =VLOOKUP(B190&D190,'[1]점검현황(금월)'!$D$7:$AG$263,27,0) -> 2018-12-28 | J190: =VLOOKUP(B190&D190,'[1]점검현황(금월)'!$D$7:$AG$263,23,0) -> 620 | K190: =VLOOKUP(B190&D190,'[1]점검현황(금월)'!$D$7:$AK$263,24,0) -> 13:10:00 | L190: =VLOOKUP(B190&D190,'[1]점검현황(금월)'!$D$7:$AK$263,34,0) -> 382 | M190: 718 | N190: 08:40:00
B191: 연암관 | C191: 11 | D191: 501 | E191: =VLOOKUP(B191&D191,'[1]점검현황(금월)'!$D$7:$AG$261,2,0) -> 법전원 | F191: =VLOOKUP(B191&D191,'[1]점검현황(금월)'!$D$7:$AG$263,3,0) -> XU106K / XU106K | G191: =VLOOKUP(B191&D191,'[1]점검현황(금월)'!$D$2:$AG$263,19,0) -> e-ST | H191: =VLOOKUP(B191&D191,'[1]점검현황(금월)'!$D$2:$AG$263,25,0) -> 18-03-21 / 18-03-21 | I191: =VLOOKUP(B191&D191,'[1]점검현황(금월)'!$D$7:$AG$263,27,0) -> 날짜 확인 불가(클리닝 권고) / 15-04-27 | J191: =VLOOKUP(B191&D191,'[1]점검현황(금월)'!$D$7:$AG$263,23,0) -> 620 | K191: =VLOOKUP(B191&D191,'[1]점검현황(금월)'!$D$7:$AK$263,24,0) -> 13:20:00 | L191: =VLOOKUP(B191&D191,'[1]점검현황(금월)'!$D$7:$AK$263,34,0) -> 2177/255 | M191: 718 | N191: 08:50:00
B192: 연암관 | C192: 12 | D192: 502 | E192: =VLOOKUP(B192&D192,'[1]점검현황(금월)'!$D$7:$AG$261,2,0) -> 멀티미디어 (자동녹화) | F192: =VLOOKUP(B192&D192,'[1]점검현황(금월)'!$D$7:$AG$263,3,0) -> XU106K / XU106K | G192: =VLOOKUP(B192&D192,'[1]점검현황(금월)'!$D$2:$AG$263,19,0) -> e-ST | H192: =VLOOKUP(B192&D192,'[1]점검현황(금월)'!$D$2:$AG$263,25,0) -> 18-11-21 / 20-04-03 | I192: =VLOOKUP(B192&D192,'[1]점검현황(금월)'!$D$7:$AG$263,27,0) -> 20-06-20 / 19-06-21 | J192: =VLOOKUP(B192&D192,'[1]점검현황(금월)'!$D$7:$AG$263,23,0) -> 620 | K192: =VLOOKUP(B192&D192,'[1]점검현황(금월)'!$D$7:$AK$263,24,0) -> 09:30:00 | L192: =VLOOKUP(B192&D192,'[1]점검현황(금월)'!$D$7:$AK$263,34,0) -> 1265/56 | M192: 718 | N192: 19:00:00 | O192: 2,3,12,20
B193: 연암관 | C193: 13 | D193: 503 | E193: =VLOOKUP(B193&D193,'[1]점검현황(금월)'!$D$7:$AG$261,2,0) -> 멀티미디어 (자동녹화) | F193: =VLOOKUP(B193&D193,'[1]점검현황(금월)'!$D$7:$AG$263,3,0) -> XU106K / XU106K | G193: =VLOOKUP(B193&D193,'[1]점검현황(금월)'!$D$2:$AG$263,19,0) -> e-ST | H193: =VLOOKUP(B193&D193,'[1]점검현황(금월)'!$D$2:$AG$263,25,0) -> 19-08-21 / 19-08-21 | I193: =VLOOKUP(B193&D193,'[1]점검현황(금월)'!$D$7:$AG$263,27,0) -> 20-01-29 / 20-05-25 | J193: =VLOOKUP(B193&D193,'[1]점검현황(금월)'!$D$7:$AG$263,23,0) -> 620 | K193: =VLOOKUP(B193&D193,'[1]점검현황(금월)'!$D$7:$AK$263,24,0) -> 13:40:00 | L193: =VLOOKUP(B193&D193,'[1]점검현황(금월)'!$D$7:$AK$263,34,0) -> 715/530 | M193: 718 | N193: 19:10:00
B194: 연암관 | C194: 14 | D194: 504 | E194: =VLOOKUP(B194&D194,'[1]점검현황(금월)'!$D$7:$AG$261,2,0) -> 법전원 | F194: =VLOOKUP(B194&D194,'[1]점검현황(금월)'!$D$7:$AG$263,3,0) -> XU106K | G194: =VLOOKUP(B194&D194,'[1]점검현황(금월)'!$D$2:$AG$263,19,0) -> e-ST | H194: =VLOOKUP(B194&D194,'[1]점검현황(금월)'!$D$2:$AG$263,25,0) -> 2018-11-27 | I194: =VLOOKUP(B194&D194,'[1]점검현황(금월)'!$D$7:$AG$263,27,0) -> 날짜 확인 불가(클리닝 권고) | J194: =VLOOKUP(B194&D194,'[1]점검현황(금월)'!$D$7:$AG$263,23,0) -> 622 | K194: =VLOOKUP(B194&D194,'[1]점검현황(금월)'!$D$7:$AK$263,24,0) -> 16:30:00 | L194: =VLOOKUP(B194&D194,'[1]점검현황(금월)'!$D$7:$AK$263,34,0) -> 801 | M194: 720 | N194: 19:20:00
B195: 연암관 | C195: 15 | D195: 506 | E195: =VLOOKUP(B195&D195,'[1]점검현황(금월)'!$D$7:$AG$261,2,0) -> 법전원 (자동녹화) | F195: =VLOOKUP(B195&D195,'[1]점검현황(금월)'!$D$7:$AG$263,3,0) -> XU106K | G195: =VLOOKUP(B195&D195,'[1]점검현황(금월)'!$D$2:$AG$263,19,0) -> e-ST | H195: =VLOOKUP(B195&D195,'[1]점검현황(금월)'!$D$2:$AG$263,25,0) -> 2018-11-27 | I195: =VLOOKUP(B195&D195,'[1]점검현황(금월)'!$D$7:$AG$263,27,0) -> 2017-09-15 | J195: =VLOOKUP(B195&D195,'[1]점검현황(금월)'!$D$7:$AG$263,23,0) -> 622 | K195: =VLOOKUP(B195&D195,'[1]점검현황(금월)'!$D$7:$AK$263,24,0) -> 14:00:00 | L195: =VLOOKUP(B195&D195,'[1]점검현황(금월)'!$D$7:$AK$263,34,0) -> 1203 | M195: 720 | N195: 08:30:00
B196: 연암관 | C196: 16 | D196: 507 | E196: =VLOOKUP(B196&D196,'[1]점검현황(금월)'!$D$7:$AG$261,2,0) -> 법전원 (자동녹화) | F196: =VLOOKUP(B196&D196,'[1]점검현황(금월)'!$D$7:$AG$263,3,0) -> XU106K | G196: =VLOOKUP(B196&D196,'[1]점검현황(금월)'!$D$2:$AG$263,19,0) -> e-ST | H196: =VLOOKUP(B196&D196,'[1]점검현황(금월)'!$D$2:$AG$263,25,0) -> 2019-09-05 | I196: =VLOOKUP(B196&D196,'[1]점검현황(금월)'!$D$7:$AG$263,27,0) -> 2015-10-24(클리닝 권고) | J196: =VLOOKUP(B196&D196,'[1]점검현황(금월)'!$D$7:$AG$263,23,0) -> 622 | K196: =VLOOKUP(B196&D196,'[1]점검현황(금월)'!$D$7:$AK$263,24,0) -> 19:30:00 | L196: =VLOOKUP(B196&D196,'[1]점검현황(금월)'!$D$7:$AK$263,34,0) -> 130 | M196: 720 | N196: 08:40:00
B197: 연암관 | C197: 17 | D197: 508 | E197: =VLOOKUP(B197&D197,'[1]점검현황(금월)'!$D$7:$AG$261,2,0) -> 멀티미디어 (자동녹화) | F197: =VLOOKUP(B197&D197,'[1]점검현황(금월)'!$D$7:$AG$263,3,0) -> XU106K | G197: =VLOOKUP(B197&D197,'[1]점검현황(금월)'!$D$2:$AG$263,19,0) -> e-ST | H197: =VLOOKUP(B197&D197,'[1]점검현황(금월)'!$D$2:$AG$263,25,0) -> 2018-08-20 | I197: =VLOOKUP(B197&D197,'[1]점검현황(금월)'!$D$7:$AG$263,27,0) -> 2020-04-22 | J197: =VLOOKUP(B197&D197,'[1]점검현황(금월)'!$D$7:$AG$263,23,0) -> 622 | K197: =VLOOKUP(B197&D197,'[1]점검현황(금월)'!$D$7:$AK$263,24,0) -> 08:40:00 | L197: =VLOOKUP(B197&D197,'[1]점검현황(금월)'!$D$7:$AK$263,34,0) -> 1068 | M197: 720 | N197: 08:50:00
B198: 연암관 | C198: 18 | D198: 509 | E198: =VLOOKUP(B198&D198,'[1]점검현황(금월)'!$D$7:$AG$261,2,0) -> 멀티미디어 | F198: =VLOOKUP(B198&D198,'[1]점검현황(금월)'!$D$7:$AG$263,3,0) -> XU106K | G198: =VLOOKUP(B198&D198,'[1]점검현황(금월)'!$D$2:$AG$263,19,0) -> e-ST | H198: =VLOOKUP(B198&D198,'[1]점검현황(금월)'!$D$2:$AG$263,25,0) -> 2019-08-07 | I198: =VLOOKUP(B198&D198,'[1]점검현황(금월)'!$D$7:$AG$263,27,0) -> 2020-04-23 | J198: =VLOOKUP(B198&D198,'[1]점검현황(금월)'!$D$7:$AG$263,23,0) -> 622 | K198: =VLOOKUP(B198&D198,'[1]점검현황(금월)'!$D$7:$AK$263,24,0) -> 08:50:00 | L198: =VLOOKUP(B198&D198,'[1]점검현황(금월)'!$D$7:$AK$263,34,0) -> 581 | M198: 720 | N198: 19:00:00
B199: 연암관 | C199: 19 | D199: 510 | E199: =VLOOKUP(B199&D199,'[1]점검현황(금월)'!$D$7:$AG$261,2,0) -> 법전원 세미나실 | F199: =VLOOKUP(B199&D199,'[1]점검현황(금월)'!$D$7:$AG$263,3,0) -> XU106K | G199: =VLOOKUP(B199&D199,'[1]점검현황(금월)'!$D$2:$AG$263,19,0) -> e-ST | H199: =VLOOKUP(B199&D199,'[1]점검현황(금월)'!$D$2:$AG$263,25,0) -> 2015-07-17 | I199: =VLOOKUP(B199&D199,'[1]점검현황(금월)'!$D$7:$AG$263,27,0) -> 2012-04-28(클리닝 권고) | J199: =VLOOKUP(B199&D199,'[1]점검현황(금월)'!$D$7:$AG$263,23,0) -> 622 | K199: =VLOOKUP(B199&D199,'[1]점검현황(금월)'!$D$7:$AK$263,24,0) -> 19:00:00 | L199: =VLOOKUP(B199&D199,'[1]점검현황(금월)'!$D$7:$AK$263,34,0) -> 500 | M199: 720 | N199: 19:10:00
B200: 연암관 | C200: 20 | D200: 601 | E200: =VLOOKUP(B200&D200,'[1]점검현황(금월)'!$D$7:$AG$261,2,0) -> 법전원(모의법정) | F200: =VLOOKUP(B200&D200,'[1]점검현황(금월)'!$D$7:$AG$263,3,0) -> XT35K | G200: =VLOOKUP(B200&D200,'[1]점검현황(금월)'!$D$2:$AG$263,19,0) -> 자체 | H200: =VLOOKUP(B200&D200,'[1]점검현황(금월)'!$D$2:$AG$263,25,0) -> 2014-12-01 | I200: =VLOOKUP(B200&D200,'[1]점검현황(금월)'!$D$7:$AG$263,27,0) -> 날짜 확인 불가(클리닝 권고) | J200: =VLOOKUP(B200&D200,'[1]점검현황(금월)'!$D$7:$AG$263,23,0) -> 622 | K200: =VLOOKUP(B200&D200,'[1]점검현황(금월)'!$D$7:$AK$263,24,0) -> 19:10:00 | L200: =VLOOKUP(B200&D200,'[1]점검현황(금월)'!$D$7:$AK$263,34,0) -> 161 | M200: 720 | N200: 19:20:00
... 63 more rows
